Workbook

Sheet Contents
A1: Overview
A2: This spreadsheet was prepared by E2Designlab in 2017 for Darebin City Council. The tool is designed to provide a quick estimate of the treatment performance, reuse performance and cost associated with stormwater treatment and reuse projects. If you require assistance with this tool, contact Council's Environment Officer or E2Designlab at info@e2designlab.com.au or ph: 03 9654 7274.
A5: Contents
A6: Step 1 | B6: Site and catchment details
A7: Step 2 | B7: Treatment details
A8: Step 3 | B8: Treatment performance
A9: Step 4 | B9: Stormwater reuse
A10: Step 5 | B10: Transfer pipes
A11: Step 6 | B11: Review costs
A12: Step 7 | B12: Risks and opportunities
A13: Step 8 | B13: Review and save results
A14: Step 9 | B14: Results for all sites (treatment and economic performance)
A15: Step 10 | B15: Results for all sites (risks and opportunities)
A16: Step 11 | B16: Individual site summary
A17: Legend
A18: Required user input
A19: Recommended user input
A20: Automatic input (cannot be edited)

Sheet Step 1
A1: Step 1: Site and catchment details | E1: Notes
A2: Site Name | D2: IW Dole | E2: -
A3: Site # | D3: =Calculations!F11 -> 1069 | E3: Automatically finds the next unique Site #.
A4: Suburb | D4: Reservoir | E4: -
A5: Catchment | B5: Catchment Location | D5: - | E5: See 'Catchment Map' below.
B6: Catchment Area (ha) | D6: 100 | E6: -
B7: Directly Connected Imperviousness (DCI) % | C7: Default | D7: =Calculations!F17 -> 0.3 | E7: A user defined value must be entered.MUSIC modelling is required to estimate treatment performance if the directly connected imperviousness of the catchment is not ~30% .
C8: User defined | D8: 0.3
A10: Catchment Map

Sheet Step 2
A1: Step 2: Treatment details | E1: Notes
A2: Treatment Site | B2: Total site area (m2) | D2: 5800 | E2: Total site area = the area available identified for treatment.
B3: Area reduction factor | C3: Default | D3: 0.3 | E3: It is assumed that the total area needs to be reduced by 30% to account for batters, access tracks, seating etc. The remaining 70% of the total area is available for treatment.
C4: User defined | E4: Insert the default input or a unique input.
B5: Area available for treatment (m2) | D5: =Calculations!F22 -> 4060 | E5: Area available for treatment = Total site area x Area reduction factor.
B6: Treatment area (m2) | D6: =Calculations!F24 -> 4060 | E6: Treatment area = Minimum of the "Area available for treatment" and the "Area required to treat the catchment to best practice based on the adopted treatment" (see below). Note: MUSIC modelling is required to estimate treatment perfromance if: (a) The bioretention treatment area is >600 m2. (b) The wetland treatment area is >6000 m2.
A7: Treatment Type | B7: Treatment type | C7: Default | D7: =Calculations!F18 -> Wetland or Bioretention | E7: Wetlands are typically preferenced if there is sufficient space available, bioretention systems may be more suitable in confined sites and locations where permanent water bodies aren't appropriate (e.g. immediately adjacent to sports grounds).
C8: User defined | D8: Wetland | E8: User can choose which treatment is used at the site. Note: If the area of bioretention required is >600m2 then consider constructing multiple bioretention cells to allow for flow spreading.
B9: Area required to treat the catchment to best practice based on the adopted treatment (m2) | D9: =Calculations!F23 -> MUSIC modelling is required | E9: This is an estimate of the treatment area required to treat the entire catchment to meet best practice pollutant removal targets (80% TSS, 45% TN, 45% TP). This will rarely be achievable or practical in existing urban areas. MUSIC modelling is required to estimate this area if the catchment DCI not ~30% or stormwater harvesting occurs.

Sheet Step 3
A1: Step 3: Treatment performance | F1: Notes
A2: Treatment Performance | B2: Will there be stormwater reuse from the treatment? | E2: Yes | F2: -
B3: Default | C3: Runoff Reduction (ML/yr) | E3: =Calculations!F25 -> MUSIC modelling is required | F3: Default runoff and pollutant load reductions are estimated using design curves. Note: MUSIC modelling is required to estimate treatment perfromance if: (a) The catchment DCI is not ~30%. (b) The project includes stormwater reuse. (c) The bioretention treatment area is >600 m2. (d) The wetland treatment area is >6000 m2. In these cases a MUSIC model will need to be prepared with the results entered manually in the green 'User defined' boxes.
C4: Pollutant Load Reductions (kg/yr) | D4: Total Suspended Solids (TSS) | E4: =Calculations!F26 -> MUSIC modelling is required
D5: Total Phosporus (TP) | E5: =Calculations!F27 -> MUSIC modelling is required
D6: Total Nitrogen (TN) | E6: =Calculations!F28 -> MUSIC modelling is required
B7: User defined | C7: Runoff Reduction (ML/yr)
C8: Pollutant Load Reductions (kg/yr) | D8: Total Suspended Solids (TSS)
D9: Total Phosporus (TP)
D10: Total Nitrogen (TN)

Sheet Step 4
A1: Step 4: Stormwater reuse | E1: Notes
A2: Demand | B2: Demand Name(s) | D2: JC Donath Res and IW Dole | E2: Name of demand(s) to be supplied by stormwater.
B3: Active Irrigation | C3: Irrigated area (ha) | E3: -
C4: Irrigation rate (ML/ha) | D4: =Calculations!F40 -> 3.5 | E4: Based on irrigation of Warm Season Turf for "Medium - Strong Growth". This rate is based on Darebin's monthly rainfall and evapotranspiration.
C5: Volume (ML/yr) | D5: =Calculations!F41 -> 0 | E5: Volume = Irrigated area x Irrigation Rate.
B6: Passive Irrigation | C6: Irrigated area (ha) | E6: -
C7: Irrigation rate (ML/ha) | D7: =Calculations!F43 -> 1.7 | E7: Based on irrigation of Warm Season Turf for "Low Maintenance - Just Acceptable Growth". This rate is based on Darebin's monthly rainfall and evapotranspiration.
C8: Volume (ML/yr) | D8: =Calculations!F44 -> 0 | E8: Volume = Irrigated area x Irrigation Rate.
B9: Other seasonal demand (ML/yr) | E9: E.g. Lake/pond top up to maintain water level etc.
B10: Other constant demand (ML/yr) | E10: E.g. Toilet flushing etc.
B11: Total demand (ML/yr) | D11: =Calculations!F48 -> 0 | E11: -
A12: Storage | B12: Tank Type | D12: Below ground | E12: -
B13: Volume (kL) | D13: 2500 | E13: MUSIC modelling is required to generate these inputs.
A14: Perfromance | B14: Reuse Volume (ML/yr) | D14: 17.5
B15: Reuse Reliability (%) | D15: 0.7

Sheet Step 5
A1: STEP 5: Transfer pipes | E1: Notes
A2: Pipes | B2: Stormwater Source to Treatment Inlet | C2: Length (m) | E2: Distance from the stormwater source (i.e. stormwater pit/pipe) to the treatment system inlet.
C3: Pipe Diameter (mm) | D3: 300 | E3: Default = assume 300mm is sufficient and verify as part of concept design.
C4: Pipe Type | D4: Pressured | E4: Typically requires pumping via a pressured pipe, verify as part of concept design.
B5: Treatment Outlet to Discharge Point | C5: Length (m) | E5: Distance from the treatment system outlet to the discharge point (e.g. stormwater pit/pipe or waterway).
C6: Pipe Diameter (mm) | D6: 300 | E6: Default = assume 300mm is sufficient and verify as part of concept design.
C7: Pipe Type | D7: Gravity | E7: Typically can be designed to be gravity if an underground tank is used, verify as part of concept design and change to "Pressured" if an above ground storage is required.
B8: Treatment to Storage | C8: Length (m) | E8: Distance from the treatment site to any storages (e.g. tanks or ponds) used for stormwater harvesting.
C9: Pipe Diameter (mm) | D9: 300 | E9: Default = assume 300mm is sufficient and verify as part of concept design.
C10: Pipe Type | D10: Gravity | E10: Typically can be designed to be gravity, verify as part of concept design.

Sheet Step 6
A1: STEP 6: Review costs | D1: Notes
A2: CAPEX | B2: Treatment | C2: =Calculations!F97+Calculations!F83 -> 710067.4621 | D2: Costs cannot be modified and should be reviewed at the concept design stage.
B3: Stormwater reuse | C3: =Calculations!F104 -> 1413020.763
B4: Sub-total (excluding contingencies) | C4: =Calculations!F105 -> 2123088.225
B5: Total (including contingencies) | C5: =Calculations!F108 -> 3102000
A6: OPEX | B6: Treatment | C6: =Calculations!F114+Calculations!F109 -> 11313.43253
B7: Stormwater reuse | C7: =Calculations!F118 -> 5603.156026
B8: Sub-total (excluding contingencies) | C8: =Calculations!F119 -> 16916.58855
B9: Total | C9: =Calculations!F122 -> 20500
A10: Present Value Costs | B10: Capital | C10: =Calculations!F108 -> 3102000
B11: Operational | C11: =Calculations!F131 -> 347096.117
B12: Renewal | C12: =Calculations!F132 -> 168479.1117
B13: Total | C13: =Calculations!F134 -> 3618000
A14: Present Value Benefits | B14: Nitrogen abatement (kg/yr) | C14: =IF('Step 3'!E10<0,"Error",IF(NOT('Step 3'!E10=""),'Step 3'!E10,Calculations!F28)) -> MUSIC modelling is required | D14: This cell will select the user defined input from Step 3, if there is no user defined input the default value will be selected.
B15: PV of nitrogen abatement ($) | C15: =Calculations!F36 -> MUSIC modelling is required | D15: Based on a rate of 11,390 $/kg (i.e. Melbourne Water rate including capex, opex and renewal over 50yrs)
B16: Reuse volume (ML/yr) | C16: =Calculations!F50 -> 17.5 | D16: -
B17: PV of reuse volume ($) | C17: =Calculations!F52 -> 781313.5009 | D17: Based on 2.80 $/kL (Yara Valley Water)
B18: Total | C18: =IFERROR(C15+C17,"n/a") -> n/a | D18: -
A19: Benefit Cost Ratio | C19: =IFERROR(IF(C13=0,"n/a",C18/C13),"n/a") -> n/a | D19: A BCR of 1 indicate that the monetised benefits equal costs, >1 indicates that the monetised benefit exceed costs.
A20: Inputs to Present Value Anlaysis | B20: Time period of analysis (years) | C20: =Calculations!F129 -> 50 | D20: -
B21: Discount rate (%) | C21: =Calculations!F130 -> 0.055 | D21: -

Sheet Step 7
A1: STEP 7: Risks and opportunities | D1: Notes
A2: Site # | C2: ='Step 1'!$D$3 -> 1069 | D2: -
A3: Site Name | C3: ='Step 1'!$D$2 -> IW Dole | D3: -
A4: Risks | B4: Landfill | D4: Review Council GIS layer "Landfill_Sites".
B5: Cultural heritage | D5: Review Council GIS layer "Dcc_Cultural_Heritage".
B6: Natural heritage | D6: Review Council GIS layer "NaturalHeritgaeSignifcance".
B7: Biodiversity | D7: Review Council GIS layer "Dcc_Biodiversity_Sites_Data".
B8: Geological | D8: Review Council GIS layer "GeologicalSites".
B9: Flooding | D9: Review Council GIS layers "1 in 100yr Flood Natural Drain" and "1 in 100yr Flood Underground Drain".
B10: Other | D10: Consider any other risks to project success, e.g. lack of maintenance access, lack of community support, securing funding.
A11: Opportunities | D11: Consider opportunities that will increase the likelihood of project success or enhance project outocmes, e.g. opportunitiy for community engagement / education, enhanced amenity, integration with existing site masterplan.

Sheet Step 8
A1: STEP 8: Review and save results
A2: Site | E2: Catchment | G2: Treatment Performance | M2: Stormwater Reuse | Q2: Storage | S2: Costs | U2: CLASS | V2: BENEFIT | X2: COST | Y2: Benefit Cost Ratio (BCR)
A3: # | B3: Name | C3: Suburb | D3: Catchment Location | E3: Total Area (ha) | F3: Directly Connected Imperviousness (DCI) | G3: Type | H3: Area (m2) | I3: Runoff Reduction (ML/yr) | J3: Pollutant Load Reductions (kg/yr) | M3: Demand | O3: Supply | Q3: Tank Type | R3: Volume (kL) | S3: Capital ($) | T3: Annual Maintenance ($) | U3: OBJECTIVE | V3: Improved stormwater quality | W3: Increased alternative water use | X3: Cost effective investment
J4: TSS | K4: TP | L4: TN | M4: Name | N4: Volume (ML/yr) | O4: Volume (ML/yr) | P4: Reliability | U4: MEASURE | V4: Value of nitrogen abatement ($ NPV, 50yrs, 6% discount rate) | W4: Value of potable saving ($ NPV, 50yrs, 6% discount rate) | X4: Life cycle cost ($ NPV, 50yrs, 6% discount rate)
A5: ='Step 1'!D3 -> 1069 | B5: ='Step 1'!D2 -> IW Dole | C5: ='Step 1'!D4 -> Reservoir | D5: ='Step 1'!D5 -> - | E5: ='Step 1'!D6 -> 100 | F5: =IF('Step 1'!D8<=0,'Step 1'!D7,'Step 1'!D8) -> 0.3 | G5: =IF('Step 2'!D8="-",'Step 2'!D7,'Step 2'!D8) -> Wetland | H5: ='Step 2'!D6 -> 4060 | I5: =IF('Step 3'!$E7>=0,'Step 3'!$E7,'Step 3'!$E3) -> 0 | J5: =IF('Step 3'!$E8>=0,'Step 3'!$E8,'Step 3'!$E4) -> 0 | K5: =IF('Step 3'!$E9>=0,'Step 3'!$E9,'Step 3'!$E5) -> 0 | L5: =IF('Step 3'!$E10>=0,'Step 3'!$E10,'Step 3'!$E6) -> 0 | M5: ='Step 4'!D2 -> JC Donath Res and IW Dole | N5: ='Step 4'!D11 -> 0 | O5: ='Step 4'!D14 -> 17.5 | P5: ='Step 4'!D15 -> 0.7 | Q5: ='Step 4'!D12 -> Below ground | R5: ='Step 4'!D13 -> 2500 | S5: ='Step 6'!C5 -> 3102000 | T5: ='Step 6'!C9 -> 20500 | V5: ='Step 6'!C15 -> MUSIC modelling is required | W5: ='Step 6'!C17 -> 781313.5009 | X5: ='Step 6'!C13 -> 3618000 | Y5: ='Step 6'!C19 -> n/a
A6: Risks and opportunities
A7: Risks | B7: Landfill | C7: ='Step 7'!C4 -> 0
B8: Cultural heritage | C8: ='Step 7'!C5 -> 0
B9: Natural heritage | C9: ='Step 7'!C6 -> 0
B10: Biodiversity | C10: ='Step 7'!C7 -> 0
B11: Geological | C11: ='Step 7'!C8 -> 0
B12: Flooding | C12: ='Step 7'!C9 -> 0
B13: Other | C13: ='Step 7'!C10 -> 0
A14: Opportunities | C14: ='Step 7'!C11 -> 0
A15: Save results
A16: To save the results and compare them to other Water Sensitive Projects that have previously been identified click the "SAVE RESULTS" button in red to automatically add this site to the results presented in to Step 9 and Step 10.

Sheet Step 9
A1: STEP 9: Results for all sites (treatment and economic performance)
U2: Economic Assessment ($ NPV, 50yrs, 6% discount rate)
A3: Site | E3: Catchment | G3: Treatment Performance | M3: Stormwater Reuse | Q3: Storage | S3: Costs | U3: CLASS | V3: BENEFIT | X3: COST | Y3: Benefit Cost Ratio (BCR) | Z3: Rank
A4: # | B4: Name | C4: Suburb | D4: Catchment Location | E4: Total Area (ha) | F4: Directly Connected Imperviousness (DCI) | G4: Type | H4: Area (m2) | I4: Runoff Reduction (ML/yr) | J4: Pollutant Load Reductions (kg/yr) | M4: Demand | O4: Supply | Q4: Tank Type | R4: Volume (kL) | S4: Capital ($) | T4: Annual Maintenance ($) | U4: OBJECTIVE | V4: Improved stormwater quality | W4: Increased alternative water use | X4: Cost effective investment | Z4: =CONCATENATE("(1st = best of the total ",COUNTIF(Z6:Z1228,">0")," sites assessed)") -> (1st = best of the total 68 sites assessed)
J5: TSS | K5: TP | L5: TN | M5: Name | N5: Volume (ML/yr) | O5: Volume (ML/yr) | P5: Reliability | U5: MEASURE | V5: Value of nitrogen abatement | W5: Value of potable saving | X5: Life cycle cost | AA5: BCR | AB5: #
A6: 1001 | B6: 40 Orchard Ave | C6: Reservoir | D6: Merri Creek - Upper | E6: 360 | F6: 0.3804076916 | G6: Bioretention | H6: 360 | I6: 0.7 | J6: 6710 | K6: 10 | L6: 52 | M6: - | N6: 0 | O6: 0 | P6: 0 | Q6: - | R6: 0 | S6: 561000 | T6: 6700 | V6: 592280 | W6: 0 | X6: 727000 | Y6: 0.8146905089 | Z6: =_xlfn.IFNA(VLOOKUP(Y6,AA$1:AB$1228,2,FALSE),"") -> 16 | AA6: =IF(Y6="","",LARGE(Y$1:Y$1228,AB6)) -> 1.364700461 | AB6: 1
A7: 1002 | B7: 35 Radford Rd | C7: Reservoir | D7: Merri Creek - Upper | E7: 420 | F7: 0.5029492389 | G7: Bioretention | H7: 420 | I7: 0.8 | J7: 7460 | K7: 11.2 | L7: 59 | M7: - | N7: 0 | O7: 0 | P7: 0 | Q7: - | R7: 0 | S7: 695000 | T7: 7900 | V7: 672010 | W7: 0 | X7: 888000 | Y7: 0.756768018 | Z7: 21 | AA7: 1.291252115 | AB7: =IF(Y7="","",AB6+1) -> 2
A8: 1003 | B8: Keon Park Childrens Hub | C8: Reservoir | D8: Merri Creek - Upper | E8: 4060 | F8: 0.3294386427 | G8: Wetland | H8: 4060 | I8: 32 | J8: 12500 | K8: 22 | L8: 131 | M8: JC Donath Res and IW Dole Res | N8: 34 | O8: 27.5 | P8: 0.8078 | Q8: Below ground | R8: 3400 | S8: 3731000 | T8: 21200 | V8: 1492090 | W8: 1228000 | X8: 4258000 | Y8: 0.6388186942 | Z8: 29 | AA8: 1.238043478 | AB8: 3
A9: 1004 | B9: J C Donath Reserve | C9: Reservoir | D9: Merri Creek - Upper | E9: 3770 | F9: 0.3294386427 | G9: Wetland | H9: 3770 | I9: 32 | J9: 11600 | K9: 20.4 | L9: 124 | M9: JC Donath Res and IW Dole Res | N9: 34 | O9: 27 | P9: 0.7933 | Q9: Below ground | R9: 3400 | S9: 3593000 | T9: 20400 | V9: 1412360 | W9: 1205000 | X9: 4096000 | Y9: 0.6390039063 | Z9: 28 | AA9: 1.220980092 | AB9: 4
A10: 1005 | B10: 3A Carson St | C10: Reservoir | D10: Merri Creek - Upper | E10: 950 | F10: 0.4422927523 | G10: Wetland | H10: 950 | I10: 1 | J10: 2220 | K10: 3.83 | L10: 17.9 | M10: - | N10: 0 | O10: 0 | P10: 0 | Q10: - | R10: 0 | S10: 398000 | T10: 6800 | V10: 203881 | W10: 0 | X10: 558000 | Y10: 0.3653781362 | Z10: 62 | AA10: 1.209308642 | AB10: 5
A11: 1006 | B11: 2 Ovay St | C11: Reservoir | D11: Merri Creek - Upper | E11: 120 | F11: 0.3615471689 | G11: Bioretention | H11: 120 | I11: 0.2 | J11: 2240 | K11: 3.34 | L11: 17.2 | M11: - | N11: 0 | O11: 0 | P11: 0 | Q11: - | R11: 0 | S11: 336000 | T11: 4200 | V11: 195908 | W11: 0 | X11: 432000 | Y11: 0.4534907407 | Z11: 41 | AA11: 1.198234463 | AB11: 6
A12: 1007 | B12: Wilsons Blvd Reserve | C12: Reservoir | D12: Merri Creek - Upper | E12: 110 | F12: 0.2719343092 | G12: Bioretention | H12: 110 | I12: 0.2 | J12: 2030 | K12: 2.98 | L12: 15.4 | M12: - | N12: 0 | O12: 0 | P12: 0 | Q12: - | R12: 0 | S12: 328000 | T12: 4100 | V12: 175406 | W12: 0 | X12: 420000 | Y12: 0.4176333333 | Z12: 51 | AA12: 1.143604396 | AB12: 7
A13: 1008 | B13: 102 Broadhurst Ave | C13: Reservoir | D13: Merri Creek - Upper | E13: 110 | F13: 0.2406630735 | G13: Bioretention | H13: 110 | I13: 0.2 | J13: 2040 | K13: 3.06 | L13: 15.9 | M13: - | N13: 0 | O13: 0 | P13: 0 | Q13: - | R13: 0 | S13: 331000 | T13: 4100 | V13: 181101 | W13: 0 | X13: 423000 | Y13: 0.4281347518 | Z13: 47 | AA13: 1.139 | AB13: 8
A14: 1009 | B14: Edwardes Lake Park | C14: Reservoir | D14: Merri Creek - Upper | E14: 460 | F14: 0.3382277348 | G14: Bioretention | H14: 460 | I14: 0.9 | J14: 8580 | K14: 12.8 | L14: 67 | M14: - | N14: 0 | O14: 0 | P14: 0 | Q14: - | R14: 0 | S14: 444000 | T14: 5000 | V14: 763130 | W14: 0 | X14: 591000 | Y14: 1.291252115 | Z14: 2 | AA14: 1.060809944 | AB14: 9
A15: 1010 | B15: J E Moore Park | C15: Reservoir | D15: Merri Creek - Upper | E15: 450 | F15: 0.3390750498 | G15: Bioretention | H15: 450 | I15: 0.8 | J15: 8580 | K15: 13 | L15: 67 | M15: - | N15: 0 | O15: 0 | P15: 0 | Q15: - | R15: 0 | S15: 693000 | T15: 8000 | V15: 763130 | W15: 0 | X15: 890000 | Y15: 0.8574494382 | Z15: 15 | AA15: 0.9705482304 | AB15: 10
A16: 1011 | B16: Fyfe St Reserve | C16: Reservoir | D16: Merri Creek - Upper | E16: 250 | F16: 0.2498010704 | G16: Bioretention | H16: 250 | I16: 0.5 | J16: 5860 | K16: 8.8 | L16: 44 | M16: - | N16: 0 | O16: 0 | P16: 0 | Q16: - | R16: 0 | S16: 407000 | T16: 5000 | V16: 501160 | W16: 0 | X16: 533000 | Y16: 0.9402626642 | Z16: 11 | AA16: 0.9402626642 | AB16: 11
A17: 1012 | B17: T W Andrews Reserve (small) | C17: Reservoir | D17: Darebin Creek - Upper | E17: 90 | F17: 0.2446262958 | G17: Bioretention | H17: 90 | I17: 0.2 | J17: 1607 | K17: 2.45 | L17: 12.6 | M17: - | N17: 0 | O17: 0 | P17: 0 | Q17: - | R17: 0 | S17: 316000 | T17: 3800 | V17: 143514 | W17: 0 | X17: 401000 | Y17: 0.3578902743 | Z17: 63 | AA17: 0.924512987 | AB17: 12
A18: 1013 | B18: T W Andrews Reserve (large) | C18: Reservoir | D18: Darebin Creek - Upper | E18: 560 | F18: 0.2466259113 | G18: Bioretention | H18: 560 | I18: 1 | J18: 14000 | K18: 21 | L18: 104 | M18: - | N18: 0 | O18: 0 | P18: 0 | Q18: - | R18: 0 | S18: 662000 | T18: 7900 | V18: 1184560 | W18: 0 | X18: 868000 | Y18: 1.364700461 | Z18: 1 | AA18: 0.8923029046 | AB18: 13
A19: 1014 | B19: Bundoora Park Golf Course | C19: Bundoora | D19: Darebin Creek - Upper | E19: 1340 | F19: 0.4450318433 | G19: Wetland | H19: 1340 | I19: 7.1 | J19: 4000 | K19: 6.8 | L19: 36 | M19: Bundoora Park | N19: 7.064 | O19: 5.66 | P19: 0.8037 | Q19: Below ground | R19: 420 | S19: 661000 | T19: 12100 | V19: 410040 | W19: 253000 | X19: 866000 | Y19: 0.7656351039 | Z19: 20 | AA19: 0.8696191052 | AB19: 14
A20: 1015 | B20: Arch Gibson Reserve | C20: Reservoir | D20: Darebin Creek - Upper | E20: 4510 | F20: 0.250523411 | G20: Wetland | H20: 4510 | I20: 8 | J20: 12700 | K20: 21.3 | L20: 100 | M20: CW Kirkwood Res | N20: 4.390685521 | O20: 3.03 | P20: 0.8131 | Q20: Below ground | R20: 150 | S20: 1363000 | T20: 15200 | V20: 1139000 | W20: 135000 | X20: 1806000 | Y20: 0.7054263566 | Z20: 23 | AA20: 0.8574494382 | AB20: 15
A21: 1016 | B21: HP Zwar Park | C21: Preston | D21: Merri Creek - Middle | E21: 1270 | F21: 0.3024263406 | G21: Wetland | H21: 1270 | I21: 8 | J21: 3000 | K21: 7 | L21: 30 | M21: HP Zwar Park | N21: 8.659570189 | O21: 6.79 | P21: 0.7814 | Q21: Below ground | R21: 610 | S21: 1407000 | T21: 11300 | V21: 341700 | W21: 303000 | X21: 1657000 | Y21: 0.3890766445 | Z21: 58 | AA21: 0.8146905089 | AB21: 16
A22: 1017 | B22: McDonnell Park West | C22: Northcote | D22: Yarra River - Lower | E22: 450 | F22: 0.2731720467 | G22: Bioretention | H22: 450 | I22: 5 | J22: 13000 | K22: 20.2 | L22: 97 | M22: McDonnell Park | N22: 6 | O22: 4.88 | P22: 0.813 | Q22: Below ground | R22: 290 | S22: 1033000 | T22: 9000 | V22: 1104830 | W22: 218000 | X22: 1247000 | Y22: 1.060809944 | Z22: 9 | AA22: 0.8058385965 | AB22: 17
A23: 1018 | B23: Northcote Golf Course | C23: Thornbury | D23: Merri Creek - Middle | E23: 10690 | F23: 0.332683276 | G23: Wetland | H23: 10690 | I23: 20 | J23: 29000 | K23: 48 | L23: 230 | M23: Mayer Park | N23: 7.064 | O23: 5.76 | P23: 0.8177 | Q23: Below ground | R23: 250 | S23: 2539000 | T23: 21500 | V23: 2619700 | W23: 257000 | X23: 3308000 | Y23: 0.8696191052 | Z23: 14 | AA23: 0.8021126761 | AB23: 18
A24: 1019 | B24: 58 Chifley Drive | C24: Preston | D24: Darebin Creek - Middle | E24: 290 | F24: 0.3937704896 | G24: Bioretention | H24: 290 | I24: 1 | J24: 8000 | K24: 13 | L24: 60 | M24: - | N24: 0 | O24: 0 | P24: 0 | Q24: - | R24: 0 | S24: 420000 | T24: 5100 | V24: 683400 | W24: 0 | X24: 552000 | Y24: 1.238043478 | Z24: 3 | AA24: 0.7732114883 | AB24: 19
A25: 1020 | B25: Penders Park | C25: Thornbury | D25: Merri Creek - Lower | E25: 810 | F25: 0.2646666994 | G25: Wetland | H25: 810 | I25: 0.9 | J25: 2090 | K25: 3.57 | L25: 16.6 | M25: - | N25: 0 | O25: 0 | P25: 0 | Q25: - | R25: 0 | S25: 356000 | T25: 6200 | V25: 189074 | W25: 0 | X25: 500000 | Y25: 0.378148 | Z25: 61 | AA25: 0.7656351039 | AB25: 20
A26: 1021 | B26: Preston City Oval | C26: Preston | D26: Merri Creek - Middle | E26: 150 | F26: 0.3764026554 | G26: Bioretention | H26: 150 | I26: 5 | J26: 4400 | K26: 6.9 | L26: 37 | M26: Preston City Oval | N26: 6.110387967 | O26: 4.93 | P26: 0.8075 | Q26: Below ground | R26: 370 | S26: 905000 | T26: 6600 | V26: 421430 | W26: 220000 | X26: 1045000 | Y26: 0.6138086124 | Z26: 32 | AA26: 0.756768018 | AB26: 21
A27: 1022 | B27: Ray Bramham Gardens | C27: Preston | D27: Merri Creek - Middle | E27: 950 | F27: 0.3264993011 | G27: Wetland | H27: 950 | I27: 1 | J27: 2000 | K27: 4 | L27: 20 | M27: - | N27: 0 | O27: 0 | P27: 0 | Q27: - | R27: 0 | S27: 369000 | T27: 6300 | V27: 227800 | W27: 0 | X27: 521000 | Y27: 0.4372360845 | Z27: 44 | AA27: 0.721702544 | AB27: 22
A28: 1023 | B28: 3 Newman St | C28: Preston | D28: Merri Creek - Middle | E28: 370 | F28: 0.3275767314 | G28: Bioretention | H28: 370 | I28: 0 | J28: 10000 | K28: 16 | L28: 70 | M28: - | N28: 0 | O28: 0 | P28: 0 | Q28: - | R28: 0 | S28: 499000 | T28: 5900 | V28: 797300 | W28: 0 | X28: 653000 | Y28: 1.220980092 | Z28: 4 | AA28: 0.7054263566 | AB28: 23
A29: 1024 | B29: NARC Option East | C29: Northcote | D29: Yarra River - Lower | E29: 730 | F29: 0.283820674 | G29: Wetland | H29: 730 | I29: 6 | J29: 2100 | K29: 4 | L29: 22 | M29: McDonnell Park | N29: 6 | O29: 4.73 | P29: 0.7876 | Q29: Below ground | R29: 600 | S29: 1138000 | T29: 9200 | V29: 250580 | W29: 211000 | X29: 1330000 | Y29: 0.3470526316 | Z29: 64 | AA29: 0.6830663616 | AB29: 24
A30: 1025 | B30: LW Williams Reserve | C30: Preston | D30: Merri Creek - Middle | E30: 510 | F30: 0.2758210487 | G30: Bioretention | H30: 510 | I30: 1 | J30: 11100 | K30: 16.7 | L30: 86 | M30: - | N30: 0 | O30: 0 | P30: 0 | Q30: - | R30: 0 | S30: 616000 | T30: 7500 | V30: 979540 | W30: 0 | X30: 810000 | Y30: 1.209308642 | Z30: 5 | AA30: 0.6585687204 | AB30: 25
A31: 1026 | B31: 29 Cygna Street | C31: Preston | D31: Darebin Creek - Middle | E31: 770 | F31: 0.2729347116 | G31: Wetland | H31: 770 | I31: 1 | J31: 2000 | K31: 3.5 | L31: 16 | M31: - | N31: 0 | O31: 0 | P31: 0 | Q31: - | R31: 0 | S31: 314000 | T31: 5800 | V31: 182240 | W31: 0 | X31: 450000 | Y31: 0.4049777778 | Z31: 55 | AA31: 0.6475623053 | AB31: 26
A32: 1027 | B32: Larkins Reserve | C32: Preston | D32: Merri Creek - Middle | E32: 1150 | F32: 0.3112060963 | G32: Wetland | H32: 1150 | I32: 1.2 | J32: 3040 | K32: 5.1 | L32: 24 | M32: - | N32: 0 | O32: 0 | P32: 0 | Q32: - | R32: 0 | S32: 454000 | T32: 7200 | V32: 273360 | W32: 0 | X32: 630000 | Y32: 0.4339047619 | Z32: 45 | AA32: 0.6423894685 | AB32: 27
A33: 1028 | B33: Roberts Reserve | C33: Thornbury | D33: Merri Creek - Lower | E33: 60 | F33: 0.264567895 | G33: Bioretention | H33: 60 | I33: 0.1 | J33: 1590 | K33: 2.5 | L33: 12 | M33: - | N33: 0 | O33: 0 | P33: 0 | Q33: - | R33: 0 | S33: 211000 | T33: 2900 | V33: 136680 | W33: 0 | X33: 275000 | Y33: 0.4970181818 | Z33: 39 | AA33: 0.6390039063 | AB33: 28
A34: 1029 | B34: Batman Park | C34: Northcote | D34: Merri Creek - Lower | E34: 260 | F34: 0.2562161437 | G34: Bioretention | H34: 260 | I34: 0.5 | J34: 4630 | K34: 7.02 | L34: 36.5 | M34: - | N34: 0 | O34: 0 | P34: 0 | Q34: - | R34: 0 | S34: 500000 | T34: 5900 | V34: 415735 | W34: 0 | X34: 642000 | Y34: 0.6475623053 | Z34: 26 | AA34: 0.6388186942 | AB34: 29
A35: 1030 | B35: Johnson Park | C35: Northcote | D35: Merri Creek - Lower | E35: 1800 | F35: 0.2654039972 | G35: Wetland | H35: 1800 | I35: 2 | J35: 4200 | K35: 7.29 | L35: 33.6 | M35: - | N35: 0 | O35: 0 | P35: 0 | Q35: - | R35: 0 | S35: 656000 | T35: 9600 | V35: 382704 | W35: 0 | X35: 899000 | Y35: 0.4256996663 | Z35: 48 | AA35: 0.6210746812 | AB35: 30
A36: 1031 | B36: AH Capp Reserve | C36: Preston | D36: Merri Creek - Middle | E36: 140 | F36: 0.3157273644 | G36: Bioretention | H36: 140 | I36: 3.6 | J36: 2670 | K36: 4.29 | L36: 23.4 | M36: Capp & Robinson Res | N36: 4 | O36: 3.25 | P36: 0.8123 | Q36: Below ground | R36: 280 | S36: 847000 | T36: 6700 | V36: 266526 | W36: 145000 | X36: 988000 | Y36: 0.4165242915 | Z36: 52 | AA36: 0.6166304348 | AB36: 31
A37: 1032 | B37: Egans Reserve | C37: Thornbury | D37: Merri Creek - Middle | E37: 570 | F37: 0.1680921511 | G37: Wetland | H37: 570 | I37: 0.7 | J37: 1243 | K37: 2.15 | L37: 10.3 | M37: - | N37: 0 | O37: 0 | P37: 0 | Q37: - | R37: 0 | S37: 275000 | T37: 4800 | V37: 117317 | W37: 0 | X37: 385000 | Y37: 0.3047194805 | Z37: 67 | AA37: 0.6138086124 | AB37: 32
A38: 1033 | B38: Bill Lawry Oval | C38: Northcote | D38: Merri Creek - Lower | E38: 540 | F38: 0.2643533301 | G38: Bioretention | H38: 540 | I38: 6 | J38: 11500 | K38: 17.9 | L38: 93 | M38: Bill Lawry Oval, Yarra Bend Park | N38: 6.404821397 | O38: 5.18 | P38: 0.8076 | Q38: Below ground | R38: 320 | S38: 1198000 | T38: 10500 | V38: 1059270 | W38: 231000 | X38: 1446000 | Y38: 0.8923029046 | Z38: 13 | AA38: 0.5987250712 | AB38: 33
A39: 1034 | B39: NARC Option West | C39: Northcote | D39: Yarra River - Lower | E39: 510 | F39: 0.283820674 | G39: Bioretention | H39: 510 | I39: 6 | J39: 13700 | K39: 20.2 | L39: 104 | M39: McDonnell Park | N39: 6 | O39: 4.8 | P39: 0.7995 | Q39: Below ground | R39: 270 | S39: 1201000 | T39: 10200 | V39: 1184560 | W39: 214000 | X39: 1441000 | Y39: 0.9705482304 | Z39: 10 | AA39: 0.589274642 | AB39: 34
A40: 1035 | B40: Merri Park | C40: Northcote | D40: Merri Creek - Lower | E40: 600 | F40: 0.3316783592 | G40: Bioretention | H40: 600 | I40: 6 | J40: 16200 | K40: 24 | L40: 130 | M40: Merri Park | N40: 6 | O40: 4.84 | P40: 0.8056 | Q40: Below ground | R40: 270 | S40: 1164000 | T40: 10400 | V40: 1480700 | W40: 216000 | X40: 1416000 | Y40: 1.198234463 | Z40: 6 | AA40: 0.5426076055 | AB40: 35
A41: 1036 | B41: McDonnell Park South (Wetland) | C41: Northcote | D41: Yarra River - Lower | E41: 1430 | F41: 0.2731720467 | G41: Wetland | H41: 1430 | I41: 6 | J41: 3800 | K41: 6 | L41: 34 | M41: McDonnell Park | N41: 6 | O41: 4.75 | P41: 0.7907 | Q41: Below ground | R41: 310 | S41: 961000 | T41: 9900 | V41: 387260 | W41: 212000 | X41: 1194000 | Y41: 0.5018927973 | Z41: 38 | AA41: 0.5180170557 | AB41: 36
A42: 1037 | B42: 26 Linaker Drive | C42: Macleod | D42: Darebin Creek - Upper | E42: 2950 | F42: 0.3112263269 | G42: Wetland | H42: 2950 | I42: 4 | J42: 7900 | K42: 13.5 | L42: 61 | M42: - | N42: 0 | O42: 0 | P42: 0 | Q42: - | R42: 0 | S42: 746000 | T42: 10800 | V42: 694790 | W42: 0 | X42: 1055000 | Y42: 0.6585687204 | Z42: 25 | AA42: 0.5036572029 | AB42: 37
A43: 1038 | B43: Rubie Thomson Reserve | C43: Fairfield | D43: Yarra River - Lower | E43: 800 | F43: 0.2789890254 | G43: Wetland | H43: 800 | I43: 6 | J43: 2200 | K43: 4 | L43: 30 | M43: McDonnell Park | N43: 7.207827507 | O43: 5.42 | P43: 0.7507 | Q43: Below ground | R43: 720 | S43: 1256000 | T43: 9700 | V43: 341700 | W43: 242000 | X43: 1459000 | Y43: 0.4000685401 | Z43: 57 | AA43: 0.5018927973 | AB43: 38
A44: 1039 | B44: HLT Oulton Park | C44: Preston | D44: Darebin Creek - Middle | E44: 510 | F44: 0.2560179814 | G44: Bioretention | H44: 510 | I44: 5 | J44: 11200 | K44: 16.9 | L44: 88 | M44: HLT Oulton Park | N44: 4 | O44: 3.28 | P44: 0.819 | Q44: Below ground | R44: 200 | S44: 1183000 | T44: 10300 | V44: 1002320 | W44: 146000 | X44: 1425000 | Y44: 0.8058385965 | Z44: 17 | AA44: 0.4970181818 | AB44: 39
A45: 1040 | B45: T H Westfield Reserve | C45: Northcote | D45: Merri Creek - Lower | E45: 6190 | F45: 0.2643533301 | G45: Wetland | H45: 6190 | I45: 6 | J45: 14090 | K45: 24.2 | L45: 114 | M45: - | N45: 0 | O45: 0 | P45: 0 | Q45: - | R45: 0 | S45: 1823000 | T45: 19100 | V45: 1298460 | W45: 0 | X45: 2393000 | Y45: 0.5426076055 | Z45: 35 | AA45: 0.4779637809 | AB45: 40
A46: 1041 | B46: 8 Grand Ave | C46: Macleod | D46: Darebin Creek - Upper | E46: 350 | F46: 0.1135588332 | G46: Wetland | H46: 350 | I46: 3.17 | J46: 839 | K46: 1.63 | L46: 10.6 | M46: Ernest Jones Drive Res & surrounds | N46: 4.124585925 | O46: 2.78 | P46: 0.6752 | Q46: Below ground | R46: 490 | S46: 985000 | T46: 8000 | V46: 120734 | W46: 124000 | X46: 1139000 | Y46: 0.2148674276 | Z46: 68 | AA46: 0.4534907407 | AB46: 41
A47: 1042 | B47: Darebin Parklands | C47: Alphington | D47: Darebin Creek - Lower | E47: 1920 | F47: 0.2577206807 | G47: Wetland | H47: 1920 | I47: 4.9 | J47: 4380 | K47: 7.12 | L47: 36.7 | M47: Darebin Parklands - North | N47: 3.458845939 | O47: 2.78 | P47: 0.8045 | Q47: Below ground | R47: 160 | S47: 1043000 | T47: 11700 | V47: 418013 | W47: 124000 | X47: 1326000 | Y47: 0.4087579186 | Z47: 54 | AA47: 0.4418534483 | AB47: 42
A48: 1043 | B48: Beenak Wetland Expansion | C48: Reservoir | D48: Darebin Creek - Upper | E48: 2040 | F48: 0.2562448464 | G48: Wetland | H48: 2040 | I48: 6 | J48: 5700 | K48: 9.3 | L48: 46 | M48: John Hall Res | N48: 4.390685521 | O48: 3.55 | P48: 0.8073 | Q48: Below ground | R48: 180 | S48: 843000 | T48: 9700 | V48: 523940 | W48: 158000 | X48: 1098000 | Y48: 0.6210746812 | Z48: 30 | AA48: 0.4376278855 | AB48: 43
A49: 1044 | B49: John Cain Park East | C49: Thornbury | D49: Darebin Creek - Lower | E49: 810 | F49: 0.3665589053 | G49: Wetland | H49: 810 | I49: 1 | J49: 2200 | K49: 3.8 | L49: 18 | M49: - | N49: 0 | O49: 0 | P49: 0 | Q49: - | R49: 0 | S49: 325000 | T49: 5900 | V49: 205020 | W49: 0 | X49: 464000 | Y49: 0.4418534483 | Z49: 42 | AA49: 0.4372360845 | AB49: 44
A50: 1045 | B50: TW Blake Park | C50: Preston | D50: Darebin Creek - Middle | E50: 350 | F50: 0.3032331456 | G50: Bioretention | H50: 350 | I50: 12.5 | J50: 7010 | K50: 11.46 | L50: 67 | M50: TW Blake Park | N50: 14.98578093 | O50: 11.87 | P50: 0.7914 | Q50: Below ground | R50: 1120 | S50: 1770000 | T50: 11300 | V50: 763130 | W50: 530000 | X50: 2013000 | Y50: 0.6423894685 | Z50: 27 | AA50: 0.4339047619 | AB50: 45
A51: 1046 | B51: W Ruthven Vc Reserve | C51: Preston | D51: Darebin Creek - Middle | E51: 310 | F51: 0.191727019 | G51: Bioretention | H51: 310 | I51: 4.3 | J51: 5800 | K51: 9 | L51: 47.1 | M51: W Ruthvewn Res | N51: 4.5 | O51: 3.66 | P51: 0.8126 | Q51: Below ground | R51: 250 | S51: 992000 | T51: 8700 | V51: 536469 | W51: 163000 | X51: 1187000 | Y51: 0.589274642 | Z51: 34 | AA51: 0.4281960168 | AB51: 46
A52: 1047 | B52: CH Sullivan Memorial Park | C52: Reservoir | D52: Darebin Creek - Upper | E52: 935 | F52: 0.2437065775 | G52: Wetland | H52: 935 | I52: 11.18 | J52: 2509 | K52: 5.01 | L52: 34 | M52: CH Sullivan Memorial Park | N52: 17.75700797 | O52: 10.19 | P52: 0.5731 | Q52: Below ground | R52: 2130 | S52: 2286000 | T52: 13300 | V52: 387260 | W52: 455000 | X52: 2556000 | Y52: 0.3295226917 | Z52: 66 | AA52: 0.4281347518 | AB52: 47
A53: 1048 | B53: 26 Kerang Ave | C53: Reservoir | D53: Darebin Creek - Upper | E53: 1150 | F53: 0.2616043121 | G53: Wetland | H53: 1150 | I53: 12.5 | J53: 3600 | K53: 6.7 | L53: 43 | M53: KP Hardiman Res, C T Barling Res | N53: 15.62817994 | O53: 11.31 | P53: 0.7223 | Q53: Below ground | R53: 1880 | S53: 2293000 | T53: 13500 | V53: 489770 | W53: 505000 | X53: 2575000 | Y53: 0.3863184466 | Z53: 60 | AA53: 0.4256996663 | AB53: 48
A54: 1049 | B54: McDonnell Park South (Bioretention) | C54: Northcote | D54: Yarra River - Lower | E54: 600 | F54: 0.2731720467 | G54: Bioretention | H54: 600 | I54: 6 | J54: 15200 | K54: 22.5 | L54: 118 | M54: McDonnell Park | N54: 6 | O54: 4.86 | P54: 0.8102 | Q54: Below ground | R54: 280 | S54: 1115000 | T54: 10300 | V54: 1344020 | W54: 217000 | X54: 1365000 | Y54: 1.143604396 | Z54: 7 | AA54: 0.4234322767 | AB54: 49
A55: 1050 | B55: 7 Chenies St | C55: Reservoir | D55: Darebin Creek - Upper | E55: 3940 | F55: 0.2527583975 | G55: Wetland | H55: 3940 | I55: 8 | J55: 10200 | K55: 16.6 | L55: 83 | M55: John Hall Res | N55: 4.390685521 | O55: 3.6 | P55: 0.819 | Q55: Below ground | R55: 180 | S55: 1158000 | T55: 12500 | V55: 945370 | W55: 161000 | X55: 1533000 | Y55: 0.721702544 | Z55: 22 | AA55: 0.4178809618 | AB55: 50
A56: 1051 | B56: 60 Ayr St | C56: Reservoir | D56: Darebin Creek - Upper | E56: 820 | F56: 0.2983260064 | G56: Wetland | H56: 820 | I56: 6.4 | J56: 2540 | K56: 4.47 | L56: 26.3 | M56: Bundoora Park | N56: 7.064 | O56: 5.59 | P56: 0.793 | Q56: Below ground | R56: 640 | S56: 1178000 | T56: 9100 | V56: 299557 | W56: 250000 | X56: 1372000 | Y56: 0.4005517493 | Z56: 56 | AA56: 0.4176333333 | AB56: 51
A57: 1052 | B57: 102 Holt Parade | C57: Bundoora | D57: Darebin Creek - Upper | E57: 1260 | F57: 0.3741863847 | G57: Wetland | H57: 1260 | I57: 7 | J57: 3570 | K57: 6.1 | L57: 33.5 | M57: Bundoora Park | N57: 7.064 | O57: 5.68 | P57: 0.8062 | Q57: Below ground | R57: 490 | S57: 1298000 | T57: 11200 | V57: 381565 | W57: 254000 | X57: 1546000 | Y57: 0.4111028461 | Z57: 53 | AA57: 0.4165242915 | AB57: 52
A58: 1053 | B58: 1 Browning St | C58: Kingsbury | D58: Darebin Creek - Upper | E58: 1410 | F58: 0.3596533417 | G58: Wetland | H58: 1410 | I58: 13.3 | J58: 4440 | K58: 8 | L58: 49 | M58: KP Hardiman Res, C T Barling Res | N58: 15.62817994 | O58: 11.73 | P58: 0.7491 | Q58: Below ground | R58: 1560 | S58: 1979000 | T58: 13000 | V58: 558110 | W58: 524000 | X58: 2264000 | Y58: 0.4779637809 | Z58: 40 | AA58: 0.4111028461 | AB58: 53
A59: 1054 | B59: 3 Campbell St | C59: Kingsbury | D59: Darebin Creek - Upper | E59: 250 | F59: 0.4172578358 | G59: Bioretention | H59: 250 | I59: 3.5 | J59: 4790 | K59: 7.4 | L59: 38.9 | M59: CW Kirkwood Res | N59: 4.390685521 | O59: 3 | P59: 0.8051 | Q59: Below ground | R59: 240 | S59: 938000 | T59: 8000 | V59: 443071 | W59: 134000 | X59: 1114000 | Y59: 0.5180170557 | Z59: 36 | AA59: 0.4087579186 | AB59: 54
A60: 1055 | B60: CH Sullivan Memorial Park | C60: Reservoir | D60: Darebin Creek - Upper | E60: 1210 | F60: 0.3 | G60: Wetland | H60: 1210 | I60: 14 | J60: 3800 | K60: 7 | L60: 47 | M60: CH Sullivan Memorial Park | N60: 17.75700797 | O60: 12.5 | P60: 0.703 | Q60: Below ground | R60: 2130 | S60: 2531000 | T60: 14300 | V60: 535330 | W60: 558000 | X60: 2829000 | Y60: 0.3864722517 | Z60: 59 | AA60: 0.4049777778 | AB60: 55
A61: 1056 | B61: CT Barling Reserve | C61: Reservoir | D61: Darebin Creek - Upper | E61: 1500 | F61: 0.2815497032 | G61: Wetland | H61: 1500 | I61: 13.2 | J61: 4210 | K61: 7.67 | L61: 47.6 | M61: C T Barling Res, KP Hardiman Res | N61: 15.62817994 | O61: 11.61 | P61: 0.7416 | Q61: Below ground | R61: 1560 | S61: 2240000 | T61: 13500 | V61: 542164 | W61: 518000 | X61: 2537000 | Y61: 0.4178809618 | Z61: 50 | AA61: 0.4005517493 | AB61: 56
A62: 1057 | B62: KP Hardiman Reserve North | C62: Kingsbury | D62: Darebin Creek - Upper | E62: 4500 | F62: 0.2616043121 | G62: Wetland | H62: 4500 | I62: 17.5 | J62: 11150 | K62: 18.4 | L62: 98 | M62: KP Hardiman Res, C T Barling Res | N62: 15.62817994 | O62: 12.66 | P62: 0.8086 | Q62: Below ground | R62: 940 | S62: 2334000 | T62: 17100 | V62: 1116220 | W62: 565000 | X62: 2808000 | Y62: 0.5987250712 | Z62: 33 | AA62: 0.4000685401 | AB62: 57
A63: 1058 | B63: La Trobe Uni Hockey Club | C63: Kingsbury | D63: Darebin Creek - Upper | E63: 2780 | F63: 0.2616043121 | G63: Wetland | H63: 2780 | I63: 15.6 | J63: 7930 | K63: 13.4 | L63: 75 | M63: KP Hardiman Res, C T Barling Res | N63: 15.62817994 | O63: 12.64 | P63: 0.8072 | Q63: Below ground | R63: 1090 | S63: 1940000 | T63: 14200 | V63: 854250 | W63: 564000 | X63: 2300000 | Y63: 0.6166304348 | Z63: 31 | AA63: 0.3890766445 | AB63: 58
A64: 1059 | B64: 60 Winter Crescent | C64: Reservoir | D64: Darebin Creek - Upper | E64: 1020 | F64: 0.2553896094 | G64: Wetland | H64: 1020 | I64: 4.1 | J64: 2790 | K64: 4.6 | L64: 24.1 | M64: CW Kirkwood Res | N64: 4.390685521 | O64: 3.01 | P64: 0.8071 | Q64: Below ground | R64: 240 | S64: 769000 | T64: 8100 | V64: 274499 | W64: 134000 | X64: 954000 | Y64: 0.4281960168 | Z64: 46 | AA64: 0.3864722517 | AB64: 59
A65: 1060 | B65: 68 Winter Crescent | C65: Reservoir | D65: Darebin Creek - Upper | E65: 190 | F65: 0.2553896094 | G65: Bioretention | H65: 190 | I65: 3.4 | J65: 3650 | K65: 5.7 | L65: 30.2 | M65: CW Kirkwood Res | N65: 4.390685521 | O65: 3.02 | P65: 0.8115 | Q65: Below ground | R65: 260 | S65: 819000 | T65: 5800 | V65: 343978 | W65: 135000 | X65: 951000 | Y65: 0.5036572029 | Z65: 37 | AA65: 0.3863184466 | AB65: 60
A66: 1061 | B66: Breavington Park | C66: Fairfield | D66: Yarra River - Lower | E66: 650 | F66: 0.4110259336 | G66: Wetland | H66: 650 | I66: 0.7 | J66: 1800 | K66: 3.1 | L66: 14 | M66: - | N66: 0 | O66: 0 | P66: 0 | Q66: - | R66: 0 | S66: 341000 | T66: 5700 | V66: 159460 | W66: 0 | X66: 470000 | Y66: 0.3392765957 | Z66: 65 | AA66: 0.378148 | AB66: 61
A67: 1062 | B67: 209 Wingrove St | C67: Fairfield | D67: Yarra River - Lower | E67: 130 | F67: 0.3265313933 | G67: Bioretention | H67: 130 | I67: 0 | J67: 3600 | K67: 5.4 | L67: 26 | M67: - | N67: 0 | O67: 0 | P67: 0 | Q67: - | R67: 0 | S67: 295000 | T67: 3700 | V67: 296140 | W67: 0 | X67: 383000 | Y67: 0.7732114883 | Z67: 19 | AA67: 0.3653781362 | AB67: 62
A68: 1063 | B68: 2 Broomfield Ave | C68: Alphington | D68: Yarra River - Lower | E68: 120 | F68: 0.3517824807 | G68: Bioretention | H68: 120 | I68: 0 | J68: 3300 | K68: 5 | L68: 25 | M68: - | N68: 0 | O68: 0 | P68: 0 | Q68: - | R68: 0 | S68: 271000 | T68: 3500 | V68: 284750 | W68: 0 | X68: 355000 | Y68: 0.8021126761 | Z68: 18 | AA68: 0.3578902743 | AB68: 63
A69: 1064 | B69: 22 McComas St | C69: Reservoir | D69: Darebin Creek - Middle | E69: 310 | F69: 0.2927122494 | G69: Bioretention | H69: 310 | I69: 0.6 | J69: 6430 | K69: 9.8 | L69: 50 | M69: - | N69: 0 | O69: 0 | P69: 0 | Q69: - | R69: 0 | S69: 472000 | T69: 5700 | V69: 569500 | W69: 0 | X69: 616000 | Y69: 0.924512987 | Z69: 12 | AA69: 0.3470526316 | AB69: 64
A70: 1065 | B70: Progress Park | C70: Reservoir | D70: Darebin Creek - Middle | E70: 80 | F70: 0.2321169777 | G70: Bioretention | H70: 80 | I70: 0.1 | J70: 1650 | K70: 2.5 | L70: 12.9 | M70: - | N70: 0 | O70: 0 | P70: 0 | Q70: - | R70: 0 | S70: 271000 | T70: 3400 | V70: 146931 | W70: 0 | X70: 347000 | Y70: 0.4234322767 | Z70: =_xlfn.IFNA(VLOOKUP(Y70,AA$1:AB$1228,2,FALSE),"") -> 49 | AA70: =IF(Y70="","",LARGE(Y$1:Y$1228,AB70)) -> 0.3392765957 | AB70: 65
A71: 1066 | B71: Ruthven Linear Reserve | C71: Reservoir | D71: Merri Creek - Upper | E71: 320 | F71: 0.2787478691 | G71: Bioretention | H71: 320 | I71: 1 | J71: 8800 | K71: 13 | L71: 60 | M71: - | N71: 0 | O71: 0 | P71: 0 | Q71: - | R71: 0 | S71: 458000 | T71: 5500 | V71: 683400 | W71: 0 | X71: 600000 | Y71: 1.139 | Z71: 8 | AA71: 0.3295226917 | AB71: =IF(Y71="","",AB70+1) -> 66
A72: 1067 | B72: LE Cotchin Reserve | C72: Reservoir | D72: Merri Creek - Upper | E72: 200 | F72: 0.3333753455 | G72: Bioretention | H72: 200 | I72: 3.1 | J72: 3780 | K72: 5.87 | L72: 30.9 | M72: L E Cotchin Res | N72: 3.5 | O72: 2.74 | P72: 0.785 | Q72: Below ground | R72: 180 | S72: 919000 | T72: 7600 | V72: 351951 | W72: 122000 | X72: 1083000 | Y72: 0.4376278855 | Z72: 43 | AA72: 0.3047194805 | AB72: 67
A73: 1068 | B73: Mayer Park | C73: Thornbury | D73: Merri Creek - Middle | E73: 190 | F73: 0.332683276 | G73: Bioretention | H73: 190 | I73: 10 | J73: 6000 | K73: 9 | L73: 50 | M73: Mayer Park | N73: 9.064 | O73: 7.31 | P73: 0.8081 | Q73: Below ground | R73: 590 | S73: 1150000 | T73: 7600 | V73: 569500 | W73: 326000 | X73: 1311000 | Y73: 0.6830663616 | Z73: 24 | AA73: 0.2148674276 | AB73: 68
Z134: =_xlfn.IFNA(VLOOKUP(Y134,AA$1:AB$1228,2,FALSE),"") ->  | AA134: =IF(Y134="","",LARGE(Y$1:Y$1228,AB134)) -> 
AB135: =IF(Y135="","",AB134+1) -> 
Z198: =_xlfn.IFNA(VLOOKUP(Y198,AA$1:AB$1228,2,FALSE),"") ->  | AA198: =IF(Y198="","",LARGE(Y$1:Y$1228,AB198)) -> 
AB199: =IF(Y199="","",AB198+1) -> 
Z262: =_xlfn.IFNA(VLOOKUP(Y262,AA$1:AB$1228,2,FALSE),"") ->  | AA262: =IF(Y262="","",LARGE(Y$1:Y$1228,AB262)) -> 
AB263: =IF(Y263="","",AB262+1) -> 
Z326: =_xlfn.IFNA(VLOOKUP(Y326,AA$1:AB$1228,2,FALSE),"") ->  | AA326: =IF(Y326="","",LARGE(Y$1:Y$1228,AB326)) -> 
AB327: =IF(Y327="","",AB326+1) -> 
Z390: =_xlfn.IFNA(VLOOKUP(Y390,AA$1:AB$1228,2,FALSE),"") ->  | AA390: =IF(Y390="","",LARGE(Y$1:Y$1228,AB390)) -> 
AB391: =IF(Y391="","",AB390+1) -> 
Z454: =_xlfn.IFNA(VLOOKUP(Y454,AA$1:AB$1228,2,FALSE),"") ->  | AA454: =IF(Y454="","",LARGE(Y$1:Y$1228,AB454)) -> 
AB455: =IF(Y455="","",AB454+1) -> 
Z518: =_xlfn.IFNA(VLOOKUP(Y518,AA$1:AB$1228,2,FALSE),"") ->  | AA518: =IF(Y518="","",LARGE(Y$1:Y$1228,AB518)) -> 
AB519: =IF(Y519="","",AB518+1) -> 
Z582: =_xlfn.IFNA(VLOOKUP(Y582,AA$1:AB$1228,2,FALSE),"") ->  | AA582: =IF(Y582="","",LARGE(Y$1:Y$1228,AB582)) -> 
AB583: =IF(Y583="","",AB582+1) -> 
Z646: =_xlfn.IFNA(VLOOKUP(Y646,AA$1:AB$1228,2,FALSE),"") ->  | AA646: =IF(Y646="","",LARGE(Y$1:Y$1228,AB646)) -> 
AB647: =IF(Y647="","",AB646+1) -> 
Z710: =_xlfn.IFNA(VLOOKUP(Y710,AA$1:AB$1228,2,FALSE),"") ->  | AA710: =IF(Y710="","",LARGE(Y$1:Y$1228,AB710)) -> 
AB711: =IF(Y711="","",AB710+1) -> 
Z774: =_xlfn.IFNA(VLOOKUP(Y774,AA$1:AB$1228,2,FALSE),"") ->  | AA774: =IF(Y774="","",LARGE(Y$1:Y$1228,AB774)) -> 
AB775: =IF(Y775="","",AB774+1) -> 
Z838: =_xlfn.IFNA(VLOOKUP(Y838,AA$1:AB$1228,2,FALSE),"") ->  | AA838: =IF(Y838="","",LARGE(Y$1:Y$1228,AB838)) -> 
AB839: =IF(Y839="","",AB838+1) -> 
Z902: =_xlfn.IFNA(VLOOKUP(Y902,AA$1:AB$1228,2,FALSE),"") ->  | AA902: =IF(Y902="","",LARGE(Y$1:Y$1228,AB902)) -> 
AB903: =IF(Y903="","",AB902+1) -> 
Z966: =_xlfn.IFNA(VLOOKUP(Y966,AA$1:AB$1228,2,FALSE),"") ->  | AA966: =IF(Y966="","",LARGE(Y$1:Y$1228,AB966)) -> 
AB967: =IF(Y967="","",AB966+1) -> 
Z1030: =_xlfn.IFNA(VLOOKUP(Y1030,AA$1:AB$1228,2,FALSE),"") ->  | AA1030: =IF(Y1030="","",LARGE(Y$1:Y$1228,AB1030)) -> 
AB1031: =IF(Y1031="","",AB1030+1) -> 
Z1094: =_xlfn.IFNA(VLOOKUP(Y1094,AA$1:AB$1228,2,FALSE),"") ->  | AA1094: =IF(Y1094="","",LARGE(Y$1:Y$1228,AB1094)) -> 
AB1095: =IF(Y1095="","",AB1094+1) -> 
Z1158: =_xlfn.IFNA(VLOOKUP(Y1158,AA$1:AB$1228,2,FALSE),"") ->  | AA1158: =IF(Y1158="","",LARGE(Y$1:Y$1228,AB1158)) -> 
AB1159: =IF(Y1159="","",AB1158+1) -> 
Z1222: =_xlfn.IFNA(VLOOKUP(Y1222,AA$1:AB$1228,2,FALSE),"") ->  | AA1222: =IF(Y1222="","",LARGE(Y$1:Y$1228,AB1222)) -> 
AB1223: =IF(Y1223="","",AB1222+1) -> 

Sheet Step 10
A1: STEP 10: Results for all sites (risks and opportunities)
A3: Site # | C3: 1001 | D3: 1002 | E3: 1003 | F3: 1004 | G3: 1005 | H3: 1006 | I3: 1007 | J3: 1008 | K3: 1009 | L3: 1010 | M3: 1011 | N3: 1012 | O3: 1013 | P3: 1014 | Q3: 1015 | R3: 1016 | S3: 1017 | T3: 1018 | U3: 1019 | V3: 1020 | W3: 1021 | X3: 1022 | Y3: 1023 | Z3: 1024 | AA3: 1025 | AB3: 1026 | AC3: 1027 | AD3: 1028 | AE3: 1029 | AF3: 1030 | AG3: 1031 | AH3: 1032 | AI3: 1033 | AJ3: 1034 | AK3: 1035 | AL3: 1036 | AM3: 1037 | AN3: 1038 | AO3: 1039 | AP3: 1040 | AQ3: 1041 | AR3: 1042 | AS3: 1043 | AT3: 1044 | AU3: 1045 | AV3: 1046 | AW3: 1047 | AX3: 1048 | AY3: 1049 | AZ3: 1050 | BA3: 1051 | BB3: 1052 | BC3: 1053 | BD3: 1054 | BE3: 1055 | BF3: 1056 | BG3: 1057 | BH3: 1058 | BI3: 1059 | BJ3: 1060 | BK3: 1061 | BL3: 1062 | BM3: 1063 | BN3: 1064 | BO3: 1065 | BP3: 1066 | BQ3: 1067 | BR3: 1068
A4: Site Name | C4: 40 Orchard Ave | D4: 35 Radford Rd | E4: Keon Park Childrens Hub | F4: J C Donath Reserve | G4: 3A Carson St | H4: 2 Ovay St | I4: Wilsons Blvd Reserve | J4: 102 Broadhurst Ave | K4: Edwardes Lake Park | L4: J E Moore Park | M4: Fyfe St Reserve | N4: T W Andrews Reserve (small) | O4: T W Andrews Reserve (large) | P4: Bundoora Park Golf Course | Q4: Arch Gibson Reserve | R4: HP Zwar Park | S4: McDonnell Park West | T4: Northcote Golf Course | U4: 58 Chifley Drive | V4: Penders Park | W4: Preston City Oval | X4: Ray Bramham Gardens | Y4: 3 Newman St | Z4: NARC Option East | AA4: LW Williams Reserve | AB4: 29 Cygna Street | AC4: Larkins Reserve | AD4: Roberts Reserve | AE4: Batman Park | AF4: Johnson Park | AG4: AH Capp Reserve | AH4: Egans Reserve | AI4: Bill Lawry Oval | AJ4: NARC Option West | AK4: Merri Park | AL4: McDonnell Park South (Wetland) | AM4: 26 Linaker Drive | AN4: Rubie Thomson Reserve | AO4: HLT Oulton Park | AP4: T H Westfield Reserve | AQ4: 8 Grand Ave | AR4: Darebin Parklands | AS4: Beenak Wetland Expansion | AT4: John Cain Park East | AU4: TW Blake Park | AV4: W Ruthven Vc Reserve | AW4: CH Sullivan Memorial Park | AX4: 26 Kerang Ave | AY4: McDonnell Park South (Bioretention) | AZ4: 7 Chenies St | BA4: 60 Ayr St | BB4: 102 Holt Parade | BC4: 1 Browning St | BD4: 3 Campbell St | BE4: CH Sullivan Memorial Park | BF4: CT Barling Reserve | BG4: KP Hardiman Reserve North | BH4: La Trobe Uni Hockey Club | BI4: 60 Winter Crescent | BJ4: 68 Winter Crescent | BK4: Breavington Park | BL4: 209 Wingrove St | BM4: 2 Broomfield Ave | BN4: 22 McComas St | BO4: Progress Park | BP4: Ruthven Linear Reserve | BQ4: LE Cotchin Reserve | BR4: Mayer Park
A5: Risks | B5: Landfill | C5: - | D5: - | E5: - | F5: - | G5: - | H5: - | I5: - | J5: - | K5: - | L5: - | M5: - | N5: - | O5: - | P5: - | Q5: - | R5: - | S5: - | T5: - | U5: - | V5: - | W5: - | X5: Ray Bramham Gardens (Waste type: Likely Putrescible) | Y5: - | Z5: - | AA5: - | AB5: - | AC5: - | AD5: - | AE5: - | AF5: - | AG5: - | AH5: Strettle St Reserve (Waste type: Unknown) | AI5: - | AJ5: - | AK5: - | AL5: - | AM5: - | AN5: Rubie Thompson Reserve (Waste type: Unknown) | AO5: - | AP5: T H Westfield Reserve (Waste type: Unknown) | AQ5: - | AR5: - | AS5: - | AT5: - | AU5: - | AV5: - | AW5: - | AX5: - | AY5: - | AZ5: - | BA5: - | BB5: - | BC5: - | BD5: - | BE5: - | BF5: - | BG5: - | BH5: - | BI5: - | BJ5: - | BK5: - | BL5: - | BM5: - | BN5: - | BO5: - | BP5: - | BQ5: - | BR5: -
B6: Cultural heritage | C6: Watercourse | D6: Watercourse | E6: - | F6: - | G6: - | H6: - | I6: Watercourse | J6: Watercourse | K6: Watercourse and Waterbody | L6: Waterbody | M6: - | N6: - | O6: - | P6: - | Q6: Watercourse | R6: - | S6: - | T6: Watercourse | U6: Watercourse | V6: - | W6: - | X6: - | Y6: - | Z6: - | AA6: - | AB6: - | AC6: - | AD6: - | AE6: - | AF6: - | AG6: Watercourse | AH6: Watercourse | AI6: Watercourse | AJ6: - | AK6: Watercourse | AL6: - | AM6: - | AN6: - | AO6: - | AP6: Watercourse | AQ6: - | AR6: Watercourse | AS6: Watercourse | AT6: Watercourse | AU6: - | AV6: - | AW6: Watercourse | AX6: Watercourse | AY6: - | AZ6: Watercourse | BA6: Watercourse | BB6: Watercourse | BC6: Watercourse | BD6: Watercourse | BE6: Watercourse | BF6: Watercourse | BG6: Registered site | BH6: Watercourse | BI6: Watercourse | BJ6: Watercourse | BK6: - | BL6: - | BM6: - | BN6: - | BO6: - | BP6: - | BQ6: - | BR6: -
B7: Natural heritage | C7: - | D7: Level: National | E7: Level: Local | F7: Level: Local | G7: - | H7: - | I7: - | J7: Level: Local | K7: Level: State | L7: Level: Local | M7: - | N7: Level: Local | O7: Level: Local | P7: Level: National | Q7: Level: State | R7: - | S7: - | T7: Level: Regional | U7: Level: Regional | V7: Level: Local | W7: - | X7: - | Y7: - | Z7: - | AA7: - | AB7: - | AC7: - | AD7: - | AE7: - | AF7: - | AG7: Level: Regional | AH7: Level: Regional | AI7: Level: Local | AJ7: - | AK7: Level: State | AL7: - | AM7: Level: State | AN7: - | AO7: - | AP7: - | AQ7: Level: Regional | AR7: Level: State | AS7: Level: State | AT7: Level: Local | AU7: - | AV7: - | AW7: Level: National | AX7: Level: State | AY7: - | AZ7: Level: State | BA7: Level: National | BB7: Level: National | BC7: Level: Regional | BD7: Level: Regional | BE7: Level: National | BF7: Level: State | BG7: Level: State | BH7: Level: State | BI7: Level: State | BJ7: Level: State | BK7: - | BL7: - | BM7: - | BN7: - | BO7: - | BP7: - | BQ7: Level: National | BR7: -
B8: Biodiversity | C8: Rank: 6. Highest Significance, Fauna: Warty Bell Frog (EPBC, TWV); Striped Legless Lizard (FFG, TWV);Fat-tailed Dunnart (TWW); Nankeen Night Herron (TWW), Flora: Dianella amoena (EPBC, VROTS); Callitriche brachycarpa (EPBC, FFG, VROTS); Tripogon loliiformis (VROTS), Threats: Public Use 1; Public Use 2; Weeds | D8: Rank: 3. Medium Significance, Fauna: None recorded, Flora: None recorded, Threats: Unknown | E8: - | F8: - | G8: - | H8: - | I8: - | J8: - | K8: Rank: 6. Highest Significance, Fauna: Brown Goshawk (EPBC); Hardhead (EPBC,TWV); Great Egret (EPBC,FFG, TWV); Warty Bell Frog (EPBC,FFG,TWV); Grey Goshawk (EPBC); Australian Pelican (EPBC); Black Swan (EPBC); Nankeen Night Herron (EPBC,TWV); Clamorous Reed-Warblers (EPBC), Flora: None recorded, Threats: Connectivity | L8: - | M8: - | N8: - | O8: - | P8: Rank: 6. Highest Significance, Fauna: Swift Parrot (EPBC, FFG, VROTS); Nankeen Night Heron (TWV); Royal Spoonbill (TWV); Great Egret (FFG, TWV); Warty Bell Frog (EPBC, TWV)., Flora: Dianella amoena (EPBC, VROTS), Threats: Weeds; Connectivity; Public Use 1; Dieback. | Q8: - | R8: - | S8: - | T8: Rank: 2. Moderate Significance, Fauna: None recorded, Flora: None recorded, Threats: Management; Weeds; Public Use 2 | U8: - | V8: Rank: 1. Low Significance, Fauna: None recorded, Flora: None recorded, Threats: Unknown | W8: - | X8: - | Y8: - | Z8: - | AA8: - | AB8: - | AC8: - | AD8: - | AE8: - | AF8: - | AG8: Rank: 4. High Significance, Fauna: None recorded, Flora: None recorded, Threats: Erosion; Weeds | AH8: Rank: 3. Medium Significance, Fauna: None recorded, Flora: None recorded, Threats: Weeds | AI8: Rank: 5. Very High Significance, Fauna: Large-footed Myotis (TWV); Swift Parrot (EPBC,FFG,TWV), Flora: None recorded, Threats: Weeds | AJ8: - | AK8: Rank: 5. Very High Significance, Fauna: None recorded, Flora: None recorded, Threats: Erosion; Weeds | AL8: - | AM8: - | AN8: - | AO8: - | AP8: - | AQ8: - | AR8: Rank: 6. Highest Significance, Fauna: Nankeen Night Heron (EPBC,TWV); Royal Spoonbill (TWV); Cattle Egret (EPBC); Pacific Black Duck (EPBC); Warty Bell Frog (EPBC,FFG,TWV), Flora: None recorded, Threats: Weeds | AS8: - | AT8: - | AU8: - | AV8: - | AW8: Rank: 6. Highest Significance, Fauna: Brown Goshawk (EPBC); Little Egret (EPBC, FFG, TWV); Great Egret (EPBC, FFG, TWV); Warty Bell Frog (EPBC, FFG, TWV), Flora: None recorded, Threats: Weeds, Management | AX8: Rank: 2. Moderate Significance, Fauna: None recorded, Flora: None recorded, Threats: Unknown | AY8: - | AZ8: - | BA8: - | BB8: - | BC8: - | BD8: Rank: 3. Medium Significance, Fauna: None recorded, Flora: None recorded, Threats: Weeds | BE8: Rank: 6. Highest Significance, Fauna: Brown Goshawk (EPBC); Little Egret (EPBC, FFG, TWV); Great Egret (EPBC, FFG, TWV); Warty Bell Frog (EPBC, FFG, TWV), Flora: None recorded, Threats: Weeds, Management | BF8: - | BG8: Rank: 2. Moderate Significance, Fauna: None recorded, Flora: None recorded, Threats: Unknown | BH8: Rank: 2. Moderate Significance, Fauna: None recorded, Flora: None recorded, Threats: Unknown | BI8: - | BJ8: - | BK8: - | BL8: - | BM8: - | BN8: - | BO8: - | BP8: - | BQ8: - | BR8: -
B9: Geological | C9: - | D9: - | E9: - | F9: - | G9: - | H9: - | I9: - | J9: - | K9: - | L9: - | M9: - | N9: - | O9: - | P9: - | Q9: - | R9: - | S9: - | T9: - | U9: - | V9: - | W9: - | X9: - | Y9: - | Z9: - | AA9: - | AB9: - | AC9: - | AD9: - | AE9: - | AF9: - | AG9: - | AH9: - | AI9: - | AJ9: - | AK9: - | AL9: - | AM9: - | AN9: - | AO9: - | AP9: - | AQ9: - | AR9: - | AS9: - | AT9: - | AU9: - | AV9: - | AW9: - | AX9: - | AY9: - | AZ9: - | BA9: - | BB9: - | BC9: - | BD9: - | BE9: - | BF9: - | BG9: - | BH9: - | BI9: - | BJ9: - | BK9: - | BL9: - | BM9: - | BN9: - | BO9: - | BP9: - | BQ9: - | BR9: -
B10: Flooding | C10: Within the 1 in 100yr Underground Drain flood extent | D10: - | E10: Adjacent to (but not within) the 1 in 100yr Underground Drain flood extent | F10: Within the 1 in 100yr Underground Drain flood extent | G10: - | H10: - | I10: - | J10: Within the 1 in 100yr Natural Drain flood extent | K10: Within the 1 in 100yr Natural Drain flood extent | L10: - | M10: Within the 1 in 100yr Underground Drain flood extent | N10: - | O10: - | P10: - | Q10: Within the 1 in 100yr Underground Drain flood extent | R10: - | S10: Within the 1 in 100yr Underground Drain flood extent | T10: Within the 1 in 100yr Natural Drain flood extent | U10: - | V10: - | W10: - | X10: Within the 1 in 100yr Underground Drain flood extent | Y10: Within the 1 in 100yr Underground Drain flood extent | Z10: Within the 1 in 100yr Underground Drain flood extent | AA10: - | AB10: Within the 1 in 100yr Underground Drain flood extent | AC10: - | AD10: - | AE10: - | AF10: - | AG10: Within the 1 in 100yr Natural Drain flood extent | AH10: Within the 1 in 100yr Natural Drain flood extent | AI10: - | AJ10: - | AK10: - | AL10: Within the 1 in 100yr Underground Drain flood extent | AM10: - | AN10: - | AO10: Within the 1 in 100yr Underground Drain flood extent | AP10: Within the 1 in 100yr Underground Drain flood extent | AQ10: - | AR10: - | AS10: Within the 1 in 100yr Underground Drain flood extent | AT10: - | AU10: - | AV10: - | AW10: - | AX10: - | AY10: Within the 1 in 100yr Underground Drain flood extent | AZ10: Within the 1 in 100yr Underground and Natural Drain flood extent | BA10: Within the 1 in 100yr Natural Drain flood extent | BB10: Within the 1 in 100yr Natural Drain flood extent | BC10: Within the 1 in 100yr Natural Drain flood extent | BD10: - | BE10: - | BF10: Within the 1 in 100yr Natural Drain flood extent | BG10: Within the 1 in 100yr Natural Drain flood extent | BH10: Within the 1 in 100yr Natural Drain flood extent | BI10: Within the 1 in 100yr Natural Drain flood extent | BJ10: Within the 1 in 100yr Natural Drain flood extent | BK10: - | BL10: - | BM10: Within the 1 in 100yr Underground Drain flood extent | BN10: - | BO10: - | BP10: - | BQ10: - | BR10: -
B11: Other | C11: - | D11: - | E11: - | F11: Active community group. | G11: - | H11: - | I11: - | J11: - | K11: This site is one of the most frequently used area of Edwardes Lake park and would not be an appropriate treatment site. There are small pavillions and bbq’s there and it adjoins the playground (which has recently been refurbished). | L11: Adjacent to sports ground. | M11: Adjacent to playground. | N11: Adjacent to playground. | O11: Adjacent to playground. | P11: More detailed data and modelling required. | Q11: Would require the removal of existing trees. | R11: Adjacent to sports ground. | S11: Adjacent to sports ground. | T11: - | U11: - | V11: - | W11: Adjacent to sports ground, constrained site. | X11: - | Y11: Adjacent to playground, congested site. | Z11: - | AA11: Adjacent to playground, congested site. | AB11: - | AC11: - | AD11: - | AE11: - | AF11: - | AG11: Adjacent to sports ground. | AH11: - | AI11: - | AJ11: - | AK11: There are competing uses at this site (e.g. sport, leisure and recreation). Baseball would likely want to retain this site. | AL11: Adjacent to sports ground. | AM11: - | AN11: High use area, active community group. | AO11: - | AP11: - | AQ11: Adjacent to sports ground. | AR11: Leachate management system in operation at Darebin Parklands. | AS11: - | AT11: - | AU11: Adjacent to sports ground. | AV11: Adjacent to sports ground. | AW11: - | AX11: Would require lengthy transfer main. | AY11: Adjacent to sports ground. | AZ11: Would require the removal of recently planted trees. | BA11: - | BB11: - | BC11: - | BD11: Would require lengthy transfer main. Adjacent to playground. | BE11: Would require lengthy transfer main. | BF11: - | BG11: Would require lengthy transfer main. | BH11: - | BI11: Would require lengthy transfer main. | BJ11: Would require lengthy transfer main. | BK11: - | BL11: - | BM11: Adjacent to playground. | BN11: Adjacent to playground. | BO11: - | BP11: - | BQ11: - | BR11: Adjacent to sports ground.
A12: Opportunities and Consultation Comments | C12: - | D12: - | E12: A wetland is included in the Masterplan for this site. The proposed design would include a larger wetland and underground storage for reuse. Preference to keep approach in keeping with masterplan but modify to expand wetland and reuse. Masterplan shows wetland adjacent oval. It is important that any design include an appropriate buffer and potentially a fence to seperate asset from the sports ground (probably larger buffer than what is inlcuded on the existing Masterplan is required). MW have a water supply pipe adjacent road, wanted to install an electrolysis system in park at one stage. The demand at this site may be higher with irrigaton of additional ovals planned in the near future. Site 1003 preferred over site 1004. | F12: Site 1003 preferred over site 1004. | G12: - | H12: - | I12: - | J12: - | K12: Treatment only site. Reuse for adjacent open space could potentially be supplied direclty from Edwardes Lake park (not considered / costed as part of this ranking). | L12: Treatment only site. Reuse for adjacent open space could potentially be supplied direclty from Edwardes Lake park (not considered / costed as part of this ranking). | M12: Site 1066 preferred over site 1011. Preference is to pursue stormwater harvesting opportunities over treatment only opportunities. | N12: Site 1015 preferred over site 1012 and 1013 as it includes stormwater harvesting. | O12: Site 1015 preferred over site 1012 and 1013 as it includes stormwater harvesting. | P12: High uncertainty. The existing system is complex and more information is required to model it accurately. Based on Workshop 1 this site was not selected to progress to the concept design stage there currently isn't a large driver to supply extra water to Bundoora Park (partly due to recent period of higher rainfall). | Q12: Site 1015 preferred over site 1012 and 1013 as it includes stormwater harvesting. Sites 1015, 1043 and 1050 have all been designed as stormwater harvesting systems that supply water for irrigation of John Hall Reserve. | R12: Site 1016 preferred over site 1021 as there is more space at site 1046 and an asset would provide greater community benefit. Currently used as overflow parking for TAFE but this shouldn't prevent using as wetland. Revised site area is on Council owned land. It would be good to have a water feature here as it would add to the amenity of the park and improve open space facilities for uni students. Overall considered a good site with potentially beneficial amenity outcomes as well as irrigation. | S12: Site 1036 preferred over sites 1017, 1024, 1034 and 1038. Limited site, active community and potential landfill. | T12: Not selected for concept design as the future use of this site is uncertain. | U12: Not a preferred site, too small. | V12: - | W12: Site 1016 preferred over site 1021 as there is more space at site 1046 and an asset would provide greater community benefit. This is an average site, not preferred given limited space. Could potentially bury tank in mound (banks) on south side of oval. Anecdotal evidence that mound could contain contaminated soil. Could expand treatment to the west (first tree has already been replaced, new tree easier to replace than established). Trees are heritage - elms and oaks, need to be replaced like for like. Subsurface drainage installed in oval so underground tank below oval not preferred. | X12: Site 1022 preferred over site 1023. Potential to incoporate treatment and flood retarding function at the site. Engineering has considered potential for surface flood detention at this site. There is a flood issue at railway crossing and potential for an integrated treatment and detention response. Existing wetland on site treats local catchment and dries out. Wetland is lined and could be expanded. Site is a landfill with clay cap so depends on depth of cap as to whether works viable, need geotechnical to confirm. This site generally considered a good opportunity subject to positive geotechnical testing. | Y12: Site 1022 preferred over site 1023 but site 1022 could be eliminated by geotechnical investigation. | Z12: Site 1036 preferred over sites 1017, 1024, 1034 and 1038. Redevelopment of NARC proposed with masterplan to be prepared, scope currenlty unclear but expected to occupy most of site with potential to build a new centre while keeping existing centre operational for construction. This will likely eliminate 1024 as an option with the site being built on. Site is a former landfill. Leaky pipes between pool and treatment plant to south mean ground is saturated in vicinty. | AA12: - | AB12: - | AC12: No active use, potential but treatment only. | AD12: - | AE12: - | AF12: - | AG12: - | AH12: - | AI12: There are plans for redevelopment of this site in the future, it may be a good contender for an undergound reuse scheme. A lot of rock in area. Main drains are close to surface in this area. | AJ12: Site 1036 preferred over sites 1017, 1024, 1034 and 1038. Considered unappealing to put a wetland/bioretention into limited space in front of aquatic centre. Not ideally suited for a treatment system. | AK12: - | AL12: Site 1036 (wetland) and site 1049 (bioretention) are exactly the same but use different treatment types and therefore have different treatment footprints. Site 1036 preferred over sites 1017, 1024, 1034 and 1038. This is a large area that is not really used and presents as a good option. The nets are fairly new but could be relocated. Trees could also be removed. A minimum buffer of 20m between the edge of the sports oval and start of batter has been provided. | AM12: - | AN12: Site 1036 preferred over sites 1017, 1024, 1034 and 1038. | AO12: Works already going ahead at this site. Possibility for treatment in south-east corner where there is some unused and redundant land that is flat and currently used as detention. Could be converted to provide bioretention and underground storage. | AP12: Yarra are looking at doing something in this area. Darebin could irrigated one site with harvested stormwater from this site, Yarra could irrigate multiple sites. Could look at a shared project led by Yarra but likely a more difficult project. | AQ12: - | AR12: Complex site that needs to consider the leachate management system in operation at Darebin Parklands. Sub-surface irrigation present at the site. | AS12: Sites 1015, 1043 and 1050 have all been designed as stormwater harvesting systems that supply water for irrigation of John Hall Reserve. Site 1015 has been selected for concept design. | AT12: - | AU12: - | AV12: Potential to incoporate treatment and flood retarding function at the site. Engineering has been looking at potential for surface flood detention at this site. Frequent flooding occurs downstream. The site area has been expanded to include the vacant grassed area adjacent to the cricket nets. The old pavillion is being demolished. | AW12: - | AX12: - | AY12: Site 1036 (wetland) and site 1049 (bioretention) are exactly the same but use different treatment types and therefore have different treatment footprints. Site 1036 preferred over sites 1017, 1024, 1034 and 1038. This is a large area that is not really used and presents as a good option. The nets are fairly new but could be relocated. Trees could also be removed. A minimum buffer of 20m between the edge of the sports oval and start of batter has been provided. | AZ12: Sites 1015, 1043 and 1050 have all been designed as stormwater harvesting systems that supply water for irrigation of John Hall Reserve. Site 1015 has been selected for concept design. | BA12: - | BB12: High uncertainty. The existing system is complex and more information is required to model it accurately. Based on Workshop 1 this site was not selected to progress to the concept design stage there currently isn't a large driver to supply extra water to Bundoora Park (partly due to recent period of higher rainfall). | BC12: - | BD12: - | BE12: - | BF12: - | BG12: - | BH12: - | BI12: - | BJ12: - | BK12: - | BL12: There may be additional land available here following grade seperation. During the grade separation this area is likely going to be used as a construction site. Engineering has reviewed previously for flood detention potential. Council owned site was too small to be feasible, purchasing land for sale adjacent was not cost effective. Major flooding issue exists downstream. Opportunity at Grange Rd & Ravenscourt Pl also investigated but no significant catchment in that location. | BM12: Constrained space. | BN12: Small site, not preferred. | BO12: - | BP12: Need to confirm before proceeding to concept design. Site 1066 preferred over site 1011. Preference is to pursue stormwater harvesting opportunities over treatment only opportunities. | BQ12: May be conflict in use at the site as already very space constrained. | BR12: -

Sheet Step 11
A1: STEP 11: Individual site summary
A2: =1 -> 1 | B2: Site | D2: # | G2: Enter site number here.
A3: =A2+1 -> 2 | D3: Name | F3: =_xlfn.IFNA(VLOOKUP($F$2,'Step 9'!$6:$1048576,'Step 11'!$A3,FALSE),"") -> 
A4: =A3+1 -> 3 | D4: Suburb | F4: =_xlfn.IFNA(VLOOKUP($F$2,'Step 9'!$6:$1048576,'Step 11'!$A4,FALSE),"") -> 
A5: 4 | D5: Catchment Location | F5: =_xlfn.IFNA(VLOOKUP($F$2,'Step 9'!$6:$1048576,'Step 11'!$A5,FALSE),"") -> 
A6: 5 | B6: Catchment | D6: Total Area (ha) | F6: =_xlfn.IFNA(VLOOKUP($F$2,'Step 9'!$6:$1048576,'Step 11'!$A6,FALSE),"") -> 
A7: 6 | D7: Directly Connected Imperviousness (DCI) | F7: =_xlfn.IFNA(VLOOKUP($F$2,'Step 9'!$6:$1048576,'Step 11'!$A7,FALSE),"") -> 
A8: 7 | B8: Treatment Performance | D8: Type | F8: =_xlfn.IFNA(VLOOKUP($F$2,'Step 9'!$6:$1048576,'Step 11'!$A8,FALSE),"") -> 
A9: 8 | D9: Area (m2) | F9: =_xlfn.IFNA(VLOOKUP($F$2,'Step 9'!$6:$1048576,'Step 11'!$A9,FALSE),"") -> 
A10: 9 | D10: Runoff Reduction (ML/yr) | F10: =_xlfn.IFNA(VLOOKUP($F$2,'Step 9'!$6:$1048576,'Step 11'!$A10,FALSE),"") -> 
A11: 10 | D11: Pollutant Load Reductions (kg/yr) | E11: TSS | F11: =_xlfn.IFNA(VLOOKUP($F$2,'Step 9'!$6:$1048576,'Step 11'!$A11,FALSE),"") -> 
A12: 11 | E12: TP | F12: =_xlfn.IFNA(VLOOKUP($F$2,'Step 9'!$6:$1048576,'Step 11'!$A12,FALSE),"") -> 
A13: 12 | E13: TN | F13: =_xlfn.IFNA(VLOOKUP($F$2,'Step 9'!$6:$1048576,'Step 11'!$A13,FALSE),"") -> 
A14: 13 | B14: Stormwater Reuse | D14: Demand | E14: Name | F14: =_xlfn.IFNA(VLOOKUP($F$2,'Step 9'!$6:$1048576,'Step 11'!$A14,FALSE),"") -> 
A15: 14 | E15: Volume (ML/yr) | F15: =_xlfn.IFNA(VLOOKUP($F$2,'Step 9'!$6:$1048576,'Step 11'!$A15,FALSE),"") -> 
A16: 15 | D16: Supply | E16: Volume (ML/yr) | F16: =_xlfn.IFNA(VLOOKUP($F$2,'Step 9'!$6:$1048576,'Step 11'!$A16,FALSE),"") -> 
A17: 16 | E17: Reliability | F17: =_xlfn.IFNA(VLOOKUP($F$2,'Step 9'!$6:$1048576,'Step 11'!$A17,FALSE),"") -> 
A18: 17 | B18: Storage | D18: Tank Type | F18: =_xlfn.IFNA(VLOOKUP($F$2,'Step 9'!$6:$1048576,'Step 11'!$A18,FALSE),"") -> 
A19: 18 | D19: Volume (kL) | F19: =_xlfn.IFNA(VLOOKUP($F$2,'Step 9'!$6:$1048576,'Step 11'!$A19,FALSE),"") -> 
A20: 19 | B20: Costs | D20: Capital ($) | F20: =_xlfn.IFNA(VLOOKUP($F$2,'Step 9'!$6:$1048576,'Step 11'!$A20,FALSE),"") -> 
A21: 20 | D21: Annual Maintenance ($) | F21: =_xlfn.IFNA(VLOOKUP($F$2,'Step 9'!$6:$1048576,'Step 11'!$A21,FALSE),"") -> 
A22: 21 | B22: Economic Assessment | C22: CLASS | D22: OBJECTIVE | E22: MEASURE
A23: 22 | C23: BENEFIT | D23: Improved stormwater quality | E23: Value of nitrogen abatement | F23: =_xlfn.IFNA(VLOOKUP($F$2,'Step 9'!$6:$1048576,'Step 11'!$A23,FALSE),"") -> 
A24: 23 | D24: Increased alternative water use | E24: Value of potable saving | F24: =_xlfn.IFNA(VLOOKUP($F$2,'Step 9'!$6:$1048576,'Step 11'!$A24,FALSE),"") -> 
A25: 24 | C25: COST | D25: Cost effective investment | E25: Life cycle cost | F25: =_xlfn.IFNA(VLOOKUP($F$2,'Step 9'!$6:$1048576,'Step 11'!$A25,FALSE),"") -> 
A26: 25 | B26: Benefit Cost Ratio (BCR) | F26: =_xlfn.IFNA(VLOOKUP($F$2,'Step 9'!$6:$1048576,'Step 11'!$A26,FALSE),"") -> 
A27: 26 | B27: =CONCATENATE('Step 9'!Z3," ",'Step 9'!Z4) -> Rank (1st = best of the total 68 sites assessed) | F27: =_xlfn.IFNA(VLOOKUP($F$2,'Step 9'!$6:$1048576,'Step 11'!$A27,FALSE),"") -> 
A28: 3 | B28: Risks | E28: Landfill | F28: =_xlfn.IFNA(HLOOKUP($F$2,'Step 10'!$3:$12,'Step 11'!$A28,FALSE),"") -> 
A29: =A28+1 -> 4 | E29: Cultural heritage | F29: =_xlfn.IFNA(HLOOKUP($F$2,'Step 10'!$3:$12,'Step 11'!A29,FALSE),"") -> 
A30: =A29+1 -> 5 | E30: Natural heritage | F30: =_xlfn.IFNA(HLOOKUP($F$2,'Step 10'!$3:$12,'Step 11'!A30,FALSE),"") -> 
A31: 6 | E31: Biodiversity | F31: =_xlfn.IFNA(HLOOKUP($F$2,'Step 10'!$3:$12,'Step 11'!A31,FALSE),"") -> 
A32: 7 | E32: Geological | F32: =_xlfn.IFNA(HLOOKUP($F$2,'Step 10'!$3:$12,'Step 11'!A32,FALSE),"") -> 
A33: 8 | E33: Flooding | F33: =_xlfn.IFNA(HLOOKUP($F$2,'Step 10'!$3:$12,'Step 11'!A33,FALSE),"") -> 
A34: 9 | E34: Other | F34: =_xlfn.IFNA(HLOOKUP($F$2,'Step 10'!$3:$12,'Step 11'!A34,FALSE),"") -> 
A35: 10 | B35: Opportunities | F35: =_xlfn.IFNA(HLOOKUP($F$2,'Step 10'!$3:$12,'Step 11'!A35,FALSE),"") -> 

Sheet Calculations (hidden)
A10: Contingency Type | B10: Column #
B11: 1 | C11: Site # | F11: =MAX('Step 9'!A:A)+1 -> 1069
B12: =B11+1 -> 2 | C12: Site Name | F12: ='Step 1'!D2 -> IW Dole
B13: =B12+1 -> 3 | C13: Suburb | F13: ='Step 1'!D4 -> Reservoir
B14: 4 | C14: Catchment | D14: Area (ha) | F14: ='Step 1'!D6 -> 100
B15: 5 | D15: Catchment Type | F15: -
B16: 6 | D16: Directly Connected Imperviousness (DCI) | E16: Area (ha) | F16: =F14*F17 -> 30
B17: 7 | E17: % | F17: 0.3 | G17: Average of sites assessed = 30%
B18: 8 | C18: Treatment Type | D18: Suggested | F18: =IF(F20=0,"Input total site area",IF(F16=0,"",IF((F22/(F16*10000))>=Lists!$G$84,"Wetland",IF(F22<=600,"Bioretention","Wetland or Bioretention")))) -> Wetland or Bioretention
B19: 9 | D19: Adopted | F19: =IF('Step 2'!D8="-",F18,'Step 2'!D8) -> Wetland
B20: 10 | C20: Treatment Site | D20: Total Area (m2) | F20: ='Step 2'!D2 -> 5800
B21: 11 | D21: Area Reduction Factor | F21: =IF(OR('Step 2'!D4<0,'Step 2'!D4>1),'Step 2'!D3,(IF('Step 2'!D4>0,'Step 2'!D4,'Step 2'!D3))) -> 0.3
B22: 12 | D22: Available Area (m2) | F22: =ROUNDUP((1-F21)*F20,-1) -> 4060
B23: 13 | D23: Area required to treat to best practice based on adopted treatment (m2) | F23: =IF(F20=0,"Input total site area",IFERROR(IF(OR(NOT('Step 1'!$D$8='Step 1'!$D$7),'Step 3'!$E$2="Yes"),"MUSIC modelling is required",ROUNDUP(VLOOKUP(F19,Lists!$B$84:$G$86,6,FALSE)*F16*10000,-1)),"Input user defined treatment type")) -> MUSIC modelling is required
B24: 14 | D24: Utilised Area (m2) | F24: =IF(F23="Input user defined treatment type","Input user defined treatment type",MIN(F22:F23)) -> 4060 | G24: Modiifed to allow bioretention systems >600m2
B25: 15 | C25: Treatment Performance | D25: Runoff Reduction (ML/yr) | F25: =IFERROR(IF(OR(NOT('Step 1'!$D$8='Step 1'!$D$7),'Step 3'!$E$2="Yes",AND('Step 2'!$D$6>600,'Step 2'!$D$8="Bioretention"),AND('Step 2'!$D$6>6000,'Step 2'!$D$8="Wetland")),"MUSIC modelling is required",IF(LEFT($F$19,3)=LEFT(Treatment!BF74,3),Treatment!BH74*Calculations!$F$24^Treatment!BI74,IF(LEFT($F$19,3)=LEFT(Treatment!BF78,3),Treatment!BH78*Calculations!$F$24^Treatment!BI78,"Error"))),"Input user defined treatment type") -> MUSIC modelling is required | G25: Based on design curves
B26: 16 | D26: Pollutant Load Reductions (kg/yr) | E26: TSS | F26: =IFERROR(IF(OR(NOT('Step 1'!$D$8='Step 1'!$D$7),'Step 3'!$E$2="Yes",AND('Step 2'!$D$6>600,'Step 2'!$D$8="Bioretention"),AND('Step 2'!$D$6>6000,'Step 2'!$D$8="Wetland")),"MUSIC modelling is required",IF(LEFT($F$19,3)=LEFT(Treatment!BF75,3),Treatment!BH75*Calculations!$F$24^Treatment!BI75,IF(LEFT($F$19,3)=LEFT(Treatment!BF79,3),Treatment!BH79*Calculations!$F$24^Treatment!BI79,"Error"))),"Input user defined treatment type") -> MUSIC modelling is required | G26: Based on design curves
B27: 17 | E27: TP | F27: =IFERROR(IF(OR(NOT('Step 1'!$D$8='Step 1'!$D$7),'Step 3'!$E$2="Yes",AND('Step 2'!$D$6>600,'Step 2'!$D$8="Bioretention"),AND('Step 2'!$D$6>6000,'Step 2'!$D$8="Wetland")),"MUSIC modelling is required",IF(LEFT($F$19,3)=LEFT(Treatment!BF76,3),Treatment!BH76*Calculations!$F$24^Treatment!BI76,IF(LEFT($F$19,3)=LEFT(Treatment!BF80,3),Treatment!BH80*Calculations!$F$24^Treatment!BI80,"Error"))),"Input user defined treatment type") -> MUSIC modelling is required | G27: Based on design curves
B28: 18 | E28: TN | F28: =IFERROR(IF(OR(NOT('Step 1'!$D$8='Step 1'!$D$7),'Step 3'!$E$2="Yes",AND('Step 2'!$D$6>600,'Step 2'!$D$8="Bioretention"),AND('Step 2'!$D$6>6000,'Step 2'!$D$8="Wetland")),"MUSIC modelling is required",IF(LEFT($F$19,3)=LEFT(Treatment!BF77,3),Treatment!BH77*Calculations!$F$24^Treatment!BI77,IF(LEFT($F$19,3)=LEFT(Treatment!BF81,3),Treatment!BH81*Calculations!$F$24^Treatment!BI81,"Error"))),"Input user defined treatment type") -> MUSIC modelling is required | G28: Based on design curves
B29: 19 | D29: Pollutant Load Reductions (%) | E29: TSS
B30: 20 | E30: TP
B31: 21 | E31: TN
B32: 22 | D32: Proportion of catchment treated to best practice | E32: TSS
B33: 23 | E33: TP
B34: 24 | E34: TN
B35: 25 | E35: Limiting pollutant
B36: 26 | D36: PV of nitrogen abatement ($) | F36: =IFERROR(IF('Step 2'!D6<=0,0,'Step 6'!$C$14*'WSUD Maintenance Constants'!$B$15),"MUSIC modelling is required") -> MUSIC modelling is required
B37: 27 | C37: Treatment to DCI Catchment Ratio
B38: 28 | C38: Stormwater Reuse | D38: Potential Stormwater Supply (ML/yr)
B39: 29 | D39: Seasonal Demand: Passive Irrigation | E39: Area (ha) | F39: ='Step 4'!D3 -> 0
B40: 30 | E40: Irrigation rate (ML/ha) | F40: 3.5
B41: 31 | E41: Volume (ML/yr) | F41: =F39*F40 -> 0
B42: 32 | D42: Seasonal Demand: Passive Irrigation | E42: Area (ha) | F42: ='Step 4'!D6 -> 0
B43: 33 | E43: Irrigation rate (ML/ha) | F43: 1.7
B44: 34 | E44: Volume (ML/yr) | F44: =F42*F43 -> 0
B45: 35 | D45: Seasonal Demand: Other (ML/yr) | F45: ='Step 4'!D9 -> 0
B46: 36 | D46: Seasonal Demand: Subtotal(ML/yr)
B47: 37 | D47: Constant Demand (ML/yr) | F47: ='Step 4'!D10 -> 0
B48: 38 | D48: Total Demand (ML/yr) | F48: =SUM(F41,F44,F45,F47) -> 0
B49: 39 | D49: Demand Name(s) | F49: ='Step 4'!D2 -> JC Donath Res and IW Dole
B50: 40 | D50: Reuse Volume (ML/yr) | F50: ='Step 4'!D14 -> 17.5
B51: 41 | D51: Reuse Reliability (% of annual demand) | F51: ='Step 4'!D15 -> 0.7
B52: 42 | D52: PV of Reuse Volume ($) | F52: =(-PV(DiscountRate,LengthOfAnalysis,F50)-F50)*PotableWaterPrice -> 781313.5009
B53: 43 | D53: Allowing for irrigation (3 days per week, 8 hours per day) | E53: Flow Rate (L/s)
B54: 44 | E54: Flow Rate (kL/d)
B55: 45 | D55: Allowing for seasonal demands only | E55: Flow Rate (L/s)
B56: 46 | E56: Flow Rate (kL/d)
B57: 47 | C57: Storage | D57: Tank Type | F57: ='Step 4'!D12 -> Below ground
B58: 48 | D58: Volume (kL) | F58: ='Step 4'!D13 -> 2500
B59: 49 | C59: Pipes | D59: Source to Treatment | E59: Peak Flow Rate (L/s) | F59: n/a
B60: 50 | E60: Length (m) | F60: ='Step 5'!D2 -> 0
B61: 51 | E61: Pipe Diameter (mm) | F61: ='Step 5'!D3 -> 300
B62: 52 | E62: =Lists!$B$35 -> Landuse Along Pipe Route | F62: Medium density urban
B63: 53 | E63: Pipe Type | F63: ='Step 5'!D4 -> Pressured
B64: 54 | E64: Capex | F64: =IF(OR(F59=0,F60=0),0,IF(F63="Gravity",F60*Costs!$AC$9,F60*VLOOKUP(F61,Pipes!$E$12:$K$27,Pipes!$J$28,FALSE))) -> 0
B65: 55 | D65: Treatment to Outlet | E65: Peak Flow Rate (L/s) | F65: n/a
B66: 56 | E66: Length (m) | F66: ='Step 5'!D5 -> 0
B67: 57 | E67: Pipe Diameter (mm) | F67: ='Step 5'!D6 -> 300
B68: 58 | E68: =Lists!$B$35 -> Landuse Along Pipe Route | F68: Medium density urban
B69: 59 | E69: Pipe Type | F69: ='Step 5'!D7 -> Gravity
B70: 60 | E70: Capex | F70: =IF(OR(F65=0,F66=0),0,IF(F69="Gravity",F66*Costs!$AC$9,F66*VLOOKUP(F67,Pipes!$E$12:$K$27,VLOOKUP(#REF!,Lists!$B$36:$C$38,2,FALSE),FALSE))) -> 0
B71: 61 | D71: Treatment to Storage | E71: Peak Flow Rate (L/s) | F71: n/a
B72: 62 | E72: Length (m) | F72: ='Step 5'!D8 -> 0
B73: 63 | E73: Pipe Diameter (mm) | F73: ='Step 5'!D9 -> 300
B74: 64 | E74: =Lists!$B$35 -> Landuse Along Pipe Route | F74: Medium density urban
B75: 65 | E75: Pipe Type | F75: ='Step 5'!D10 -> Gravity
B76: 66 | E76: Capex | F76: =IF(OR(F71=0,F72=0),0,IF(F75="Gravity",F72*Costs!$AC$9,F72*VLOOKUP(F73,Pipes!$E$12:$K$27,VLOOKUP(#REF!,Lists!$B$36:$C$38,2,FALSE),FALSE))) -> 0
B77: =B76+1 -> 67 | D77: Other | E77: Peak Flow Rate (L/s)
B78: 68 | E78: Length (m)
B79: 69 | E79: Pipe Diameter (mm)
B80: 70 | E80: =Lists!$B$35 -> Landuse Along Pipe Route
B81: 71 | E81: Pipe Type
B82: 72 | E82: Capex
A83: Pipes | B83: 73 | C83: Capex Pipes | D83: Sub-total | F83: =IF('Step 2'!D6<=0,0,SUM(F64,F70,F76,F82)) -> 0
B84: 74 | C84: Capex Treatment | D84: Diversion works | E84: Diversion Type | F84: Pumped diversion from pit with pipe diameter < 1000mm
A85: Generic | B85: 75 | E85: Diversion Cost | F85: =_xlfn.IFNA(VLOOKUP(F84,Costs!$AQ$4:$AR$11,2,FALSE),0) -> 5000
B86: 76 | D86: Pump | E86: Is pumping needed? | F86: =IF('Step 5'!$D$4="Gravity","No","Yes") -> Yes
B87: 77 | E87: Peak Flow Rate (L/s) | F87: =IFERROR(IF(F86="No",0,IF(LEFT(F19,3)=LEFT('Pump Rate'!$AF$2,3),($F$24/'Pump Rate'!$AF$3)^(1/'Pump Rate'!$AF$4),IF(LEFT(F19,3)=LEFT('Pump Rate'!$AF$35,3),($F$24/'Pump Rate'!$AF$36)^(1/'Pump Rate'!$AF$37),"Error"))),"Insufficient data") -> 197.4281166 | G87: Based on design curves
B88: 78 | E88: Pump Power (kW) | F88: =IFERROR(((9.81*F87)/1000)*(PumpingHead/PumpEfficiency),0) -> 13.83407017
A89: Pumps | B89: 79 | E89: Pump Cost | F89: =IF(F86="No",0,((Costs!$AF$79*(F88^Costs!$AG$79))/Costs!$AH$79)*10^6) -> 165232.8959
A90: Generic | B90: 80 | D90: Electrics and power | F90: 35000
A91: Generic | B91: 81 | D91: GPT | F91: =IFERROR(MIN((Costs!$BF$21*(F87^2))+(Costs!$BG$21*F87)+Costs!$BH$21,250000),0) -> 51692.37442
A92: Generic | B92: 82 | D92: WSUD Treatment | F92: =IFERROR(HLOOKUP(F19,CapitalCostConstantsTable,2,FALSE)*F24^HLOOKUP(F19,CapitalCostConstantsTable,3,FALSE),0) -> 423994.905
A93: Generic | B93: 83 | D93: Establishment (3.5 x annual maintenance) | F93: =IFERROR(3.5*F112,0) -> 25147.2868
B94: 84 | D94: Outlet works | E94: Outlet Type | F94: Standard outlet pit / end wall
A95: Generic | B95: 85 | E95: Outlet Cost | F95: =_xlfn.IFNA(VLOOKUP(F94,Costs!$AQ$4:$AR$11,2,FALSE),0) -> 4000
A96: Generic | B96: 86 | D96: Other | F96: 0
B97: 87 | D97: Sub-total | F97: =IF('Step 2'!D6<=0,0,SUM(F85,F89:F93,F95:F96)) -> 710067.4621
A98: Generic | B98: 88 | C98: Capex Stormwater Harvesting | D98: Tank | F98: =IF(F58=0,0,IF(F57="Above ground",VLOOKUP(F58,Costs!$N:$O,2,TRUE),IF(F57="Below ground",VLOOKUP(F58,Costs!$Q:$R,2,TRUE),0))) -> 1413020.763
A99: Pumps | B99: 89 | D99: Pump | F99: =0 -> 0
A100: Generic | B100: 90 | D100: Electrics and power | F100: =IF(F90>0,0,35000) -> 0
B101: 91 | D101: Pit works | E101: Pit Type | F101: =IF(F48=0,"-",Lists!$B$64) -> -
A102: Generic | B102: 92 | E102: Pit Cost | F102: =_xlfn.IFNA(VLOOKUP(F101,Costs!$AQ$4:$AR$11,2,FALSE),0) -> 0
A103: Generic | B103: 93 | D103: UV Treatment | F103: =IF('Step 4'!D11>0,25000,0) -> 0
B104: 94 | D104: Sub-total | F104: =SUM(F98:F100,F102:F103) -> 1413020.763
B105: 95 | C105: Total Capex | D105: Total Capex (exc contingencies) | F105: =F83+F97+F104 -> 2123088.225
A106: Generic | B106: 96 | D106: Contingency A: Contingency, investigations, design, supervision | F106: =(VLOOKUP($A83,Costs!$AT$6:$AY$8,3,FALSE)*F83)+(VLOOKUP($A85,Costs!$AT$6:$AY$8,3,FALSE)*F85)+(VLOOKUP($A89,Costs!$AT$6:$AY$8,3,FALSE)*F89)+(VLOOKUP($A90,Costs!$AT$6:$AY$8,3,FALSE)*F90)+(VLOOKUP($A91,Costs!$AT$6:$AY$8,3,FALSE)*F91)+(VLOOKUP($A92,Costs!$AT$6:$AY$8,3,FALSE)*F92)+(VLOOKUP($A93,Costs!$AT$6:$AY$8,3,FALSE)*F93)+(VLOOKUP($A95,Costs!$AT$6:$AY$8,3,FALSE)*F95)+(VLOOKUP($A96,Costs!$AT$6:$AY$8,3,FALSE)*F96)+(VLOOKUP($A98,Costs!$AT$6:$AY$8,3,FALSE)*F98)+(VLOOKUP($A99,Costs!$AT$6:$AY$8,3,FALSE)*F99)+(VLOOKUP($A100,Costs!$AT$6:$AY$8,3,FALSE)*F100)+(VLOOKUP($A102,Costs!$AT$6:$AY$8,3,FALSE)*F102)+(VLOOKUP($A103,Costs!$AT$6:$AY$8,3,FALSE)*F103) -> 842625.9742
B107: 97 | D107: Contingency B: Capital cost insurance, administration and procurement | F107: =(VLOOKUP($A83,Costs!$AT$6:$AY$8,4,FALSE)*F83)+(VLOOKUP($A85,Costs!$AT$6:$AY$8,4,FALSE)*F85)+(VLOOKUP($A89,Costs!$AT$6:$AY$8,4,FALSE)*F89)+(VLOOKUP($A90,Costs!$AT$6:$AY$8,4,FALSE)*F90)+(VLOOKUP($A91,Costs!$AT$6:$AY$8,4,FALSE)*F91)+(VLOOKUP($A92,Costs!$AT$6:$AY$8,4,FALSE)*F92)+(VLOOKUP($A93,Costs!$AT$6:$AY$8,4,FALSE)*F93)+(VLOOKUP($A95,Costs!$AT$6:$AY$8,4,FALSE)*F95)+(VLOOKUP($A96,Costs!$AT$6:$AY$8,4,FALSE)*F96)+(VLOOKUP($A98,Costs!$AT$6:$AY$8,4,FALSE)*F98)+(VLOOKUP($A99,Costs!$AT$6:$AY$8,4,FALSE)*F99)+(VLOOKUP($A100,Costs!$AT$6:$AY$8,4,FALSE)*F100)+(VLOOKUP($A102,Costs!$AT$6:$AY$8,4,FALSE)*F102)+(VLOOKUP($A103,Costs!$AT$6:$AY$8,4,FALSE)*F103)+(VLOOKUP($A106,Costs!$AT$6:$AY$8,4,FALSE)*F106) -> 136422.8532
B108: 98 | D108: Total Capex | F108: =IF('Step 2'!D6<=0,0,ROUND(SUM(F105:F107),-3)) -> 3102000
A109: Pipes | B109: 99 | C109: Opex (annual) Pipes | D109: Sub-total | F109: =VLOOKUP($A109,Costs!$AT$6:$AY$8,2,FALSE)*F83 -> 0
A110: Pumps | B110: 100 | C110: Opex (annual) Treatment | D110: Pump | F110: =VLOOKUP($A110,Costs!$AT$6:$AY$8,2,FALSE)*F89 -> 2478.493438
A111: Generic | B111: 101 | D111: GPT | F111: =Costs!$BE$20 -> 1650
A112: Generic | B112: 102 | D112: WSUD Treatment | F112: =IFERROR(HLOOKUP(F19,MaintenanceCostConstantsTable,2,FALSE)*F24^HLOOKUP(F19,MaintenanceCostConstantsTable,3,FALSE),0) -> 7184.939087
A113: Generic | B113: 103 | D113: Other | F113: 0
B114: 104 | D114: Sub-total | F114: =SUM(F110:F113) -> 11313.43253
A115: Generic | B115: 105 | C115: Opex (annual) Stormwater Harvesting | D115: Tank | F115: =IF(F48="-",0,Costs!$W$8*((F58/2)^Costs!$X$8)) -> 5603.156026
A116: Pumps | B116: 106 | D116: Pump | F116: =VLOOKUP($A116,Costs!$AT$6:$AY$8,2,FALSE)*F99 -> 0
A117: Generic | B117: 107 | D117: Other | F117: 0
B118: 108 | D118: Sub-total | F118: =SUM(F115:F117) -> 5603.156026
B119: 109 | C119: Total Opex (annual) | D119: Total Opex (annual) (exc contingencies) | F119: =SUM(F109,F114,F118) -> 16916.58855
A120: Generic | B120: 110 | D120: Contingency A: Maintenance design, supervision | F120: =(VLOOKUP($A109,Costs!$AT$6:$AY$8,5,FALSE)*F109)+(VLOOKUP($A110,Costs!$AT$6:$AY$8,5,FALSE)*F110)+(VLOOKUP($A111,Costs!$AT$6:$AY$8,5,FALSE)*F111)+(VLOOKUP($A112,Costs!$AT$6:$AY$8,5,FALSE)*F112)+(VLOOKUP($A113,Costs!$AT$6:$AY$8,5,FALSE)*F113)+(VLOOKUP($A115,Costs!$AT$6:$AY$8,5,FALSE)*F115)+(VLOOKUP($A116,Costs!$AT$6:$AY$8,5,FALSE)*F116)+(VLOOKUP($A117,Costs!$AT$6:$AY$8,5,FALSE)*F117) -> 2029.990626
B121: 111 | D121: Contingency B: Maintenance administration, procurement | F121: =(VLOOKUP($A109,Costs!$AT$6:$AY$8,6,FALSE)*F109)+(VLOOKUP($A110,Costs!$AT$6:$AY$8,6,FALSE)*F110)+(VLOOKUP($A111,Costs!$AT$6:$AY$8,6,FALSE)*F111)+(VLOOKUP($A112,Costs!$AT$6:$AY$8,6,FALSE)*F112)+(VLOOKUP($A113,Costs!$AT$6:$AY$8,6,FALSE)*F113)+(VLOOKUP($A115,Costs!$AT$6:$AY$8,6,FALSE)*F115)+(VLOOKUP($A116,Costs!$AT$6:$AY$8,6,FALSE)*F116)+(VLOOKUP($A117,Costs!$AT$6:$AY$8,6,FALSE)*F117)+(VLOOKUP($A120,Costs!$AT$6:$AY$8,6,FALSE)*F120) -> 1515.726334
B122: 112 | D122: Total Opex (annual) | F122: =IF('Step 2'!D6<=0,0,ROUND(SUM(F119:F121),-2)) -> 20500
B123: 113 | C123: Renewal | D123: WSUD Treatment | E123: Year Constructed | F123: 2017
B124: 114 | E124: Lifespan (with maintenance) | F124: =IFERROR(VLOOKUP(F19,LifespanTable,3,FALSE),0) -> 25
B125: 115 | E125: Renewal Cost | F125: =IFERROR(ROUND(VLOOKUP(F19,RenewalCostPercentages,2,FALSE)*F92,-3),0) -> 509000
B126: 116 | E126: Replacement 1 | F126: =IF(F$123+F$124<=(StartYear+LengthOfAnalysis),F$123+F$124,0) -> 2042
B127: 117 | E127: Replacement 2 | F127: =IF(F$126+F$124<=(StartYear+LengthOfAnalysis),F$126+F$124,0) -> 2067
B128: 118 | E128: Replacement 3 | F128: =IF(F$127+F$124<=(StartYear+LengthOfAnalysis),F$127+F$124,0) -> 0
B129: 119 | C129: Present Value (PV) | D129: Time period of analysis (years) | F129: =LengthOfAnalysis -> 50
B130: 120 | D130: Discount rate (%) | F130: =DiscountRate -> 0.055
B131: 121 | D131: PV Opex | F131: =-PV(F$130,F$129,F122) -> 347096.117
B132: 122 | D132: PV Renewal Cost | F132: =IF(F126>0,(F125/(1+DiscountRate)^(F126-StartYear)),0)+IF(F127>0,(F125/(1+DiscountRate)^(F127-StartYear)),0)+IF(F128>0,(F125/(1+DiscountRate)^(F128-StartYear))) -> 168479.1117
B133: 123 | D133: PV Renewal Cost (annual) | F133: =-PMT(DiscountRate,LengthOfAnalysis,F132) -> 9950.62065
B134: 124 | D134: Total PV costs | F134: =ROUND(F108+SUM(F131:F132),-3) -> 3618000

Sheet Lists (hidden)
B2: Treatment type
B3: -
B4: Wetland
B5: Bioretention
B6: Swale
B7: Tree pit
B8: Other
B11: Imperviousness
B12: -
B13: Residential
B14: Industrial
B15: ???
B16: ???
B17: ???
B20: Demand type
B21: -
B22: Active irrigation
B23: Passive irrigation
B24: Active and passive irrigation
B25: Toilet flushing
B26: Other
B29: Tank Type
B30: Select
B31: Above ground
B32: Below ground
B35: Landuse Along Pipe Route | C35: Ref #
B36: Medium density urban | C36: =Pipes!$J$28 -> 6
B37: High density urban (e.g. CBD) | C37: =Pipes!$K$28 -> 0
B38: Greenfield / Open Space | C38: =Pipes!$I$28 -> Vlookup
B41: Pipe Type
B42: -
B43: Gravity
B44: Pressured
B47: Inlet Pit Works
B48: -
B49: Gravity diversion from standard pit
B50: Pumped diversion from pit with pipe diameter < 1000mm
B51: Pumped diversion from pit with pipe diameter > 1000mm
B52: Gravity / pumped diversion from multi-chamber pit
B55: Outlet Pit Works
B56: -
B57: Standard outlet pit / end wall
B58: Non standard outlet pit / end wall
B61: SW Harvesting Pit Works
B62: -
B63: Standard pit
B64: Multi-chamber pit
B67: Catchment Type
B68: -
B69: Residential
B70: Mixed Residential and Commercial
B71: Commercial
B72: Industrial
B75: Pumping Required?
B76: -
B77: Yes
B78: No
B81: Rules of Thumb for Preliminary Sizing
D82: Treatment Area (m2) | E82: Catchment | G82: Treatment to DCI Catchment Ratio
E83: Total Area (ha) | F83: DCI Area (ha)
B84: Wetland | C84: Sediment pond | D84: 1680 | E84: 100 | F84: 30 | G84: =SUM(D84:D85)/(F84*10000) -> 0.0336
C85: Wetland | D85: 8400
B86: Bioretention | D86: 1500 | E86: 100 | F86: 30 | G86: =D86/(F86*10000) -> 0.005
B89: Bypass Curves
C90: m | D90: c
B91: Lo-flow bypass rate (cum/sec) | C91: 0.0268 | D91: 0.0044
B92: Hi-flow bypass rate (cum/sec) | C92: 1.9495 | D92: 0.0029
B95: Catchments
B96: -
B97: Merri Creek - Upper
B98: Merri Creek - Middle
B99: Merri Creek - Lower
B100: Darebin Creek - Upper
B101: Darebin Creek - Middle
B102: Darebin Creek - Lower
B103: Yarra River - Lower
B104: Yarra River - Upper

Sheet Pump Rate (hidden)
A1: Site # | B1: Treatment type | C1: Treatment type | D1: Catchment area (ha) | E1: Catchment impervious fraction (%) | F1: Impervious catchment area (ha) | G1: Surface area (m2) | H1: Lo-flow bypass rate (cum/sec) | I1: High Flow By-pass (cubic metres per sec) | J1: Diversion Pump Rate (L/s) | AF1: Adopted
A2: 1 | B2: Bioretention | C2: =IF(LEFT(B2,1)="B","Bioretention","Wetland") -> Bioretention | D2: 24.12368 | E2: 38.04076916 | F2: =(E2/100)*D2 -> 9.176833422 | G2: 360 | H2: 0.003520833277 | I2: 0.15 | J2: =(I2-H2)*1000 -> 146.4791667 | AF2: Bioretention
A3: 2 | B3: Bioretention | C3: Bioretention | D3: 19.51827 | E3: 50.29492389 | F3: 9.816699041 | G3: 420 | H3: 0.003489679223 | I3: 0.2 | J3: 196.5103208 | AC3: Coefficients | AE3: 8.4574 | AF3: 12.649 | AG3: 8.7126
A4: 6 | B4: Bioretention | C4: Bioretention | D4: 8.24833 | E4: 36.15471689 | F4: 2.98216036 | G4: 120 | H4: 0.001162145496 | I4: 0.06 | J4: 58.8378545 | AE4: 0.775 | AF4: 0.7077 | AG4: 0.7773
A5: 7 | B5: Bioretention | C5: Bioretention | D5: 9.94429 | E5: 27.19343092 | F5: 2.704193632 | G5: 110 | H5: 0.001162272653 | I5: 0.055 | J5: 53.83772735 | AD5: X | AE5: Y-B | AF5: Y-BwSW | AG5: B-All
A6: 8 | B6: Bioretention | C6: Bioretention | D6: 11.47244 | E6: 24.06630735 | F6: 2.760992671 | G6: 110 | H6: 0.001244733396 | I6: 0.055 | J6: 53.7552666 | AD6: 0 | AE6: =AE$3*($AD6^AE$4) -> 0 | AF6: 0 | AG6: 0
A7: 9 | B7: Bioretention | C7: Bioretention | D7: 35.07707 | E7: 33.82277348 | F7: 11.86403793 | G7: 460 | H7: 0.004722953245 | I7: 0.175 | J7: 170.2770468 | AD7: 10 | AE7: 50.37753013 | AF7: 64.52918686 | AG7: 52.17323618
A8: 10 | B8: Bioretention | C8: Bioretention | D8: 34.93504 | E8: 33.90750498 | F8: 11.84560043 | G8: 450 | H8: 0.004711762675 | I8: 0.2 | J8: 195.2882373 | AD8: 20 | AE8: 86.20552837 | AF8: 105.3889604 | AG8: 89.42076716
A9: 11 | B9: Bioretention | C9: Bioretention | D9: 48.69836 | E9: 24.98010704 | F9: 12.16490246 | G9: 250 | H9: 0.005402921699 | I9: 0.07 | J9: 64.5970783 | AD9: 30 | AE9: 118.0336518 | AF9: 140.4154527 | AG9: 122.550229
A10: 12 | B10: Bioretention | C10: Bioretention | D10: 8.98457 | E10: 24.46262958 | F10: 2.197862078 | G10: 90 | H10: 0.000984348117 | I10: 0.045 | J10: 44.01565188 | AD10: 40 | AE10: 147.5140425 | AF10: 172.1210744 | AG10: 153.2600656
A11: 13 | B11: Bioretention | C11: Bioretention | D11: 137.68993 | E11: 24.66259113 | F11: 33.95790446 | G11: 560 | H11: 0.01515907532 | I11: 0.15 | J11: 134.8409247 | AD11: 50 | AE11: 175.3632658 | AF11: 201.565994 | AG11: 182.2876139
A12: 19 | B12: Bioretention | C12: Bioretention | D12: 310.74722 | E12: 39.37704896 | F12: 122.363085 | G12: 290 | H12: 0.04646618445 | I12: 0.1 | J12: 53.53381555 | AD12: 60 | AE12: 201.9780107 | AF12: 229.3262833 | AG12: 210.0413218
A13: 23 | B13: Bioretention | C13: Bioretention | D13: 494.2191 | E13: 32.75767314 | F13: 161.8946774 | G13: 370 | H13: 0.06513341394 | I13: 0.13 | J13: 64.86658606 | AD13: 70 | AE13: 227.6081728 | AF13: 255.7596774 | AG13: 236.7786185
A14: 25 | B14: Bioretention | C14: Bioretention | D14: 73.38239 | E14: 27.58210487 | F14: 20.24040776 | G14: 510 | H14: 0.008653254441 | I14: 0.138 | J14: 129.3467456 | AD14: 80 | AE14: 252.424562 | AF14: 281.1078518 | AG14: 262.6755333
A15: 28 | B15: Bioretention | C15: Bioretention | D15: 33.11603 | E15: 26.4567895 | F15: 8.761438347 | G15: 60 | H15: 0.003805170797 | I15: 0.016 | J15: 12.1948292 | AD15: 90 | AE15: 276.5507345 | AF15: 305.5438991 | AG15: 287.8594415
A16: 29 | B16: Bioretention | C16: Bioretention | D16: 23.79023 | E16: 25.62161437 | F16: 6.095440987 | G16: 260 | H16: 0.002680348305 | I16: 0.12 | J16: 117.3196517 | AD16: 100 | AE16: 300.0798758 | AF16: 329.1972454 | AG16: 312.4264368
A17: 62 | B17: Bioretention | C17: Bioretention | D17: 68.25104 | E17: 32.65313933 | F17: 22.28610718 | G17: 130 | H17: 0.008975722485 | I17: 0.035 | J17: 26.02427751 | AD17: 120 | AE17: 345.6227625 | AF17: 374.5353036 | AG17: 359.9940795
A18: 63 | B18: Bioretention | C18: Bioretention | D18: 156.28624 | E18: 35.17824807 | F18: 54.9787612 | G18: 120 | H18: 0.02161090256 | I18: 0.043 | J18: 21.38909744 | AD18: 140 | AE18: 389.480841 | AF18: 417.7062788 | AG18: 405.8196743
A19: 64 | B19: Bioretention | C19: Bioretention | D19: 37.65308 | E19: 29.27122494 | F19: 11.02151774 | G19: 310 | H19: 0.004610502275 | I19: 0.09 | J19: 85.38949772 | AD19: 160 | AE19: 431.9463992 | AF19: 459.104875 | AG19: 450.2049216
A20: 65 | B20: Bioretention | C20: Bioretention | D20: 11.93942 | E20: 23.21169777 | F20: 2.771342086 | G20: 80 | H20: 0.001268054159 | I20: 0.024 | J20: 22.73194584 | AD20: 180 | AE20: 473.2308655 | AF20: 499.0137867 | AG20: 493.3681323
A21: 66 | B21: Bioretention | C21: Bioretention | D21: 231.27844 | E21: 27.87478691 | F21: 64.46837233 | G21: 320 | H21: 0.02745377514 | I21: 0.09 | J21: 62.54622486 | AD21: 200 | AE21: 513.4936981 | AF21: 537.6443924 | AG21: 535.4740037
A22: 17 | B22: Bioretention with SW harvesting | C22: Bioretention | D22: 176.57687 | E22: 27.31720467 | F22: 48.23586499 | G22: 450 | H22: 0.0206965941 | I22: 0.11 | J22: 89.3034059 | AD22: 250 | AE22: 610.4363377 | AF22: 629.6197415 | AG22: 636.893101
A23: 21 | B23: Bioretention with SW harvesting | C23: Bioretention | D23: 52.30477 | E23: 37.64026554 | F23: 19.68765432 | G23: 150 | H23: 0.007577701238 | I23: 0.0372 | J23: 29.62229876 | AD23: 300 | AE23: 703.0817804 | AF23: 716.3329107 | AG23: 733.8615386
A24: 31 | B24: Bioretention with SW harvesting | C24: Bioretention | D24: 10.20269 | E24: 31.57273644 | F24: 3.221268423 | G24: 140 | H24: 0.001312218297 | I24: 0.065 | J24: 63.6877817 | AD24: 350 | AE24: 792.2999085 | AF24: 798.9013362 | AG24: 827.2787458
A25: 33 | B25: Bioretention with SW harvesting | C25: Bioretention | D25: 75.30692 | E25: 26.43533301 | F25: 19.90763508 | G25: 540 | H25: 0.008648750682 | I25: 0.155 | J25: 146.3512493 | AD25: 400 | AE25: 878.6853076 | AF25: 878.0799254 | AG25: 917.7597501
A26: 34 | B26: Bioretention with SW harvesting | C26: Bioretention | D26: 149.50008 | E26: 28.3820674 | F26: 42.43121346 | G26: 510 | H26: 0.01794956873 | I26: 0.132 | J26: 114.0504313 | AD26: 450 | AE26: 962.6680751 | AF26: 954.4093572 | AG26: 1005.749587
A27: 35 | B27: Bioretention with SW harvesting | C27: Bioretention | D27: 239.56592 | E27: 33.16783592 | F27: 79.45883126 | G27: 600 | H27: 0.03183586726 | I27: 0.15 | J27: 118.1641327 | AD27: 500 | AE27: 1044.572588 | AF27: 1028.293912 | AG27: 1091.583997
A28: 39 | B28: Bioretention with SW harvesting | C28: Bioretention | D28: 74.87297 | E28: 25.60179814 | F28: 19.16882664 | G28: 510 | H28: 0.008431656221 | I28: 0.145 | J28: 136.5683438
A29: 45 | B29: Bioretention with SW harvesting | C29: Bioretention | D29: 28.58771 | E29: 30.32331456 | F29: 8.668741229 | G29: 350 | H29: 0.003581081889 | I29: 0.15 | J29: 146.4189181
A30: 46 | B30: Bioretention with SW harvesting | C30: Bioretention | D30: 39.42992 | E30: 19.1727019 | F30: 7.559781023 | G30: 310 | H30: 0.003760937794 | I30: 0.15 | J30: 146.2390622
A31: 49 | B31: Bioretention with SW harvesting | C31: Bioretention | D31: 176.57687 | E31: 27.31720467 | F31: 48.23586499 | G31: 600 | H31: 0.0206965941 | I31: 0.144 | J31: 123.3034059
A32: 54 | B32: Bioretention with SW harvesting | C32: Bioretention | D32: 14.51499 | E32: 41.72578358 | F32: 6.056493314 | G32: 250 | H32: 0.002261799768 | I32: 0.12 | J32: 117.7382002
A33: 60 | B33: Bioretention with SW harvesting | C33: Bioretention | D33: 17.8008 | E33: 25.53896094 | F33: 4.546139359 | G33: 190 | H33: 0.002001600548 | I33: 0.09 | J33: 87.99839945
A34: 67 | B34: Bioretention with SW harvesting | C34: =IF(LEFT(B34,1)="B","Bioretention","Wetland") -> Bioretention | D34: 14.34918 | E34: 33.33753455 | F34: =(E34/100)*D34 -> 4.783662841 | G34: 200 | H34: 0.001913385561 | I34: 0.103 | J34: =(I34-H34)*1000 -> 101.0866144 | AF34: Adopted
A35: 68 | B35: Bioretention with SW harvesting | C35: Bioretention | D35: 706.97392 | E35: 33.2683276 | F35: 235.1983997 | G35: 190 | H35: 0.09414002361 | I35: 0.127 | J35: 32.85997639 | AF35: Wetland
A36: 5 | B36: Wetland | C36: Wetland | D36: 7.65625 | E36: 44.22927523 | F36: 3.386303885 | G36: 791.6666667 | H36: 0.001244404441 | I36: 0.04 | J36: 38.75559556 | AE36: 93.292 | AF36: 79.948 | AG36: 88.694
A37: 20 | B37: Wetland | C37: Wetland | D37: 18.48063 | E37: 26.46666994 | F37: 4.891207345 | G37: 675 | H37: 0.002123991289 | I37: 0.024 | J37: 21.87600871 | AE37: 0.6227 | AF37: 0.7431 | AG37: 0.7034
A38: 22 | B38: Wetland | C38: Wetland | D38: 455.77446 | E38: 32.64993011 | F38: 148.8100427 | G38: 791.6666667 | H38: 0.05993516767 | I38: 0.075 | J38: 15.06483233 | AD38: X | AE38: Y-W | AF38: Y-WwSW | AG38: Y-All
A39: 26 | B39: Wetland | C39: Wetland | D39: 68.17507 | E39: 27.29347116 | F39: 18.60734307 | G39: 641.6666667 | H39: 0.007986471023 | I39: 0.022 | J39: 14.01352898 | AD39: 0 | AE39: =AE$36*($AD39^AE$37) -> 0 | AF39: 0 | AG39: 0
A40: 27 | B40: Wetland | C40: Wetland | D40: 24.99301 | E40: 31.12060963 | F40: 7.777977076 | G40: 958.3333333 | H40: 0.003184190296 | I40: 0.033 | J40: 29.8158097 | AD40: 10 | AE40: 391.331136 | AF40: 442.4942216 | AG40: 448.01674
A41: 30 | B41: Wetland | C41: Wetland | D41: 21.83266 | E41: 26.54039972 | F41: 5.794475234 | G41: 1500 | H41: 0.002513556403 | I41: 0.115 | J41: 112.4864436 | AD41: 20 | AE41: 602.5537337 | AF41: 740.6328888 | AG41: 729.5225831
A42: 32 | B42: Wetland | C42: Wetland | D42: 9.97076 | E42: 16.80921511 | F42: 1.676006497 | G42: 475 | H42: 0.0008878831811 | I42: 0.036 | J42: 35.11211682 | AD42: 30 | AE42: 775.6178743 | AF42: 1001.051471 | AG42: 970.2895009
A43: 37 | B43: Wetland | C43: Wetland | D43: 64.34288 | E43: 31.12263269 | F43: 20.0251982 | G43: 2458.333333 | H43: 0.008197839838 | I43: 0.085 | J43: 76.80216016 | AD43: 40 | AE43: 927.7846015 | AF43: 1239.647998 | AG43: 1187.909183
A44: 40 | B44: Wetland | C44: Wetland | D44: 75.30692 | E44: 26.43533301 | F44: 19.90763508 | G44: 5158.333333 | H44: 0.008648750682 | I44: 0.38 | J44: 371.3512493 | AD44: 50 | AE44: 1066.087927 | AF44: 1463.228711 | AG44: 1389.791792
A45: 44 | B45: Wetland | C45: Wetland | D45: 70.7636 | E45: 36.65589053 | F45: 25.93902775 | G45: 675 | H45: 0.01006525784 | I45: 0.025 | J45: 14.93474216 | AD45: 60 | AE45: 1194.260827 | AF45: 1675.528417 | AG45: 1579.959051
A46: 61 | B46: Wetland | C46: Wetland | D46: 31.7646 | E46: 41.10259336 | F46: 13.05607437 | G46: 541.6666667 | H46: 0.004896670331 | I46: 0.018 | J46: 13.10332967 | AD46: 70 | AE46: 1314.579796 | AF46: 1878.883953 | AG46: 1760.90612
A47: 3 | B47: Wetland with SW harvesting | C47: Wetland | D47: 100.01905 | E47: 32.94386427 | F47: 32.95014008 | G47: 3383.333333 | H47: 0.01323147574 | I47: 0.11 | J47: 96.76852426 | AD47: 80 | AE47: 1428.560174 | AF47: 2074.883768 | AG47: 1934.3174
A48: 4 | B48: Wetland with SW harvesting | C48: Wetland | D48: 100.01905 | E48: 32.94386427 | F48: 32.95014008 | G48: 3141.666667 | H48: 0.01323147574 | I48: 0.1 | J48: 86.76852426 | AD48: 90 | AE48: 1537.27376 | AF48: 2264.671489 | AG48: 2101.398523
A49: 14 | B49: Wetland with SW harvesting | C49: Wetland | D49: 23.25534 | E49: 44.50318433 | F49: 10.34936683 | G49: 1116.666667 | H49: 0.003796865269 | I49: 0.037 | J49: 33.20313473 | AD49: 100 | AE49: 1641.513292 | AF49: 2449.106121 | AG49: 2263.05048
A50: 15 | B50: Wetland with SW harvesting | C50: Wetland | D50: 169.36034 | E50: 25.0523411 | F50: 42.42873006 | G50: 3758.333333 | H50: 0.01882275462 | I50: 0.13 | J50: 111.1772454 | AD50: 120 | AE50: 1838.868043 | AF50: 2804.446683 | AG50: 2572.707011
A51: 16 | B51: Wetland with SW harvesting | C51: Wetland | D51: 323.07571 | E51: 30.24263406 | F51: 97.70660473 | G51: 1058.333333 | H51: 0.04040070131 | I51: 0.062 | J51: 21.59929869 | AD51: 140 | AE51: 2024.129673 | AF51: 3144.816773 | AG51: 2867.34996
A52: 18 | B52: Wetland with SW harvesting | C52: Wetland | D52: 706.97392 | E52: 33.2683276 | F52: 235.1983997 | G52: 8908.333333 | H52: 0.09414002361 | I52: 0.3 | J52: 205.8599764 | AD52: 160 | AE52: 2199.631431 | AF52: 3472.875088 | AG52: 3149.722098
A53: 24 | B53: Wetland with SW harvesting | C53: Wetland | D53: 149.50008 | E53: 28.3820674 | F53: 42.43121346 | G53: 608.3333333 | H53: 0.01794956873 | I53: 0.03 | J53: 12.05043127 | AD53: 180 | AE53: 2367.023625 | AF53: 3790.535797 | AG53: 3421.786603
A54: 36 | B54: Wetland with SW harvesting | C54: Wetland | D54: 176.57687 | E54: 27.31720467 | F54: 48.23586499 | G54: 1191.666667 | H54: 0.0206965941 | I54: 0.045 | J54: 24.3034059 | AD54: 200 | AE54: 2527.526874 | AF54: 4099.236675 | AG54: 3685.010592
A55: 38 | B55: Wetland with SW harvesting | C55: Wetland | D55: 216.69905 | E55: 27.89890254 | F55: 60.45665678 | G55: 666.6666667 | H55: 0.02573714222 | I55: 0.038 | J55: 12.26285778 | AD55: 250 | AE55: 2904.301151 | AF55: 4838.567725 | AG55: 4311.270214
A56: 41 | B56: Wetland with SW harvesting | C56: Wetland | D56: 8.92963 | E56: 11.35588332 | F56: 1.014038363 | G56: 291.6666667 | H56: 0.0006646660014 | I56: 0.021 | J56: 20.335334 | AD56: 300 | AE56: 3253.47751 | AF56: 5540.595031 | AG56: 4901.187668
A57: 42 | B57: Wetland with SW harvesting | C57: Wetland | D57: 22.1446 | E57: 25.77206807 | F57: 5.707121385 | G57: 1600 | H57: 0.002503870931 | I57: 0.117 | J57: 114.4961291 | AD57: 350 | AE57: 3581.257714 | AF57: 6213.045979 | AG57: 5462.503194
A58: 43 | B58: Wetland with SW harvesting | C58: Wetland | D58: 82.59778 | E58: 25.62448464 | F58: 21.16525545 | G58: 1700 | H58: 0.009306590781 | I58: 0.055 | J58: 45.69340922 | AD58: 400 | AE58: 3891.769949 | AF58: 6861.173212 | AG58: 6000.441961
A59: 47 | B59: Wetland with SW harvesting | C59: Wetland | D59: 11.678 | E59: 24.37065775 | F59: 2.846005412 | G59: 779.1666667 | H59: 0.00127656145 | I59: 0.059 | J59: 57.72343855 | AD59: 450 | AE59: 4187.934069 | AF59: 7488.758452 | AG59: 6518.743965
A60: 48 | B60: Wetland with SW harvesting | C60: Wetland | D60: 54.69912 | E60: 26.16043121 | F60: 14.30952566 | G60: 958.3333333 | H60: 0.006241714157 | I60: 0.03 | J60: 23.75828584 | AD60: 500 | AE60: 4471.909699 | AF60: 8098.642235 | AG60: 7020.204163
A61: 50 | B61: Wetland with SW harvesting | C61: Wetland | D61: 91.79296 | E61: 25.27583975 | F61: 23.20144147 | G61: 3283.333333 | H61: 0.01025687655 | I61: 0.115 | J61: 104.7431234
A62: 51 | B62: Wetland with SW harvesting | C62: Wetland | D62: 16.91523 | E62: 29.83260064 | F62: 5.046253013 | G62: 683.3333333 | H62: 0.002096665927 | I62: 0.025 | J62: 22.90333407
A63: 52 | B63: Wetland with SW harvesting | C63: Wetland | D63: 15.46813 | E63: 37.41863847 | F63: 5.787963643 | G63: 1050 | H63: 0.002231771976 | I63: 0.045 | J63: 42.76822802
A64: 53 | B64: Wetland with SW harvesting | C64: Wetland | D64: 34.56704 | E64: 35.96533417 | F64: 12.43215145 | G64: 1175 | H64: 0.004852766348 | I64: 0.037 | J64: 32.14723365
A65: 55 | B65: Wetland with SW harvesting | C65: Wetland | D65: 176.19636 | E65: 30 | F65: 52.858908 | G65: 1008.333333 | H65: 0.02191882718 | I65: 0.044 | J65: 22.08117282
A66: 56 | B66: Wetland with SW harvesting | C66: =IF(LEFT(B66,1)="B","Bioretention","Wetland") -> Wetland | D66: 17.44331 | E66: 28.15497032 | F66: =(E66/100)*D66 -> 4.911158754 | G66: 1250 | H66: 0.002083696186 | I66: 0.1 | J66: =(I66-H66)*1000 -> 97.91630381
A67: 57 | B67: Wetland with SW harvesting | C67: Wetland | D67: 54.69912 | E67: 26.16043121 | F67: 14.30952566 | G67: 3750 | H67: 0.006241714157 | I67: 0.3 | J67: 293.7582858
A68: 58 | B68: Wetland with SW harvesting | C68: Wetland | D68: 54.69912 | E68: 26.16043121 | F68: 14.30952566 | G68: 2316.666667 | H68: 0.006241714157 | I68: 0.09 | J68: 83.75828584
A69: 59 | B69: Wetland with SW harvesting | C69: Wetland | D69: 17.8008 | E69: 25.53896094 | F69: 4.546139359 | G69: 850 | H69: 0.002001600548 | I69: 0.038 | J69: 35.99839945

Sheet Treatment (hidden)
A1: Site # | B1: Site Name | C1: Suburb | D1: Catchment | H1: Treatment Type | J1: Treatment Site | O1: Treatment Performance | AA1: Storage | AD1: Bio - NO HARVESTING | AK1: Wetland - NO HARVESTING | AR1: PASTE SPECIAL - Bio - NO HARVESTING | AY1: PASTE SPECIAL - Wetland - NO HARVESTING
D2: Area (ha) | E2: Catchment Type | F2: Directly Connected Imperviousness (DCI) | H2: Suggested | I2: Adopted | J2: Total Area (m2) | K2: Area Reduction Factor | L2: Available Area (m2) | M2: Area required to treat to best practice based on adopted treatment (m2) | N2: Utilised Area (m2) | O2: Runoff Reduction (ML/yr) | P2: Pollutant Load Reductions (kg/yr) | S2: Pollutant Load Reductions (%) | V2: Proportion of catchment treated to best practice | Z2: PV of nitrogen abatement ($) | AA2: Tank Type | AB2: Volume (kL) | AD2: Utilised Area (m2) | AE2: DCI % | AF2: Runoff Reduction (ML/yr) | AG2: Pollutant Load Reductions (kg/yr) | AK2: Utilised Area (m2) | AL2: DCI % | AM2: Runoff Reduction (ML/yr) | AN2: Pollutant Load Reductions (kg/yr) | AR2: Utilised Area (m2) | AS2: DCI % | AT2: Runoff Reduction (ML/yr) | AU2: TSS | AV2: TP | AW2: TN | AY2: Utilised Area (m2) | AZ2: DCI % | BA2: Runoff Reduction (ML/yr) | BB2: TSS | BC2: TP | BD2: TN
F3: Area (ha) | G3: % | P3: TSS | Q3: TP | R3: TN | S3: TSS | T3: TP | U3: TN | V3: TSS | W3: TP | X3: TN | Y3: Limiting pollutant | AG3: TSS | AH3: TP | AI3: TN | AN3: TSS | AO3: TP | AP3: TN
A4: 1001 | B4: 40 Orchard Ave | C4: Reservoir | D4: 24.12368 | E4: - | F4: 9.176833422 | G4: 0.3804076916 | H4: Bioretention | I4: Bioretention | J4: 506.1 | K4: 0.3 | L4: 360 | M4: 460 | N4: 360 | O4: 0.7 | P4: 6710 | Q4: 10 | R4: 52 | S4: 0.65 | T4: 0.457 | U4: 0.336 | V4: 0.8125 | W4: 1.015555556 | X4: 0.7466666667 | Y4: 0.7466666667 | Z4: 592280 | AA4: - | AB4: 0 | AD4: =IF(AND($I4="Bioretention",$AB4<=0),N4,"") -> 360 | AE4: =IF(AND($I4="Bioretention",$AB4<=0),F4,"") -> 9.176833422 | AF4: =IF(AND($I4="Bioretention",$AB4<=0),O4,"") -> 0.7 | AG4: =IF(AND($I4="Bioretention",$AB4<=0),P4,"") -> 6710 | AH4: =IF(AND($I4="Bioretention",$AB4<=0),Q4,"") -> 10 | AI4: =IF(AND($I4="Bioretention",$AB4<=0),R4,"") -> 52 | AK4: =IF(AND($I4="Wetland",$AB4<=0),N4,"") ->  | AL4: =IF(AND($I4="Wetland",$AB4<=0),F4,"") ->  | AM4: =IF(AND($I4="Wetland",$AB4<=0),O4,"") ->  | AN4: =IF(AND($I4="Wetland",$AB4<=0),P4,"") ->  | AO4: =IF(AND($I4="Wetland",$AB4<=0),Q4,"") ->  | AP4: =IF(AND($I4="Wetland",$AB4<=0),R4,"") ->  | AR4: 360 | AS4: 9.176833422 | AT4: 0.7 | AU4: 6710 | AV4: 10 | AW4: 52
A5: 1002 | B5: 35 Radford Rd | C5: Reservoir | D5: 19.51827 | E5: - | F5: 9.816699041 | G5: 0.5029492389 | H5: Bioretention | I5: Bioretention | J5: 598 | K5: 0.3 | L5: 420 | M5: 500 | N5: 420 | O5: 0.8 | P5: 7460 | Q5: 11.2 | R5: 59 | S5: 0.684 | T5: 0.492 | U5: 0.368 | V5: 0.855 | W5: 1.093333333 | X5: 0.8177777778 | Y5: 0.8177777778 | Z5: 672010 | AA5: - | AB5: 0 | AD5: 420 | AE5: 9.816699041 | AF5: 0.8 | AG5: 7460 | AH5: 11.2 | AI5: 59 | AR5: 420 | AS5: 9.816699041 | AT5: 0.8 | AU5: 7460 | AV5: 11.2 | AW5: 59
A6: 1003 | B6: Keon Park Childrens Hub | C6: Reservoir | D6: 100.01905 | E6: - | F6: 32.95014008 | G6: 0.3294386427 | H6: Wetland | I6: Wetland | J6: 5798.8 | K6: 0.3 | L6: 4060 | M6: 11080 | N6: 4060 | O6: 32 | P6: 12500 | Q6: 22 | R6: 131 | S6: 0.331 | T6: 0.275 | U6: 0.228 | V6: 0.41375 | W6: 0.6111111111 | X6: 0.5066666667 | Y6: 0.41375 | Z6: 1492090 | AA6: Below ground | AB6: 3400
A7: 1004 | B7: J C Donath Reserve | C7: Reservoir | D7: 100.01905 | E7: - | F7: 32.95014008 | G7: 0.3294386427 | H7: Wetland | I7: Wetland | J7: 5375 | K7: 0.3 | L7: 3770 | M7: 11080 | N7: 3770 | O7: 32 | P7: 11600 | Q7: 20.4 | R7: 124 | S7: 0.307 | T7: 0.256 | U7: 0.216 | V7: 0.38375 | W7: 0.5688888889 | X7: 0.48 | Y7: 0.38375 | Z7: 1412360 | AA7: Below ground | AB7: 3400
A8: 1005 | B8: 3A Carson St | C8: Reservoir | D8: 7.65625 | E8: - | F8: 3.386303885 | G8: 0.4422927523 | H8: Wetland | I8: Wetland | J8: 1356.3 | K8: 0.3 | L8: 950 | M8: 1140 | N8: 950 | O8: 1 | P8: 2220 | Q8: 3.83 | R8: 17.9 | S8: 0.583 | T8: 0.481 | U8: 0.318 | V8: 0.72875 | W8: 1.068888889 | X8: 0.7066666667 | Y8: 0.7066666667 | Z8: 203881 | AA8: - | AB8: 0 | AK8: 950 | AL8: 3.386303885 | AM8: 1 | AN8: 2220 | AO8: 3.83 | AP8: 17.9 | AY8: 950 | AZ8: 3.386303885 | BA8: 1 | BB8: 2220 | BC8: 3.83 | BD8: 17.9
A9: 1006 | B9: 2 Ovay St | C9: Reservoir | D9: 8.24833 | E9: - | F9: 2.98216036 | G9: 0.3615471689 | H9: Bioretention | I9: Bioretention | J9: 749.8 | K9: 0.3 | L9: 530 | M9: 150 | N9: 120 | O9: 0.2 | P9: 2240 | Q9: 3.34 | R9: 17.2 | S9: 0.664 | T9: 0.464 | U9: 0.337 | V9: 0.83 | W9: 1.031111111 | X9: 0.7488888889 | Y9: 0.7488888889 | Z9: 195908 | AA9: - | AB9: 0 | AD9: 120 | AE9: 2.98216036 | AF9: 0.2 | AG9: 2240 | AH9: 3.34 | AI9: 17.2 | AR9: 120 | AS9: 2.98216036 | AT9: 0.2 | AU9: 2240 | AV9: 3.34 | AW9: 17.2
A10: 1007 | B10: Wilsons Blvd Reserve | C10: Reservoir | D10: 9.94429 | E10: - | F10: 2.704193632 | G10: 0.2719343092 | H10: Bioretention | I10: Bioretention | J10: 444.2 | K10: 0.3 | L10: 320 | M10: 140 | N10: 110 | O10: 0.2 | P10: 2030 | Q10: 2.98 | R10: 15.4 | S10: 0.649 | T10: 0.445 | U10: 0.323 | V10: 0.81125 | W10: 0.9888888889 | X10: 0.7177777778 | Y10: 0.7177777778 | Z10: 175406 | AA10: - | AB10: 0 | AD10: 110 | AE10: 2.704193632 | AF10: 0.2 | AG10: 2030 | AH10: 2.98 | AI10: 15.4 | AR10: 110 | AS10: 2.704193632 | AT10: 0.2 | AU10: 2030 | AV10: 2.98 | AW10: 15.4
A11: 1008 | B11: 102 Broadhurst Ave | C11: Reservoir | D11: 11.47244 | E11: - | F11: 2.760992671 | G11: 0.2406630735 | H11: Bioretention | I11: Bioretention | J11: 188.3 | K11: 0.3 | L11: 140 | M11: 140 | N11: 110 | O11: 0.2 | P11: 2040 | Q11: 3.06 | R11: 15.9 | S11: 0.637 | T11: 0.433 | U11: 0.31 | V11: 0.79625 | W11: 0.9622222222 | X11: 0.6888888889 | Y11: 0.6888888889 | Z11: 181101 | AA11: - | AB11: 0 | AD11: 110 | AE11: 2.760992671 | AF11: 0.2 | AG11: 2040 | AH11: 3.06 | AI11: 15.9 | AR11: 110 | AS11: 2.760992671 | AT11: 0.2 | AU11: 2040 | AV11: 3.06 | AW11: 15.9
A12: 1009 | B12: Edwardes Lake Park | C12: Reservoir | D12: 35.07707 | E12: - | F12: 11.86403793 | G12: 0.3382277348 | H12: Bioretention | I12: Bioretention | J12: 646.2 | K12: 0.3 | L12: 460 | M12: 600 | N12: 460 | O12: 0.9 | P12: 8580 | Q12: 12.8 | R12: 67 | S12: 0.627 | T12: 0.446 | U12: 0.325 | V12: 0.78375 | W12: 0.9911111111 | X12: 0.7222222222 | Y12: 0.7222222222 | Z12: 763130 | AA12: - | AB12: 0 | AD12: 460 | AE12: 11.86403793 | AF12: 0.9 | AG12: 8580 | AH12: 12.8 | AI12: 67 | AR12: 460 | AS12: 11.86403793 | AT12: 0.9 | AU12: 8580 | AV12: 12.8 | AW12: 67
A13: 1010 | B13: J E Moore Park | C13: Reservoir | D13: 34.93504 | E13: - | F13: 11.84560043 | G13: 0.3390750498 | H13: Wetland | I13: Bioretention | J13: 1221.4 | K13: 0.3 | L13: 860 | M13: 600 | N13: 450 | O13: 0.8 | P13: 8580 | Q13: 13 | R13: 67 | S13: 0.64 | T13: 0.447 | U13: 0.323 | V13: 0.8 | W13: 0.9933333333 | X13: 0.7177777778 | Y13: 0.7177777778 | Z13: 763130 | AA13: - | AB13: 0 | AD13: 450 | AE13: 11.84560043 | AF13: 0.8 | AG13: 8580 | AH13: 13 | AI13: 67 | AR13: 450 | AS13: 11.84560043 | AT13: 0.8 | AU13: 8580 | AV13: 13 | AW13: 67
A14: 1011 | B14: Fyfe St Reserve | C14: Reservoir | D14: 48.69836 | E14: - | F14: 12.16490246 | G14: 0.2498010704 | H14: Bioretention | I14: Bioretention | J14: 351.6 | K14: 0.3 | L14: 250 | M14: 610 | N14: 250 | O14: 0.5 | P14: 5860 | Q14: 8.8 | R14: 44 | S14: 0.414 | T14: 0.285 | U14: 0.199 | V14: 0.5175 | W14: 0.6333333333 | X14: 0.4422222222 | Y14: 0.4422222222 | Z14: 501160 | AA14: - | AB14: 0 | AD14: 250 | AE14: 12.16490246 | AF14: 0.5 | AG14: 5860 | AH14: 8.8 | AI14: 44 | AR14: 250 | AS14: 12.16490246 | AT14: 0.5 | AU14: 5860 | AV14: 8.8 | AW14: 44
A15: 1012 | B15: T W Andrews Reserve (small) | C15: Reservoir | D15: 8.98457 | E15: - | F15: 2.197862078 | G15: 0.2446262958 | H15: Bioretention | I15: Bioretention | J15: 771 | K15: 0.3 | L15: 540 | M15: 110 | N15: 90 | O15: 0.2 | P15: 1607 | Q15: 2.45 | R15: 12.6 | S15: 0.646 | T15: 0.442 | U15: 0.319 | V15: 0.8075 | W15: 0.9822222222 | X15: 0.7088888889 | Y15: 0.7088888889 | Z15: 143514 | AA15: - | AB15: 0 | AD15: 90 | AE15: 2.197862078 | AF15: 0.2 | AG15: 1607 | AH15: 2.45 | AI15: 12.6 | AR15: 90 | AS15: 2.197862078 | AT15: 0.2 | AU15: 1607 | AV15: 2.45 | AW15: 12.6
A16: 1013 | B16: T W Andrews Reserve (large) | C16: Reservoir | D16: 137.68993 | E16: - | F16: 33.95790446 | G16: 0.2466259113 | H16: Bioretention | I16: Bioretention | J16: 786.4 | K16: 0.3 | L16: 560 | M16: 1700 | N16: 560 | O16: 1 | P16: 14000 | Q16: 21 | R16: 104 | S16: 0.348 | T16: 0.242 | U16: 0.166 | V16: 0.435 | W16: 0.5377777778 | X16: 0.3688888889 | Y16: 0.3688888889 | Z16: 1184560 | AA16: - | AB16: 0 | AD16: 560 | AE16: 33.95790446 | AF16: 1 | AG16: 14000 | AH16: 21 | AI16: 104 | AR16: 560 | AS16: 33.95790446 | AT16: 1 | AU16: 14000 | AV16: 21 | AW16: 104
A17: 1014 | B17: Bundoora Park Golf Course | C17: Bundoora | D17: 23.25534 | E17: - | F17: 10.34936683 | G17: 0.4450318433 | H17: Wetland | I17: Wetland | J17: 1906.8 | K17: 0.3 | L17: 1340 | M17: 3480 | N17: 1340 | O17: 7.1 | P17: 4000 | Q17: 6.8 | R17: 36 | S17: 0.342 | T17: 0.274 | U17: 0.208 | V17: 0.4275 | W17: 0.6088888889 | X17: 0.4622222222 | Y17: 0.4275 | Z17: 410040 | AA17: Below ground | AB17: 420
A18: 1015 | B18: Arch Gibson Reserve | C18: Reservoir | D18: 169.36034 | E18: - | F18: 42.42873006 | G18: 0.250523411 | H18: Wetland | I18: Wetland | J18: 6432.3 | K18: 0.3 | L18: 4510 | M18: 14260 | N18: 4510 | O18: 8 | P18: 12700 | Q18: 21.3 | R18: 100 | S18: 0.26 | T18: 0.194 | U18: 0.129 | V18: 0.325 | W18: 0.4311111111 | X18: 0.2866666667 | Y18: 0.2866666667 | Z18: 1139000 | AA18: Below ground | AB18: 130
A19: 1016 | B19: HP Zwar Park | C19: Preston | D19: 323.07571 | E19: - | F19: 97.70660473 | G19: 0.3024263406 | H19: Wetland | I19: Wetland | J19: 1803.6 | K19: 0.3 | L19: 1270 | M19: 32830 | N19: 1270 | O19: 8 | P19: 3000 | Q19: 7 | R19: 30 | S19: 0.033 | T19: 0.027 | U19: 0.021 | V19: 0.04125 | W19: 0.06 | X19: 0.04666666667 | Y19: 0.04125 | Z19: 341700 | AA19: Below ground | AB19: 610
A20: 1017 | B20: McDonnell Park West | C20: Northcote | D20: 176.57687 | E20: - | F20: 48.23586499 | G20: 0.2731720467 | H20: Bioretention | I20: Bioretention | J20: 640.2 | K20: 0.3 | L20: 450 | M20: 2420 | N20: 450 | O20: 5 | P20: 13000 | Q20: 20.2 | R20: 97 | S20: 0.238 | T20: 0.167 | U20: 0.113 | V20: 0.2975 | W20: 0.3711111111 | X20: 0.2511111111 | Y20: 0.2511111111 | Z20: 1104830 | AA20: Below ground | AB20: 290
A21: 1018 | B21: Northcote Golf Course | C21: Thornbury | D21: 706.97392 | E21: - | F21: 235.1983997 | G21: 0.332683276 | H21: Wetland | I21: Wetland | J21: 15267.5 | K21: 0.3 | L21: 10690 | M21: 79030 | N21: 10690 | O21: 20 | P21: 29000 | Q21: 48 | R21: 230 | S21: 0.11 | T21: 0.084 | U21: 0.057 | V21: 0.1375 | W21: 0.1866666667 | X21: 0.1266666667 | Y21: 0.1266666667 | Z21: 2619700 | AA21: Below ground | AB21: 250
A22: 1019 | B22: 58 Chifley Drive | C22: Preston | D22: 310.74722 | E22: - | F22: 122.363085 | G22: 0.3937704896 | H22: Bioretention | I22: Bioretention | J22: 406.1 | K22: 0.3 | L22: 290 | M22: 6120 | N22: 290 | O22: 1 | P22: 8000 | Q22: 13 | R22: 60 | S22: 0.06 | T22: 0.043 | U22: 0.029 | V22: 0.075 | W22: 0.09555555556 | X22: 0.06444444444 | Y22: 0.06444444444 | Z22: 683400 | AA22: - | AB22: 0 | AD22: 290 | AE22: 122.363085 | AF22: 1 | AG22: 8000 | AH22: 13 | AI22: 60 | AR22: 290 | AS22: 122.363085 | AT22: 1 | AU22: 8000 | AV22: 13 | AW22: 60
A23: 1020 | B23: Penders Park | C23: Thornbury | D23: 18.48063 | E23: - | F23: 4.891207345 | G23: 0.2646666994 | H23: Wetland | I23: Wetland | J23: 1144.6 | K23: 0.3 | L23: 810 | M23: 1650 | N23: 810 | O23: 0.9 | P23: 2090 | Q23: 3.57 | R23: 16.6 | S23: 0.375 | T23: 0.296 | U23: 0.189 | V23: 0.46875 | W23: 0.6577777778 | X23: 0.42 | Y23: 0.42 | Z23: 189074 | AA23: - | AB23: 0 | AK23: 810 | AL23: 4.891207345 | AM23: 0.9 | AN23: 2090 | AO23: 3.57 | AP23: 16.6 | AY23: 810 | AZ23: 4.891207345 | BA23: 0.9 | BB23: 2090 | BC23: 3.57 | BD23: 16.6
A24: 1021 | B24: Preston City Oval | C24: Preston | D24: 52.30477 | E24: - | F24: 19.68765432 | G24: 0.3764026554 | H24: Bioretention | I24: Bioretention | J24: 210.7 | K24: 0.3 | L24: 150 | M24: 990 | N24: 150 | O24: 5 | P24: 4400 | Q24: 6.9 | R24: 37 | S24: 0.191 | T24: 0.146 | U24: 0.109 | V24: 0.23875 | W24: 0.3244444444 | X24: 0.2422222222 | Y24: 0.23875 | Z24: 421430 | AA24: Below ground | AB24: 370
A25: 1022 | B25: Ray Bramham Gardens | C25: Preston | D25: 455.77446 | E25: - | F25: 148.8100427 | G25: 0.3264993011 | H25: Wetland | I25: Wetland | J25: 1516.9 | K25: 0.3 | L25: 1070 | M25: 50010 | N25: 950 | O25: 1 | P25: 2000 | Q25: 4 | R25: 20 | S25: 0.014 | T25: 0.011 | U25: 0.007 | V25: 0.0175 | W25: 0.02444444444 | X25: 0.01555555556 | Y25: 0.01555555556 | Z25: 227800 | AA25: - | AB25: 0 | AK25: 950 | AL25: 148.8100427 | AM25: 1 | AN25: 2000 | AO25: 4 | AP25: 20 | AY25: 950 | AZ25: 148.8100427 | BA25: 1 | BB25: 2000 | BC25: 4 | BD25: 20
A26: 1023 | B26: 3 Newman St | C26: Preston | D26: 494.2191 | E26: - | F26: 161.8946774 | G26: 0.3275767314 | H26: Bioretention | I26: Bioretention | J26: 526.2 | K26: 0.3 | L26: 370 | M26: 8100 | N26: 370 | O26: 0 | P26: 10000 | Q26: 16 | R26: 70 | S26: 0.054 | T26: 0.038 | U26: 0.027 | V26: 0.0675 | W26: 0.08444444444 | X26: 0.06 | Y26: 0.06 | Z26: 797300 | AA26: - | AB26: 0 | AD26: 370 | AE26: 161.8946774 | AF26: 0 | AG26: 10000 | AH26: 16 | AI26: 70 | AR26: 370 | AS26: 161.8946774 | AU26: 10000 | AV26: 16 | AW26: 70
A27: 1024 | B27: NARC Option East | C27: Northcote | D27: 149.50008 | E27: - | F27: 42.43121346 | G27: 0.283820674 | H27: Wetland | I27: Wetland | J27: 1040 | K27: 0.3 | L27: 730 | M27: 14260 | N27: 730 | O27: 6 | P27: 2100 | Q27: 4 | R27: 22 | S27: 0.043 | T27: 0.036 | U27: 0.03 | V27: 0.05375 | W27: 0.08 | X27: 0.06666666667 | Y27: 0.05375 | Z27: 250580 | AA27: Below ground | AB27: 600
A28: 1025 | B28: LW Williams Reserve | C28: Preston | D28: 73.38239 | E28: - | F28: 20.24040776 | G28: 0.2758210487 | H28: Bioretention | I28: Bioretention | J28: 721.4 | K28: 0.3 | L28: 510 | M28: 1020 | N28: 510 | O28: 1 | P28: 11100 | Q28: 16.7 | R28: 86 | S28: 0.469 | T28: 0.325 | U28: 0.232 | V28: 0.58625 | W28: 0.7222222222 | X28: 0.5155555556 | Y28: 0.5155555556 | Z28: 979540 | AA28: - | AB28: 0 | AD28: 510 | AE28: 20.24040776 | AF28: 1 | AG28: 11100 | AH28: 16.7 | AI28: 86 | AR28: 510 | AS28: 20.24040776 | AT28: 1 | AU28: 11100 | AV28: 16.7 | AW28: 86
A29: 1026 | B29: 29 Cygna Street | C29: Preston | D29: 68.17507 | E29: - | F29: 18.60734307 | G29: 0.2729347116 | H29: Wetland | I29: Wetland | J29: 1094.2 | K29: 0.3 | L29: 770 | M29: 6260 | N29: 770 | O29: 1 | P29: 2000 | Q29: 3.5 | R29: 16 | S29: 0.093 | T29: 0.075 | U29: 0.048 | V29: 0.11625 | W29: 0.1666666667 | X29: 0.1066666667 | Y29: 0.1066666667 | Z29: 182240 | AA29: - | AB29: 0 | AK29: 770 | AL29: 18.60734307 | AM29: 1 | AN29: 2000 | AO29: 3.5 | AP29: 16 | AY29: 770 | AZ29: 18.60734307 | BA29: 1 | BB29: 2000 | BC29: 3.5 | BD29: 16
A30: 1027 | B30: Larkins Reserve | C30: Preston | D30: 24.99301 | E30: - | F30: 7.777977076 | G30: 0.3112060963 | H30: Wetland | I30: Wetland | J30: 1634.1 | K30: 0.3 | L30: 1150 | M30: 2620 | N30: 1150 | O30: 1.2 | P30: 3040 | Q30: 5.1 | R30: 24 | S30: 0.341 | T30: 0.274 | U30: 0.176 | V30: 0.42625 | W30: 0.6088888889 | X30: 0.3911111111 | Y30: 0.3911111111 | Z30: 273360 | AA30: - | AB30: 0 | AK30: 1150 | AL30: 7.777977076 | AM30: 1.2 | AN30: 3040 | AO30: 5.1 | AP30: 24 | AY30: 1150 | AZ30: 7.777977076 | BA30: 1.2 | BB30: 3040 | BC30: 5.1 | BD30: 24
A31: 1028 | B31: Roberts Reserve | C31: Thornbury | D31: 33.11603 | E31: - | F31: 8.761438347 | G31: 0.264567895 | H31: Bioretention | I31: Bioretention | J31: 75.4 | K31: 0.3 | L31: 60 | M31: 440 | N31: 60 | O31: 0.1 | P31: 1590 | Q31: 2.5 | R31: 12 | S31: 0.162 | T31: 0.114 | U31: 0.079 | V31: 0.2025 | W31: 0.2533333333 | X31: 0.1755555556 | Y31: 0.1755555556 | Z31: 136680 | AA31: - | AB31: 0 | AD31: 60 | AE31: 8.761438347 | AF31: 0.1 | AG31: 1590 | AH31: 2.5 | AI31: 12 | AR31: 60 | AS31: 8.761438347 | AT31: 0.1 | AU31: 1590 | AV31: 2.5 | AW31: 12
A32: 1029 | B32: Batman Park | C32: Northcote | D32: 23.79023 | E32: - | F32: 6.095440987 | G32: 0.2562161437 | H32: Bioretention | I32: Bioretention | J32: 487.9 | K32: 0.3 | L32: 350 | M32: 310 | N32: 260 | O32: 0.5 | P32: 4630 | Q32: 7.02 | R32: 36.5 | S32: 0.64 | T32: 0.447 | U32: 0.326 | V32: 0.8 | W32: 0.9933333333 | X32: 0.7244444444 | Y32: 0.7244444444 | Z32: 415735 | AA32: - | AB32: 0 | AD32: 260 | AE32: 6.095440987 | AF32: 0.5 | AG32: 4630 | AH32: 7.02 | AI32: 36.5 | AR32: 260 | AS32: 6.095440987 | AT32: 0.5 | AU32: 4630 | AV32: 7.02 | AW32: 36.5
A33: 1030 | B33: Johnson Park | C33: Northcote | D33: 21.83266 | E33: - | F33: 5.794475234 | G33: 0.2654039972 | H33: Wetland | I33: Wetland | J33: 2850.6 | K33: 0.3 | L33: 2000 | M33: 1950 | N33: 1800 | O33: 2 | P33: 4200 | Q33: 7.29 | R33: 33.6 | S33: 0.616 | T33: 0.488 | U33: 0.319 | V33: 0.77 | W33: 1.084444444 | X33: 0.7088888889 | Y33: 0.7088888889 | Z33: 382704 | AA33: - | AB33: 0 | AK33: 1800 | AL33: 5.794475234 | AM33: 2 | AN33: 4200 | AO33: 7.29 | AP33: 33.6 | AY33: 1800 | AZ33: 5.794475234 | BA33: 2 | BB33: 4200 | BC33: 7.29 | BD33: 33.6
A34: 1031 | B34: AH Capp Reserve | C34: Preston | D34: 10.20269 | E34: - | F34: 3.221268423 | G34: 0.3157273644 | H34: Bioretention | I34: Bioretention | J34: 781.2 | K34: 0.3 | L34: 550 | M34: 170 | N34: 140 | O34: 3.6 | P34: 2670 | Q34: 4.29 | R34: 23.4 | S34: 0.707 | T34: 0.537 | U34: 0.416 | V34: 0.88375 | W34: 1.193333333 | X34: 0.9244444444 | Y34: 0.88375 | Z34: 266526 | AA34: Below ground | AB34: 280
A35: 1032 | B35: Egans Reserve | C35: Thornbury | D35: 9.97076 | E35: - | F35: 1.676006497 | G35: 0.1680921511 | H35: Wetland | I35: Wetland | J35: 2594.1 | K35: 0.3 | L35: 1820 | M35: 570 | N35: 570 | O35: 0.7 | P35: 1243 | Q35: 2.15 | R35: 10.3 | S35: 0.604 | T35: 0.466 | U35: 0.304 | V35: 0.755 | W35: 1.035555556 | X35: 0.6755555556 | Y35: 0.6755555556 | Z35: 117317 | AA35: - | AB35: 0 | AK35: 570 | AL35: 1.676006497 | AM35: 0.7 | AN35: 1243 | AO35: 2.15 | AP35: 10.3 | AY35: 570 | AZ35: 1.676006497 | BA35: 0.7 | BB35: 1243 | BC35: 2.15 | BD35: 10.3
A36: 1033 | B36: Bill Lawry Oval | C36: Northcote | D36: 75.30692 | E36: - | F36: 19.90763508 | G36: 0.2643533301 | H36: Bioretention | I36: Bioretention | J36: 760.2 | K36: 0.3 | L36: 540 | M36: 1000 | N36: 540 | O36: 6 | P36: 11500 | Q36: 17.9 | R36: 93 | S36: 0.511 | T36: 0.363 | U36: 0.262 | V36: 0.63875 | W36: 0.8066666667 | X36: 0.5822222222 | Y36: 0.5822222222 | Z36: 1059270 | AA36: Below ground | AB36: 320 | AD36: =IF(AND($I36="Bioretention",$AB36<=0),N36,"") ->  | AE36: =IF(AND($I36="Bioretention",$AB36<=0),F36,"") ->  | AF36: =IF(AND($I36="Bioretention",$AB36<=0),O36,"") ->  | AG36: =IF(AND($I36="Bioretention",$AB36<=0),P36,"") ->  | AH36: =IF(AND($I36="Bioretention",$AB36<=0),Q36,"") ->  | AI36: =IF(AND($I36="Bioretention",$AB36<=0),R36,"") ->  | AK36: =IF(AND($I36="Wetland",$AB36<=0),N36,"") ->  | AL36: =IF(AND($I36="Wetland",$AB36<=0),F36,"") ->  | AM36: =IF(AND($I36="Wetland",$AB36<=0),O36,"") ->  | AN36: =IF(AND($I36="Wetland",$AB36<=0),P36,"") ->  | AO36: =IF(AND($I36="Wetland",$AB36<=0),Q36,"") ->  | AP36: =IF(AND($I36="Wetland",$AB36<=0),R36,"") -> 
A37: 1034 | B37: NARC Option West | C37: Northcote | D37: 149.50008 | E37: - | F37: 42.43121346 | G37: 0.283820674 | H37: Bioretention | I37: Bioretention | J37: 725.5 | K37: 0.3 | L37: 510 | M37: 2130 | N37: 510 | O37: 6 | P37: 13700 | Q37: 20.2 | R37: 104 | S37: 0.281 | T37: 0.198 | U37: 0.139 | V37: 0.35125 | W37: 0.44 | X37: 0.3088888889 | Y37: 0.3088888889 | Z37: 1184560 | AA37: Below ground | AB37: 270
A38: 1035 | B38: Merri Park | C38: Northcote | D38: 239.56592 | E38: - | F38: 79.45883126 | G38: 0.3316783592 | H38: Wetland | I38: Bioretention | J38: 1976.1 | K38: 0.3 | L38: 1390 | M38: 3980 | N38: 600 | O38: 6 | P38: 16200 | Q38: 24 | R38: 130 | S38: 0.18 | T38: 0.128 | U38: 0.091 | V38: 0.225 | W38: 0.2844444444 | X38: 0.2022222222 | Y38: 0.2022222222 | Z38: 1480700 | AA38: Below ground | AB38: 270
A39: 1036 | B39: McDonnell Park South (Wetland) | C39: Northcote | D39: 176.57687 | E39: - | F39: 48.23586499 | G39: 0.2731720467 | H39: Wetland | I39: Wetland | J39: 2197 | K39: 0.35 | L39: 1430 | M39: 16210 | N39: 1430 | O39: 6 | P39: 3800 | Q39: 6 | R39: 34 | S39: 0.07 | T39: 0.054 | U39: 0.041 | V39: 0.0875 | W39: 0.12 | X39: 0.09111111111 | Y39: 0.0875 | Z39: 387260 | AA39: Below ground | AB39: 310
A40: 1037 | B40: 26 Linaker Drive | C40: Macleod | D40: 64.34288 | E40: - | F40: 20.0251982 | G40: 0.3112263269 | H40: Wetland | I40: Wetland | J40: 4204.8 | K40: 0.3 | L40: 2950 | M40: 6730 | N40: 2950 | O40: 4 | P40: 7900 | Q40: 13.5 | R40: 61 | S40: 0.341 | T40: 0.274 | U40: 0.176 | V40: 0.42625 | W40: 0.6088888889 | X40: 0.3911111111 | Y40: 0.3911111111 | Z40: 694790 | AA40: - | AB40: 0 | AK40: 2950 | AL40: 20.0251982 | AM40: 4 | AN40: 7900 | AO40: 13.5 | AP40: 61 | AY40: 2950 | AZ40: 20.0251982 | BA40: 4 | BB40: 7900 | BC40: 13.5 | BD40: 61
A41: 1038 | B41: Rubie Thomson Reserve | C41: Fairfield | D41: 216.69905 | E41: - | F41: 60.45665678 | G41: 0.2789890254 | H41: Wetland | I41: Wetland | J41: 1129 | K41: 0.3 | L41: 800 | M41: 20320 | N41: 800 | O41: 6 | P41: 2200 | Q41: 4 | R41: 30 | S41: 0.031 | T41: 0.026 | U41: 0.022 | V41: 0.03875 | W41: 0.05777777778 | X41: 0.04888888889 | Y41: 0.03875 | Z41: 341700 | AA41: Below ground | AB41: 720
A42: 1039 | B42: HLT Oulton Park | C42: Preston | D42: 74.87297 | E42: - | F42: 19.16882664 | G42: 0.2560179814 | H42: Bioretention | I42: Bioretention | J42: 716.4 | K42: 0.3 | L42: 510 | M42: 960 | N42: 510 | O42: 5 | P42: 11200 | Q42: 16.9 | R42: 88 | S42: 0.496 | T42: 0.345 | U42: 0.247 | V42: 0.62 | W42: 0.7666666667 | X42: 0.5488888889 | Y42: 0.5488888889 | Z42: 1002320 | AA42: Below ground | AB42: 200
A43: 1040 | B43: T H Westfield Reserve | C43: Northcote | D43: 75.30692 | E43: - | F43: 19.90763508 | G43: 0.2643533301 | H43: Wetland | I43: Wetland | J43: 8832.1 | K43: 0.3 | L43: 6190 | M43: 6690 | N43: 6190 | O43: 6 | P43: 14090 | Q43: 24.2 | R43: 114 | S43: 0.616 | T43: 0.489 | U43: 0.323 | V43: 0.77 | W43: 1.086666667 | X43: 0.7177777778 | Y43: 0.7177777778 | Z43: 1298460 | AA43: - | AB43: 0 | AK43: 6190 | AL43: 19.90763508 | AM43: 6 | AN43: 14090 | AO43: 24.2 | AP43: 114 | AY43: 6190 | AZ43: 19.90763508 | BA43: 6 | BB43: 14090 | BC43: 24.2 | BD43: 114
A44: 1041 | B44: 8 Grand Ave | C44: Macleod | D44: 8.92963 | E44: - | F44: 1.014038363 | G44: 0.1135588332 | H44: Wetland | I44: Wetland | J44: 2769.1 | K44: 0.3 | L44: 1940 | M44: 350 | N44: 350 | O44: 3.17 | P44: 839 | Q44: 1.63 | R44: 10.6 | S44: 0.67 | T44: 0.54 | U44: 0.462 | V44: 0.8375 | W44: 1.2 | X44: 1.026666667 | Y44: 0.8375 | Z44: 120734 | AA44: Below ground | AB44: 490
A45: 1042 | B45: Darebin Parklands | C45: Alphington | D45: 22.1446 | E45: - | F45: 5.707121385 | G45: 0.2577206807 | H45: Wetland | I45: Wetland | J45: 2985 | K45: 0.3 | L45: 2090 | M45: 1920 | N45: 1920 | O45: 4.9 | P45: 4380 | Q45: 7.12 | R45: 36.7 | S45: 0.652 | T45: 0.49 | U45: 0.355 | V45: 0.815 | W45: 1.088888889 | X45: 0.7888888889 | Y45: 0.7888888889 | Z45: 418013 | AA45: Below ground | AB45: 160
A46: 1043 | B46: Beenak Wetland Expansion | C46: Reservoir | D46: 82.59778 | E46: - | F46: 21.16525545 | G46: 0.2562448464 | H46: Wetland | I46: Wetland | J46: 2907.1 | K46: 0.3 | L46: 2040 | M46: 7120 | N46: 2040 | O46: 6 | P46: 5700 | Q46: 9.3 | R46: 46 | S46: 0.229 | T46: 0.173 | U46: 0.12 | V46: 0.28625 | W46: 0.3844444444 | X46: 0.2666666667 | Y46: 0.2666666667 | Z46: 523940 | AA46: Below ground | AB46: 180
A47: 1044 | B47: John Cain Park East | C47: Thornbury | D47: 70.7636 | E47: - | F47: 25.93902775 | G47: 0.3665589053 | H47: Wetland | I47: Wetland | J47: 1145.8 | K47: 0.3 | L47: 810 | M47: 8720 | N47: 810 | O47: 1 | P47: 2200 | Q47: 3.8 | R47: 18 | S47: 0.074 | T47: 0.059 | U47: 0.038 | V47: 0.0925 | W47: 0.1311111111 | X47: 0.08444444444 | Y47: 0.08444444444 | Z47: 205020 | AA47: - | AB47: 0 | AK47: 810 | AL47: 25.93902775 | AM47: 1 | AN47: 2200 | AO47: 3.8 | AP47: 18 | AY47: 810 | AZ47: 25.93902775 | BA47: 1 | BB47: 2200 | BC47: 3.8 | BD47: 18
A48: 1045 | B48: TW Blake Park | C48: Preston | D48: 28.58771 | E48: - | F48: 8.668741229 | G48: 0.3032331456 | H48: Wetland | I48: Bioretention | J48: 1098.3 | K48: 0.3 | L48: 770 | M48: 440 | N48: 350 | O48: 12.5 | P48: 7010 | Q48: 11.46 | R48: 67 | S48: 0.704 | T48: 0.546 | U48: 0.439 | V48: 0.88 | W48: 1.213333333 | X48: 0.9755555556 | Y48: 0.88 | Z48: 763130 | AA48: Below ground | AB48: 1120
A49: 1046 | B49: W Ruthven Vc Reserve | C49: Preston | D49: 39.42992 | E49: - | F49: 7.559781023 | G49: 0.191727019 | H49: Wetland | I49: Bioretention | J49: 1494.5 | K49: 0.3 | L49: 1050 | M49: 380 | N49: 310 | O49: 4.3 | P49: 5800 | Q49: 9 | R49: 47.1 | S49: 0.645 | T49: 0.451 | U49: 0.329 | V49: 0.80625 | W49: 1.002222222 | X49: 0.7311111111 | Y49: 0.7311111111 | Z49: 536469 | AA49: Below ground | AB49: 250
A50: 1047 | B50: CH Sullivan Memorial Park | C50: Reservoir | D50: 11.678 | E50: - | F50: 2.846005412 | G50: 0.2437065775 | H50: Wetland | I50: Wetland | J50: 1721.6 | K50: 0.3 | L50: 1210 | M50: 960 | N50: 935 | O50: 11.18 | P50: 2509 | Q50: 5.01 | R50: 34 | S50: 0.777 | T50: 0.7 | U50: 0.656 | V50: 0.97125 | W50: 1.555555556 | X50: 1.457777778 | Y50: 0.97125 | Z50: 387260 | AA50: Below ground | AB50: 2130
A51: 1048 | B51: 26 Kerang Ave | C51: Reservoir | D51: 54.69912 | E51: - | F51: 14.30952566 | G51: 0.2616043121 | H51: Wetland | I51: Wetland | J51: 1633.6 | K51: 0.3 | L51: 1150 | M51: 4810 | N51: 1150 | O51: 12.5 | P51: 3600 | Q51: 6.7 | R51: 43 | S51: 0.218 | T51: 0.187 | U51: 0.167 | V51: 0.2725 | W51: 0.4155555556 | X51: 0.3711111111 | Y51: 0.2725 | Z51: 489770 | AA51: Below ground | AB51: 1880
A52: 1049 | B52: McDonnell Park South (Bioretention) | C52: Northcote | D52: 176.57687 | E52: - | F52: 48.23586499 | G52: 0.2731720467 | H52: Wetland | I52: Bioretention | J52: 2197 | K52: 0.3 | L52: 1540 | M52: 2420 | N52: 600 | O52: 6 | P52: 15200 | Q52: 22.5 | R52: 118 | S52: 0.275 | T52: 0.193 | U52: 0.138 | V52: 0.34375 | W52: 0.4288888889 | X52: 0.3066666667 | Y52: 0.3066666667 | Z52: 1344020 | AA52: Below ground | AB52: 280
A53: 1050 | B53: 7 Chenies St | C53: Reservoir | D53: 91.79296 | E53: - | F53: 23.20144147 | G53: 0.2527583975 | H53: Wetland | I53: Wetland | J53: 5616.5 | K53: 0.3 | L53: 3940 | M53: 7800 | N53: 3940 | O53: 8 | P53: 10200 | Q53: 16.6 | R53: 83 | S53: 0.381 | T53: 0.285 | U53: 0.196 | V53: 0.47625 | W53: 0.6333333333 | X53: 0.4355555556 | Y53: 0.4355555556 | Z53: 945370 | AA53: Below ground | AB53: 180
A54: 1051 | B54: 60 Ayr St | C54: Reservoir | D54: 16.91523 | E54: - | F54: 5.046253013 | G54: 0.2983260064 | H54: Wetland | I54: Wetland | J54: 1161.2 | K54: 0.3 | L54: 820 | M54: 1700 | N54: 820 | O54: 6.4 | P54: 2540 | Q54: 4.47 | R54: 26.3 | S54: 0.431 | T54: 0.356 | U54: 0.294 | V54: 0.53875 | W54: 0.7911111111 | X54: 0.6533333333 | Y54: 0.53875 | Z54: 299557 | AA54: Below ground | AB54: 640
A55: 1052 | B55: 102 Holt Parade | C55: Bundoora | D55: 15.46813 | E55: - | F55: 5.787963643 | G55: 0.3741863847 | H55: Wetland | I55: Wetland | J55: 1796 | K55: 0.3 | L55: 1260 | M55: 1950 | N55: 1260 | O55: 7 | P55: 3570 | Q55: 6.1 | R55: 33.5 | S55: 0.552 | T55: 0.44 | U55: 0.343 | V55: 0.69 | W55: 0.9777777778 | X55: 0.7622222222 | Y55: 0.69 | Z55: 381565 | AA55: Below ground | AB55: 490
A56: 1053 | B56: 1 Browning St | C56: Kingsbury | D56: 34.56704 | E56: - | F56: 12.43215145 | G56: 0.3596533417 | H56: Wetland | I56: Wetland | J56: 2009.3 | K56: 0.3 | L56: 1410 | M56: 4180 | N56: 1410 | O56: 13.3 | P56: 4440 | Q56: 8 | R56: 49 | S56: 0.309 | T56: 0.265 | U56: 0.229 | V56: 0.38625 | W56: 0.5888888889 | X56: 0.5088888889 | Y56: 0.38625 | Z56: 558110 | AA56: Below ground | AB56: 1560
A57: 1054 | B57: 3 Campbell St | C57: Kingsbury | D57: 14.51499 | E57: - | F57: 6.056493314 | G57: 0.4172578358 | H57: Bioretention | I57: Bioretention | J57: 822.7 | K57: 0.3 | L57: 580 | M57: 310 | N57: 250 | O57: 3.5 | P57: 4790 | Q57: 7.4 | R57: 38.9 | S57: 0.692 | T57: 0.509 | U57: 0.379 | V57: 0.865 | W57: 1.131111111 | X57: 0.8422222222 | Y57: 0.8422222222 | Z57: 443071 | AA57: Below ground | AB57: 200
A58: 1055 | B58: CH Sullivan Memorial Park | C58: Reservoir | D58: 176.19636 | E58: - | F58: 52.858908 | G58: 0.3 | H58: Wetland | I58: Wetland | J58: 1721.6 | K58: 0.3 | L58: 1210 | M58: 17770 | N58: 1210 | O58: 14 | P58: 3800 | Q58: 7 | R58: 47 | S58: 0.063 | T58: 0.056 | U58: 0.051 | V58: 0.07875 | W58: 0.1244444444 | X58: 0.1133333333 | Y58: 0.07875 | Z58: 535330 | AA58: Below ground | AB58: 2130
A59: 1056 | B59: CT Barling Reserve | C59: Reservoir | D59: 17.44331 | E59: - | F59: 4.911158754 | G59: 0.2815497032 | H59: Wetland | I59: Wetland | J59: 4255.5 | K59: 0.3 | L59: 2980 | M59: 1660 | N59: 1500 | O59: 13.2 | P59: 4210 | Q59: 7.67 | R59: 47.6 | S59: 0.745 | T59: 0.628 | U59: 0.544 | V59: 0.93125 | W59: 1.395555556 | X59: 1.208888889 | Y59: 0.93125 | Z59: 542164 | AA59: Below ground | AB59: 1560
A60: 1057 | B60: KP Hardiman Reserve North | C60: Kingsbury | D60: 54.69912 | E60: - | F60: 14.30952566 | G60: 0.2616043121 | H60: Wetland | I60: Wetland | J60: 12927.1 | K60: 0.3 | L60: 9050 | M60: 4810 | N60: 4500 | O60: 17.5 | P60: 11150 | Q60: 18.4 | R60: 98 | S60: 0.676 | T60: 0.515 | U60: 0.381 | V60: 0.845 | W60: 1.144444444 | X60: 0.8466666667 | Y60: 0.845 | Z60: 1116220 | AA60: Below ground | AB60: 940
A61: 1058 | B61: La Trobe Uni Hockey Club | C61: Kingsbury | D61: 54.69912 | E61: - | F61: 14.30952566 | G61: 0.2616043121 | H61: Wetland | I61: Wetland | J61: 3967.3 | K61: 0.3 | L61: 2780 | M61: 4810 | N61: 2780 | O61: 15.6 | P61: 7930 | Q61: 13.4 | R61: 75 | S61: 0.478 | T61: 0.374 | U61: 0.289 | V61: 0.5975 | W61: 0.8311111111 | X61: 0.6422222222 | Y61: 0.5975 | Z61: 854250 | AA61: Below ground | AB61: 1090
A62: 1059 | B62: 60 Winter Crescent | C62: Reservoir | D62: 17.8008 | E62: - | F62: 4.546139359 | G62: 0.2553896094 | H62: Wetland | I62: Wetland | J62: 1447.2 | K62: 0.3 | L62: 1020 | M62: 1530 | N62: 1020 | O62: 4.1 | P62: 2790 | Q62: 4.6 | R62: 24.1 | S62: 0.521 | T62: 0.391 | U62: 0.288 | V62: 0.65125 | W62: 0.8688888889 | X62: 0.64 | Y62: 0.64 | Z62: 274499 | AA62: Below ground | AB62: 200
A63: 1060 | B63: 68 Winter Crescent | C63: Reservoir | D63: 17.8008 | E63: - | F63: 4.546139359 | G63: 0.2553896094 | H63: Bioretention | I63: Bioretention | J63: 804.1 | K63: 0.3 | L63: 570 | M63: 230 | N63: 190 | O63: 3.4 | P63: 3650 | Q63: 5.7 | R63: 30.2 | S63: 0.676 | T63: 0.487 | U63: 0.361 | V63: 0.845 | W63: 1.082222222 | X63: 0.8022222222 | Y63: 0.8022222222 | Z63: 343978 | AA63: Below ground | AB63: 220
A64: 1061 | B64: Breavington Park | C64: Fairfield | D64: 31.7646 | E64: - | F64: 13.05607437 | G64: 0.4110259336 | H64: Wetland | I64: Wetland | J64: 921.4 | K64: 0.3 | L64: 650 | M64: 4390 | N64: 650 | O64: 0.7 | P64: 1800 | Q64: 3.1 | R64: 14 | S64: 0.122 | T64: 0.1 | U64: 0.064 | V64: 0.1525 | W64: 0.2222222222 | X64: 0.1422222222 | Y64: 0.1422222222 | Z64: 159460 | AA64: - | AB64: 0 | AK64: 650 | AL64: 13.05607437 | AM64: 0.7 | AN64: 1800 | AO64: 3.1 | AP64: 14 | AY64: 650 | AZ64: 13.05607437 | BA64: 0.7 | BB64: 1800 | BC64: 3.1 | BD64: 14
A65: 1062 | B65: 209 Wingrove St | C65: Fairfield | D65: 68.25104 | E65: - | F65: 22.28610718 | G65: 0.3265313933 | H65: Bioretention | I65: Bioretention | J65: 183.7 | K65: 0.3 | L65: 130 | M65: 1120 | N65: 130 | O65: 0 | P65: 3600 | Q65: 5.4 | R65: 26 | S65: 0.141 | T65: 0.098 | U65: 0.068 | V65: 0.17625 | W65: 0.2177777778 | X65: 0.1511111111 | Y65: 0.1511111111 | Z65: 296140 | AA65: - | AB65: 0 | AD65: 130 | AE65: 22.28610718 | AF65: 0 | AG65: 3600 | AH65: 5.4 | AI65: 26 | AR65: 130 | AS65: 22.28610718 | AU65: 3600 | AV65: 5.4 | AW65: 26
A66: 1063 | B66: 2 Broomfield Ave | C66: Alphington | D66: 156.28624 | E66: - | F66: 54.9787612 | G66: 0.3517824807 | H66: Bioretention | I66: Bioretention | J66: 171.2 | K66: 0.3 | L66: 120 | M66: 2750 | N66: 120 | O66: 0 | P66: 3300 | Q66: 5 | R66: 25 | S66: 0.053 | T66: 0.037 | U66: 0.026 | V66: 0.06625 | W66: 0.08222222222 | X66: 0.05777777778 | Y66: 0.05777777778 | Z66: 284750 | AA66: - | AB66: 0 | AD66: 120 | AE66: 54.9787612 | AF66: 0 | AG66: 3300 | AH66: 5 | AI66: 25 | AR66: 120 | AS66: 54.9787612 | AU66: 3300 | AV66: 5 | AW66: 25
A67: 1064 | B67: 22 McComas St | C67: Reservoir | D67: 37.65308 | E67: - | F67: 11.02151774 | G67: 0.2927122494 | H67: Bioretention | I67: Bioretention | J67: 431.3 | K67: 0.3 | L67: 310 | M67: 560 | N67: 310 | O67: 0.6 | P67: 6430 | Q67: 9.8 | R67: 50 | S67: 0.516 | T67: 0.358 | U67: 0.257 | V67: 0.645 | W67: 0.7955555556 | X67: 0.5711111111 | Y67: 0.5711111111 | Z67: 569500 | AA67: - | AB67: 0 | AD67: 310 | AE67: 11.02151774 | AF67: 0.6 | AG67: 6430 | AH67: 9.8 | AI67: 50 | AR67: 310 | AS67: 11.02151774 | AT67: 0.6 | AU67: 6430 | AV67: 9.8 | AW67: 50
A68: 1065 | B68: Progress Park | C68: Reservoir | D68: 11.93942 | E68: - | F68: 2.771342086 | G68: 0.2321169777 | H68: Bioretention | I68: Bioretention | J68: 114.1 | K68: 0.3 | L68: 80 | M68: 140 | N68: 80 | O68: 0.1 | P68: 1650 | Q68: 2.5 | R68: 12.9 | S68: 0.512 | T68: 0.355 | U68: 0.252 | V68: 0.64 | W68: 0.7888888889 | X68: 0.56 | Y68: 0.56 | Z68: 146931 | AA68: - | AB68: 0 | AD68: 80 | AE68: 2.771342086 | AF68: 0.1 | AG68: 1650 | AH68: 2.5 | AI68: 12.9 | AR68: 80 | AS68: 2.771342086 | AT68: 0.1 | AU68: 1650 | AV68: 2.5 | AW68: 12.9
A69: 1066 | B69: Ruthven Linear Reserve | C69: Reservoir | D69: 231.27844 | E69: - | F69: 64.46837233 | G69: 0.2787478691 | H69: Bioretention | I69: Bioretention | J69: 455.5 | K69: 0.3 | L69: 320 | M69: 3230 | N69: 320 | O69: 1 | P69: 8800 | Q69: 13 | R69: 60 | S69: 0.118 | T69: 0.083 | U69: 0.058 | V69: 0.1475 | W69: 0.1844444444 | X69: 0.1288888889 | Y69: 0.1288888889 | Z69: 683400 | AA69: - | AB69: 0 | AD69: 320 | AE69: 64.46837233 | AF69: 1 | AG69: 8800 | AH69: 13 | AI69: 60 | AR69: 320 | AS69: 64.46837233 | AT69: 1 | AU69: 8800 | AV69: 13 | AW69: 60
A70: 1067 | B70: LE Cotchin Reserve | C70: Reservoir | D70: 14.34918 | E70: - | F70: 4.783662841 | G70: 0.3333753455 | H70: Bioretention | I70: Bioretention | J70: 827.8 | K70: 0.3 | L70: 580 | M70: 240 | N70: 200 | O70: 3.1 | P70: 3780 | Q70: 5.87 | R70: 30.9 | S70: 0.693 | T70: 0.505 | U70: 0.376 | V70: 0.86625 | W70: 1.122222222 | X70: 0.8355555556 | Y70: 0.8355555556 | Z70: 351951 | AA70: Below ground | AB70: 180
A71: 1068 | B71: Mayer Park | C71: Thornbury | D71: 706.97392 | E71: - | F71: 235.1983997 | G71: 0.332683276 | H71: Bioretention | I71: Bioretention | J71: 257.8 | K71: 0.3 | L71: 190 | M71: 11760 | N71: 190 | O71: 10 | P71: 6000 | Q71: 9 | R71: 50 | S71: 0.021 | T71: 0.016 | U71: 0.013 | V71: 0.02625 | W71: 0.03555555556 | X71: 0.02888888889 | Y71: 0.02625 | Z71: 569500 | AA71: Below ground | AB71: 590 | BF71: LINED DATA
BH72: Coefficient
BH73: a | BI73: b | BK73: Vlookup | BL73: Predicted # | BM73: Area (m2) | BN73: Real # | BO73: Difference
BF74: Bioretention | BG74: Runoff | BH74: 0.0011 | BI74: 1.1061 | BK74: 3 | BL74: =BH74*$BM74^$BI74 -> 0.5821717275 | BM74: =$AR$22 -> 290 | BN74: =VLOOKUP(BM74,$AR$22:$AW$22,BK74,FALSE) -> 1 | BO74: =(BL74-BN74)/BN74 -> -0.4178282725 | BP74: =BL74=Calculations!F25 -> FALSE
BF75: Bioretention | BG75: TSS | BH75: 22.167 | BI75: 0.9961 | BK75: 4 | BL75: =BH75*$BM75^$BI75 -> 6287.841228 | BM75: =$AR$22 -> 290 | BN75: =VLOOKUP(BM75,$AR$22:$AW$22,BK75,FALSE) -> 8000 | BO75: =(BL75-BN75)/BN75 -> -0.2140198464 | BP75: =BL75=Calculations!F26 -> FALSE
BF76: Bioretention | BG76: TP | BH76: 0.0338 | BI76: 0.9949 | BK76: 5 | BL76: 9.522620312 | BM76: 290 | BN76: 13 | BO76: -0.2674907452 | BP76: =BL76=Calculations!F27 -> FALSE
BF77: Bioretention | BG77: TN | BH77: 0.1729 | BI77: 0.9912 | BK77: 6 | BL77: 47.70060516 | BM77: 290 | BN77: 60 | BO77: -0.204989914 | BP77: =BL77=Calculations!F28 -> FALSE
BF78: Wetland | BG78: Runoff | BH78: 0.0014 | BI78: 0.9655 | BK78: 3 | BL78: 1.262501203 | BM78: =$AY$30 -> 1150 | BN78: =VLOOKUP(BM78,$AY$30:$BD$30,BK78,FALSE) -> 1.2 | BO78: =(BL78-BN78)/BN78 -> 0.05208433565 | BP78: =BL78=Calculations!F25 -> FALSE
BF79: Wetland | BG79: TSS | BH79: 2.7903 | BI79: 0.9824 | BK79: 4 | BL79: 2834.526082 | BM79: =$AY$30 -> 1150 | BN79: =VLOOKUP(BM79,$AY$30:$BD$30,BK79,FALSE) -> 3040 | BO79: -0.06759010474 | BP79: =BL79=Calculations!F26 -> FALSE
BF80: Wetland | BG80: TP | BH80: 0.0052 | BI80: 0.973 | BK80: 5 | BL80: 4.943816496 | BM80: 1150 | BN80: 5.1 | BO80: -0.03062421645 | BP80: =BL80=Calculations!F27 -> FALSE
BF81: Wetland | BG81: TN | BH81: 0.0253 | BI81: 0.9673 | BK81: 6 | BL81: 23.10646677 | BM81: 1150 | BN81: 24 | BO81: -0.03723055138 | BP81: =BL81=Calculations!F28 -> FALSE

Sheet Pipes (hidden)
B3: Constants
B4: Friction factor, f | C4: f_pipe | D4: 0.02
B5: Pipe friction loss factor | C5: PipeFrictionLossFactor | D5: 0.02
B6: Gravity | C6: g | D6: 9.81
B7: Pipe conversion constant, a1 | C7: a1_pipe_cap | D7: 8
B8: Pipe average cost of crossings per m, b2 | C8: b2_pipe_crossing_cap | D8: 75
F10: Base capital cost ($) | I10: Total capital cost ($)
B11: Pipe size list A | C11: Pipe size list B | D11: Number of pipes | E11: Nominal Pipe diameter | F11: Greenfield pipe | G11: Urban pipe | H11: CBD pipe | I11: Greenfield pipe | J11: Urban pipe | K11: CBD pipe
B12: 0 | C12: 100 | D12: 1 | E12: 100 | F12: =F13 -> 126.7038172 | G12: =0.6286*100^1.1691 -> 136.9538914 | H12: =H13 -> 547.9649051 | I12: =F12+(D12*b2_pipe_crossing_cap) -> 201.7038172 | J12: =G12+(D12*b2_pipe_crossing_cap) -> 211.9538914 | K12: =H12+(D12*b2_pipe_crossing_cap) -> 622.9649051
B13: 100 | C13: 150 | D13: 1 | E13: 150 | F13: 126.7038172 | G13: 228.7276428 | H13: 547.9649051 | I13: 201.7038172 | J13: 303.7276428 | K13: 622.9649051
B14: 150 | C14: 225 | D14: 1 | E14: 225 | F14: 187.0891567 | G14: 343.0775533 | H14: 829.7830116 | I14: 262.0891567 | J14: 418.0775533 | K14: 904.7830116
B15: 225 | C15: 300 | D15: 1 | E15: 300 | F15: 276.2533388 | G15: 480 | H15: 1256.540045 | I15: 351.2533388 | J15: 555 | K15: 1331.540045
B16: 300 | C16: 375 | D16: 1 | E16: 375 | F16: 364.2492357 | G16: 647.2727273 | H16: 1686.703075 | I16: 439.2492357 | J16: 722.2727273 | K16: 1761.703075
B17: 375 | C17: 450 | D17: 1 | E17: 450 | F17: 857.6152971 | G17: 807.2727273 | H17: 2119.416661 | I17: 932.6152971 | J17: 882.2727273 | K17: 2194.416661
B18: 450 | C18: 600 | D18: 1 | E18: 600 | F18: 1029.119593 | G18: 1134.545455 | H18: 2554.173715 | I18: 1104.119593 | J18: 1209.545455 | K18: 2629.173715
B19: 600 | C19: 750 | D19: 1 | E19: 600 | F19: 1029.119593 | G19: 1134.545455 | H19: 2554.173715 | I19: 1104.119593 | J19: 1209.545455 | K19: 2629.173715
B20: 750 | C20: 825 | D20: 1 | E20: 750 | F20: 1372.119984 | G20: 1454.545455 | H20: 3428.567738 | I20: 1447.119984 | J20: 1529.545455 | K20: 3503.567738
B21: 825 | C21: 900 | D21: 1 | E21: 825 | F21: 1715.111708 | G21: 1621.818182 | H21: 4308.146285 | I21: 1790.111708 | J21: 1696.818182 | K21: 4383.146285
B22: 900 | C22: 1150 | D22: 1 | E22: 900 | F22: 1886.604897 | G22: 1781.818182 | H22: 4749.541815 | I22: 1961.604897 | J22: 1856.818182 | K22: 4824.541815
B23: 1150 | C23: 1272.792206 | D23: 1 | E23: 1150 | F23: 2058.096525 | G23: 2327.272727 | H23: 5191.878598 | I23: 2133.096525 | J23: 2402.272727 | K23: 5266.878598
B24: =B22*SQRT(D24) -> 1272.792206 | C24: =B25 -> 1626.345597 | D24: 2 | E24: =900*2 -> 1800 | F24: 4115.907748 | G24: 4115.907748 | H24: 10553.55132 | I24: 4265.907748 | J24: 4265.907748 | K24: 10703.55132
B25: =B23*SQRT(D25) -> 1626.345597 | C25: =B26 -> 2300 | D25: 2 | E25: =1150*2 -> 2300 | F25: 5259.086542 | G25: 5259.086542 | H25: 13562.66429 | I25: 5409.086542 | J25: 5409.086542 | K25: 13712.66429
B26: =B23*SQRT(D26) -> 2300 | C26: =B27 -> 2571.478174 | D26: 4 | E26: =1150*4 -> 4600 | F26: 10517.44404 | G26: 10517.44404 | H26: 27568.87915 | I26: 10817.44404 | J26: 10817.44404 | K26: 27868.87915
B27: =B23*SQRT(D27) -> 2571.478174 | C27: Warning pipe size limit exceeded | D27: 5 | E27: =1150*5 -> 5750 | F27: 13146.5117 | G27: 13146.5117 | H27: 34641.5102 | I27: 13521.5117 | J27: 13521.5117 | K27: 35016.5102
I28: Vlookup | J28: 6
F29: Base capital cost ($)
F30: Assumed same as 150 mm as no data
F31: Rates multiplied by 1.1 to adjust consist with new 2015 data
F32: Rates from CWW 2015 Unit Rates for Water Pipeline Construction (CWW CAPEX Cost rates 2016-17 (August 2016))

Sheet Costs (hidden)
B1: WSUD Treatments | N1: Storage Costs | Z1: Gravity Pipes | AF1: PUMPS - Small - Used | AK1: PUMPS - Large - Not used | AQ1: Inlet / Outlet Pits | AT1: Opex and Contingencies | BA1: GPTs
B2: Capital cost power functions derived from Melbourne Water threshold costs (2016) | AF2: Not Used | AK2: Not Used
C3: Bioretention | D3: Buffer strip | E3: Grass swale | F3: Gross pollutant trap | G3: Pond | H3: Raingarden | I3: Sediment basin | J3: Tree pit | K3: Vegetated swale | L3: Wetland | N3: Above ground tanks | Q3: Below ground tanks | U3: Type | V3: Equation | W3: Constants | Z3: * RRJ, 20% FCR used for costing gravity pipes | AF3: Davey Model | AG3: Capacity (L/s) | AH3: Power (kW) | AI3: Cost | AK3: Two equations listed in CWW IWMS document. Appears equation 2 was adopted for use in constants sheet previously so use this. Sunshine NEC Project Spreedsheet: Water CBA Tool - v1.21.xlsm Tab: PumpCosts | AQ3: Capex - Inlet / Outlet Pit Works | AU3: Opex | AV3: Contingencies
B4: a (constant) | C4: 2368.384739 | D4: 16 | E4: 16 | F4: 146.2457639 | G4: 184.1832543 | H4: 3972.98544 | I4: 336.7615672 | J4: 18645.78157 | K4: 64 | L4: 230.2290679 | N4: Size (kL) | O4: Capex | Q4: Size (kL) | R4: Capex | W4: a | X4: b | Z4: Nominal pipe diameter | AF4: VM3 | AG4: 1 | AH4: 0.085 | AI4: 3500 | AQ4: Gravity diversion from standard pit | AR4: 4000 | AU4: As a proportion of CAPEX before contingencies | AV4: CAPEX A: Contingency, investigations, design, supervision | AW4: CAPEX B: Capital cost insurance, administration and procurement | AX4: OPEX A: Maintenance design, supervision | AY4: OPEX B: Maintenance administration, procurement | BA4: Supplier | BB4: Specs | BC4: Catchment (ha) | BD4: Imperviousness (%) | BE4: Estimated Design Flow (L/s) | BF4: Base Cost (ex GST) | BG4: Full Cost (ex GST) | BH4: Source
B5: b (exponent) | C5: 0.6969950511 | D5: 1 | E5: 1 | F5: 1.099186214 | G5: 0.9048571223 | H5: 0.7128811789 | I5: 0.9306315219 | J5: 0.4150131775 | K5: 1 | L5: 0.9048571223 | N5: =1 -> 1 | O5: =IF(N5>=5000,$W$7*N5,$W$5*(N5^$X$5)) -> 3412.8 | Q5: =1 -> 1 | R5: =IF(Q5>=5000,$W$7*Q5,$W$6*(Q5^$X$6)) -> 5800.1 | T5: Capex* | U5: Above ground tanks <5ML | V5: 3412.8 V0.702 | W5: 3412.8 | X5: 0.702 | AA5: IJ/FJ | AC5: RRJ | AF5: VM5 | AG5: 2 | AH5: 0.2 | AI5: 3500 | AQ5: Pumped diversion from pit with pipe diameter < 1000mm | AR5: 5000 | BA5: Supplier | BB5: Base cost | BC5: Base cost | BD5: Base cost | BE5: Base cost | BF5: Base cost | BH5: Supplier
N6: =N5+1 -> 2 | O6: 5551.801055 | Q6: =Q5+1 -> 2 | R6: 9437.977775 | U6: Below ground tanks <5ML | V6: 5800.1 V0.7024 | W6: 5800.1 | X6: 0.7024 | AA6: 0.2 | AB6: 1 | AC6: 0.2 | AD6: 100% | AF6: VM10 | AG6: 3 | AH6: 0.4 | AI6: 5000 | AQ6: Pumped diversion from pit with pipe diameter > 1000mm | AR6: 7000 | AT6: Pipes | AU6: 0.005 | AV6: 0.36 | AW6: 0.046 | AX6: 0.12 | AY6: 0.08 | BA6: ? | BB6: ? | BC6: ? | BD6: ? | BE6: 0 | BF6: 12000 | BG6: 25000 | BH6: Placeholder minimum value
N7: 3 | O7: 7379.891196 | Q7: 3 | R7: 12547.73825 | U7: All tanks > 5ML | V7: 460 V | W7: 460 | X7: - | AA7: FCR | AB7: FCR | AC7: FCR | AD7: FCR | AF7: VM16 | AG7: 5 | AH7: 0.8 | AI7: 7000 | AQ7: Gravity / pumped diversion from multi-chamber pit | AR7: 7000 | AT7: Pumps | AU7: 0.015 | AV7: 0.36 | AW7: 0.046 | AX7: 0.12 | AY7: 0.08 | BA7: SPEL | BB7: ECOCEPTOR, Class 3, 1500 Series | BC7: 0.8 | BD7: 0.8 | BE7: =ROUND((((Lists!$C$92*(BC7/100))+Lists!$D$92)*BD7)*1000,-1) -> 10 | BF7: 12000 | BG7: =BF7+15000 -> 27000 | BH7: Sunvale Concept Design
B8: Maintenance cost power functions derived from Melbourne Water threshold costs (2016) | N8: 4 | O8: 9031.43898 | Q8: 4 | R8: 15357.56702 | T8: Opex** (annual) | U8: All tanks | V8: 185.4 A0.478 | W8: 185.4 | X8: 0.478 | Z8: Millimetres | AA8: $/m | AB8: $/m | AC8: $/m | AD8: $/m | AF8: VM32 | AG8: 10 | AH8: 1.8 | AI8: 14000 | AQ8: Standard outlet pit / end wall | AR8: 4000 | AT8: Generic | AU8: n/a | AV8: 0.4 | AW8: 0.046 | AX8: 0.12 | AY8: 0.08 | BA8: Rocla | BB8: CDS1012 pre-cast concrete sized for a 10 ha catchment | BC8: 10 | BD8: 0.3 | BE8: =ROUND((((Lists!$C$92*(BC8/100))+Lists!$D$92)*BD8)*1000,-1) -> 60 | BF8: ? | BG8: =41000 -> 41000 | BH8: Simon, Email Rocla, Aug 22, 2016
C9: Bioretention | D9: Buffer strip | E9: Grass swale | F9: Gross pollutant trap | G9: Pond | H9: Raingarden | I9: Sediment basin | J9: Tree pit | K9: Vegetated swale | L9: Wetland | N9: 5 | O9: 10563.01219 | Q9: 5 | R9: 17963.5436 | T9: *Where V = tank volume in kL | Z9: 300 | AA9: 120 | AB9: 150 | AC9: 138 | AD9: 172 | AF9: VM65 | AG9: 20 | AH9: 5 | AI9: 16500 | AQ9: Non standard outlet pit / end wall | AR9: 7000 | BC9: 10 | BD9: 0.4 | BE9: =ROUND((((Lists!$C$92*(BC9/100))+Lists!$D$92)*BD9)*1000,-1) -> 80 | BF9: ? | BG9: =41000 -> 41000
B10: a (constant) | C10: 5 | D10: 15 | E10: 3 | F10: 1000 | G10: 37.75598932 | H10: 48.18032247 | I10: 40.02836708 | J10: 150 | K10: 5 | L10: 47.19498665 | N10: 6 | O10: 12005.29997 | Q10: 6 | R10: 20417.79879 | T10: ** Where A = tank area and all tanks are assumed to be 2m deep | Z10: 375 | AA10: 144 | AB10: 180 | AC10: 178 | AD10: 223 | AF10: VM90 | AG10: 30 | AH10: 7 | AI10: 22000 | AQ10: Standard pit | AR10: 4000 | BA10: Rocla | BB10: CDS1512 pre-cast concrete sized for a 20 ha catchment | BC10: 20 | BD10: 0.3 | BE10: =ROUND((((Lists!$C$92*(BC10/100))+Lists!$D$92)*BD10)*1000,-1) -> 120 | BF10: ? | BG10: =61000 -> 61000
B11: b (exponent) | C11: 1 | D11: 1 | E11: 1 | F11: 1 | G11: 0.6048251288 | H11: 0.7617970165 | I11: 0.7972148712 | J11: 1 | K11: 1 | L11: 0.6048251288 | N11: 7 | O11: 13377.33682 | Q11: 7 | R11: 22752.66878 | Z11: 450 | AA11: 184 | AB11: 229 | AC11: 228 | AD11: 285 | AQ11: Multi-chamber pit | AR11: 7000 | AV11: CAPEX A: Contingency, investigations, design, supervision | AW11: CAPEX B: Capital cost insurance, administration and procurement | AX11: OPEX A: Maintenance design, supervision | AY11: OPEX B: Maintenance administration, procurement | BC11: 20 | BD11: 0.4 | BE11: =ROUND((((Lists!$C$92*(BC11/100))+Lists!$D$92)*BD11)*1000,-1) -> 160 | BF11: ? | BG11: =61000 -> 61000
N12: 8 | O12: 14691.96919 | Q12: 8 | R12: 24989.97883 | Z12: 450 | AA12: 184 | AB12: 229 | AC12: 228 | AD12: 285 | AF12: Davey: Power realtive to Capacity (L/s) | AK12: Equation 1 | AN12: Equation 2 | BA12: Rocla | BB12: CDS2028 pre-cast concrete sized for a 50 ha catchment | BC12: 50 | BD12: 0.3 | BE12: =ROUND((((Lists!$C$92*(BC12/100))+Lists!$D$92)*BD12)*1000,-1) -> 290 | BF12: ? | BG12: =130000 -> 130000
N13: 9 | O13: 15958.3902 | Q13: 9 | R13: 27145.3484 | Z13: 525 | AA13: 226 | AB13: 283 | AC13: 282 | AD13: 351 | AF13: a | AG13: b | AH13: c | AK13: a | AL13: b | AN13: a | AO13: b | BC13: 50 | BD13: 0.4 | BE13: =ROUND((((Lists!$C$92*(BC13/100))+Lists!$D$92)*BD13)*1000,-1) -> 390 | BF13: ? | BG13: =130000 -> 130000
N14: 10 | O14: 17183.46878 | Q14: 10 | R14: 29230.44865 | Z14: 600 | AA14: 273 | AB14: 342 | AC14: 340 | AD14: 424 | AF14: =8*(10^-5) -> 8e-05 | AG14: =0.2463 -> 0.2463 | AH14: -0.3297 | AK14: 169373 | AL14: 0.4912 | AN14: 49771 | AO14: 0.6542 | BA14: ? | BB14: ? | BC14: ? | BD14: ? | BE14: 150 | BF14: ? | BG14: 50000 | BH14: =BA19 -> Melbourne Water Life Cycle Costs
N15: 11 | O15: 18372.51045 | Q15: 11 | R15: 31254.29474 | Z15: 675 | AA15: 325 | AB15: 407 | AC15: 405 | AD15: 506 | AF15: y = 8E-05x2 + 0.2463x - 0.3297 | AK15: y = 169373x0.4912 | AN15: y = 49771x0.6542 | BA15: ? | BB15: ? | BC15: ? | BD15: ? | BE15: =((2000-300)/2)+300 -> 1150 | BF15: ? | BG15: =BB21 -> 150000
N16: 12 | O16: 19529.72252 | Q16: 12 | R16: 33224.03599 | Z16: 675 | AA16: 325 | AB16: 407 | AC16: 405 | AD16: 506 | AV16: Contingency A: Contingency, investigations, design, supervision | BA16: ? | BB16: ? | BC16: ? | BD16: ? | BE16: 3000 | BF16: ? | BG16: =BB22 -> 250000
N17: 13 | O17: 20658.51365 | Q17: 13 | R17: 35145.46486 | Z17: 750 | AA17: 379 | AB17: 474 | AC17: 471 | AD17: 589 | AF17: Davey: Cost realtive to Capacity (L/s) | AK17: Series 1 | AN17: Series 2 | AV17: Contingency B: Capital cost insurance, administration and procurement
N18: 14 | O18: 21761.695 | Q18: 14 | R18: 37023.35861 | Z18: 825 | AA18: 435 | AB18: 543 | AC18: 582 | AD18: 728 | AF18: a | AG18: b | AK18: x | AL18: y | AN18: x | AO18: y | AV18: Contingency A: Maintenance design, supervision
N19: 15 | O19: 22841.61999 | Q19: 15 | R19: 38861.71672 | Z19: 900 | AA19: 497 | AB19: 622 | AC19: 670 | AD19: 838 | AF19: =2848.3 -> 2848.3 | AG19: 0.6006 | AK19: 100 | AL19: =AK$14*AK19^AL$14 -> 1626462.97 | AN19: 100 | AO19: =AN$14*AN19^AO$14 -> 1012456.485 | AV19: Contingency B: Maintenance administration, procurement | BA19: Melbourne Water Life Cycle Costs | BB19: Construciton | BC19: Inspection | BD19: Cleanout | BE19: Adopted Opex | BF19: Adopted Capex Eqn
N20: 16 | O20: 23900.28424 | Q20: 16 | R20: 40663.93075 | Z20: 900 | AA20: 497 | AB20: 622 | AC20: 670 | AD20: 838 | AF20: y = 2848.3x0.6006 | AK20: 200 | AL20: 2286178.382 | AN20: 200 | AO20: 1593346.35 | BA20: < 300 L/s | BB20: 50000 | BC20: 100 | BD20: 1000 | BE20: =1.5*(SUM(BC20:BD20)) -> 1650 | BF20: a | BG20: b | BH20: c
N21: 17 | O21: 24939.39885 | Q21: 17 | R21: 42432.90878 | Z21: 1050 | AA21: 637 | AB21: 797 | AC21: 854 | AD21: 1068 | AK21: 300 | AL21: 2790012.444 | AN21: 300 | AO21: 2077347.212 | BA21: 300 - 2000 L/s | BB21: 150000 | BC21: 100 | BD21: 1000 | BF21: =-0.018 -> -0.018 | BG21: 128.32 | BH21: 27060
N22: 18 | O22: 25960.44524 | Q22: 18 | R22: 44171.16857 | Z22: 1050 | AA22: 637 | AB22: 797 | AC22: 854 | AD22: 1068 | AK22: 400 | AL22: 3213483.303 | AN22: 400 | AO22: 2507517.733 | BA22: >2000 | BB22: 250000 | BC22: 100 | BD22: 1000 | BF22: y=-0.018x2 + 128.32x + 27060
N23: 19 | O23: 26964.71696 | Q23: 19 | R23: 45880.90868 | Z23: 1200 | AA23: 803 | AB23: 1004 | AC23: 1078 | AD23: 1349 | AK23: 500 | AL23: 3585735.461 | AN23: 500 | AO23: 2901633.412
N24: 20 | O24: 27953.35211 | Q24: 20 | R24: 47564.06351 | Z24: 1350 | AA24: 974 | AB24: 1218 | AC24: 1306 | AD24: 1633 | AK24: 600 | AL24: 3921679.285 | AN24: 600 | AO24: 3269210.723
N25: 21 | O25: 28927.35884 | Q25: 21 | R25: 49222.34657 | Z25: 1500 | AA25: 1184 | AB25: 1480 | AC25: 1588 | AD25: 1986 | AK25: 700 | AL25: 4230155.548 | AN25: 700 | AO25: 3616092.277
N26: 22 | O26: 29887.63564 | Q26: 22 | R26: 50857.28507 | Z26: 1650 | AA26: 1416 | AB26: 1771 | AC26: 1900 | AD26: 2375 | AK26: 800 | AL26: 4516915.661 | AN26: 800 | AO26: 3946188.587
N27: 23 | O27: 30834.98766 | Q27: 23 | R27: 52470.24757 | Z27: 1800 | AA27: 1679 | AB27: 2100 | AC27: 2254 | AD27: 2817 | AK27: 900 | AL27: 4785949.377 | AN27: 900 | AO27: 4262278.431
N28: 24 | O28: 31770.14009 | Q28: 24 | R28: 54062.46673 | Z28: 1950 | AA28: 1958 | AB28: 2447 | AC28: 2637 | AD28: 3296
N29: 25 | O29: 32693.74901 | Q29: 25 | R29: 55635.05778 | Z29: 2100 | AA29: 2285 | AB29: 2857 | AC29: 3062 | AD29: 3828
N30: 26 | O30: 33606.41053 | Q30: 26 | R30: 57189.03402 | Z30: 2250 | AA30: 2623 | AB30: 3279 | AC30: 3525 | AD30: 4407
N31: 27 | O31: 34508.66834 | Q31: 27 | R31: 58725.31964 | Z31: 2400 | AA31: 2969 | AB31: 3712 | AC31: 3979 | AD31: 4974
N32: 28 | O32: 35401.02006 | Q32: 28 | R32: 60244.76055
N33: 29 | O33: 36283.92267 | Q33: 29 | R33: 61748.13359 | Z33: http://www.melbournewater.com.au/planning-and-building/land-development-process/policy/reimbursements1.8/pages/reimbursements.aspx
N34: 30 | O34: 37157.7971 | Q34: 30 | R34: 63236.15432
N35: 31 | O35: 38023.03219 | Q35: 31 | R35: 64709.48376
N36: 32 | O36: 38879.98806 | Q36: 32 | R36: 66168.73411
N37: 33 | O37: 39728.9991 | Q37: 33 | R37: 67614.47382
N38: =N37+1 -> 34 | O38: 40570.37648 | Q38: =Q37+1 -> 34 | R38: 69047.23194
N39: 35 | O39: 41404.41046 | Q39: 35 | R39: 70467.50187
N40: 36 | O40: 42231.37227 | Q40: 36 | R40: 71875.74478
N41: 37 | O41: 43051.51593 | Q41: 37 | R41: 73272.39248
N42: 38 | O42: 43865.07972 | Q42: 38 | R42: 74657.85011
N43: 39 | O43: 44672.28756 | Q43: 39 | R43: 76032.49837
N44: 40 | O44: 45473.35025 | Q44: 40 | R44: 77396.69561
N45: 41 | O45: 46268.46648 | Q45: 41 | R45: 78750.77969
N46: 42 | O46: 47057.82388 | Q46: 42 | R46: 80095.06956
N47: 43 | O47: 47841.59981 | Q47: 43 | R47: 81429.86683
N48: 44 | O48: 48619.96222 | Q48: 44 | R48: 82755.457
N49: 45 | O49: 49393.07028 | Q49: 45 | R49: 84072.11073
N50: 46 | O50: 50161.07508 | Q50: 46 | R50: 85380.0849
N51: 47 | O51: 50924.12018 | Q51: 47 | R51: 86679.6236
N52: 48 | O52: 51682.34213 | Q52: 48 | R52: 87970.95902
N53: 49 | O53: 52435.87099 | Q53: 49 | R53: 89254.31226
N54: 50 | O54: 53184.8307 | Q54: 50 | R54: 90529.89411
N55: 51 | O55: 53929.33955 | Q55: 51 | R55: 91797.90566
N56: 52 | O56: 54669.5105 | Q56: 52 | R56: 93058.539
N57: 53 | O57: 55405.45153 | Q57: 53 | R57: 94311.97773
N58: 54 | O58: 56137.26596 | Q58: 54 | R58: 95558.39753
N59: 55 | O59: 56865.05272 | Q59: 55 | R59: 96797.96662
N60: 56 | O60: 57588.90661 | Q60: 56 | R60: 98030.84621
N61: 57 | O61: 58308.91856 | Q61: 57 | R61: 99257.1909
N62: 58 | O62: 59025.17585 | Q62: 58 | R62: 100477.1491
N63: 59 | O63: 59737.76228 | Q63: 59 | R63: 101690.8633
N64: 60 | O64: 60446.75842 | Q64: 60 | R64: 102898.4706
N65: 61 | O65: 61152.24175 | Q65: 61 | R65: 104100.1026
N66: 62 | O66: 61854.28686 | Q66: 62 | R66: 105295.8862
N67: 63 | O67: 62552.96555 | Q67: 63 | R67: 106485.9435
N68: 64 | O68: 63248.34702 | Q68: 64 | R68: 107670.3922
N69: 65 | O69: =IF(N69>=5000,$W$7*N69,$W$5*(N69^$X$5)) -> 63940.498 | Q69: 65 | R69: =IF(Q69>=5000,$W$7*Q69,$W$6*(Q69^$X$6)) -> 108849.3458
N70: =N69+1 -> 66 | O70: 64629.48286 | Q70: =Q69+1 -> 66 | R70: 110022.9136
N71: 67 | O71: 65315.36371 | Q71: 67 | R71: 111191.2014
N72: 68 | O72: 65998.20058 | Q72: 68 | R72: 112354.3112
N73: 69 | O73: 66678.05144 | Q73: 69 | R73: 113512.3416
N74: 70 | O74: 67354.97235 | Q74: 70 | R74: 114665.3879
N75: 71 | O75: 68029.01752 | Q75: 71 | R75: 115813.5424
N76: 72 | O76: 68700.23942 | Q76: 72 | R76: 116956.8941 | AF76: Used
N77: 73 | O77: 69368.68885 | Q77: 73 | R77: 118095.5297 | AF77: ASR Research Report: Cost realtive to Power (kW)
N78: 74 | O78: 70034.41501 | Q78: 74 | R78: 119229.5326 | AF78: a | AG78: b | AH78: c
N79: 75 | O79: 70697.46556 | Q79: 75 | R79: 120358.9839 | AF79: 31.58 | AG79: 0.6299 | AH79: =10^3 -> 1000
N80: 76 | O80: 71357.88673 | Q80: 76 | R80: 121483.9624 | AF80: Cost ($m) = (31.58*Power^0.6299)/(10^3)
N81: 77 | O81: 72015.72334 | Q81: 77 | R81: 122604.5441
N82: 78 | O82: 72671.01887 | Q82: 78 | R82: 123720.803
N83: 79 | O83: 73323.81554 | Q83: 79 | R83: 124832.811 | AF83: Capacity (L/s) | AG83: Power (kW) | AH83: Davey | AI83: CWW Eqn 2 | AJ83: SA Eqn
N84: 80 | O84: 73974.15432 | Q84: 80 | R84: 125940.6378 | AF84: =AG4 -> 1 | AG84: =AH163 -> 0.07007142857 | AH84: 3500 | AJ84: =(($AF$79*(AG84^$AG$79))/$AH$79)*10^6 -> 5918.591741
N85: 81 | O85: 74622.07503 | Q85: 81 | R85: 127044.3509 | AF85: 2 | AG85: =AH164 -> 0.1401428571 | AH85: 3500 | AJ85: 9158.770529
N86: 82 | O86: 75267.61633 | Q86: 82 | R86: 128144.0162 | AF86: 3 | AG86: 0.2102142857 | AH86: 5000 | AJ86: 11823.79965
N87: 83 | O87: 75910.81584 | Q87: 83 | R87: 129239.6977 | AF87: 5 | AG87: 0.3503571429 | AH87: 7000 | AJ87: 16311.71367
N88: 84 | O88: 76551.7101 | Q88: 84 | R88: 130331.4575 | AF88: 10 | AG88: 0.7007142857 | AH88: 14000 | AJ88: 25241.68738
N89: 85 | O89: 77190.33468 | Q89: 85 | R89: 131419.356 | AF89: 20 | AG89: 1.401428571 | AH89: 16500 | AJ89: 39060.44422
N90: 86 | O90: 77826.72418 | Q90: 86 | R90: 132503.4522 | AF90: 30 | AG90: 2.102142857 | AH90: 22000 | AJ90: 50426.29522
N91: 87 | O91: 78460.91228 | Q91: 87 | R91: 133583.8033 | AF91: =AF90+10 -> 40 | AG91: 2.802857143 | AI91: =AN$14*AG91^AO$14 -> 97678.03555 | AJ91: 60444.38627
N92: 88 | O92: 79092.93176 | Q92: 88 | R92: 134660.4651 | AF92: =AF91+10 -> 50 | AG92: 3.503571429 | AI92: =AN$14*AG92^AO$14 -> 113030.4475 | AJ92: 69566.40959
N93: 89 | O93: 79722.81456 | Q93: 89 | R93: 135733.4919 | AF93: 60 | AG93: 4.204285714 | AI93: 127349.0819 | AJ93: 78032.56025
N94: 90 | O94: 80350.59179 | Q94: 90 | R94: 136802.9366 | AF94: 70 | AG94: 4.905 | AI94: 140861.5322 | AJ94: 85989.54266
N95: 91 | O95: 80976.29377 | Q95: 91 | R95: 137868.8507 | AF95: 80 | AG95: 5.605714286 | AI95: 153720.1289 | AJ95: 93535.13266
N96: 92 | O96: 81599.95005 | Q96: 92 | R96: 138931.2846 | AF96: 90 | AG96: 6.306428571 | AI96: 166033.1166 | AJ96: 100738.5604
N97: 93 | O97: 82221.58945 | Q97: 93 | R97: 139990.2872 | AF97: 100 | AG97: =AH176 -> 7.007142857 | AI97: 177880.8804 | AJ97: 107651.0782
N98: 94 | O98: 82841.24007 | Q98: 94 | R98: 141045.9063 | AF98: =AF97+50 -> 150 | AG98: 10.51071429 | AI98: 231914.6437 | AJ98: 138975.5072
N99: 95 | O99: 83458.92934 | Q99: 95 | R99: 142098.1886 | AF99: =AF98+50 -> 200 | AG99: 14.01428571 | AI99: 279938.798 | AJ99: 166585.4928
N100: 96 | O100: 84074.68401 | Q100: 96 | R100: 143147.1795 | AF100: 250 | AG100: 17.51785714 | AI100: 323937.7968 | AJ100: 191725.9045
N101: 97 | O101: 84688.53019 | Q101: 97 | R101: 144192.9236 | AF101: 300 | AG101: 21.02142857 | AI101: 364974.0571 | AJ101: 215058.7227
N102: 98 | O102: 85300.4934 | Q102: 98 | R102: 145235.4641 | AF102: 350 | AG102: 24.525 | AI102: 403699.8472 | AJ102: 236988.2669
N103: 99 | O103: 85910.59853 | Q103: 99 | R103: 146274.8435 | AF103: 400 | AG103: 28.02857143 | AI103: 440551.7358 | AJ103: 257784.0083
N104: 100 | O104: 86518.8699 | Q104: 100 | R104: 147311.103 | AF104: 450 | AG104: 31.53214286 | AI104: 475839.9453 | AJ104: 277636.7463
N105: =N104+10 -> 110 | O105: 92505.70197 | Q105: =Q104+10 -> 110 | R105: 157510.5701 | AF105: 500 | AG105: 35.03571429 | AI105: 509794.8539 | AJ105: 296687.7326
N106: 120 | O106: 98332.27178 | Q106: 120 | R106: 167437.368 | AF106: 550 | AG106: 38.53928571 | AI106: 542593.4438 | AJ106: 315045.1817
N107: 130 | O107: 104015.742 | Q107: 130 | R107: 177120.6886 | AF107: 600 | AG107: 42.04285714 | AI107: 574375.3831 | AJ107: 332794.2825
N108: 140 | O108: 109570.2668 | Q108: 140 | R108: 186584.6076 | AF108: 650 | AG108: 45.54642857 | AI108: 605253.3311 | AJ108: 350003.5966
N109: 150 | O109: 115007.6957 | Q109: 150 | R109: 195849.2811
N110: 160 | O110: 120338.0766 | Q110: 160 | R110: 204931.8012
N111: 170 | O111: 125570.0251 | Q111: 170 | R111: 213846.8236
N112: 180 | O112: 130710.9998 | Q112: 180 | R112: 222607.0369
N113: 190 | O113: 135767.514 | Q113: 190 | R113: 231223.5212
N114: 200 | O114: 140745.298 | Q114: 200 | R114: 239706.0251
N115: 210 | O115: 145649.4279 | Q115: 210 | R115: 248063.1841
N116: 220 | O116: 150484.4274 | Q116: 220 | R116: 256302.6947
N117: 230 | O117: 155254.3506 | Q117: 230 | R117: 264431.4542
N118: 240 | O118: 159962.8487 | Q118: 240 | R118: 272455.6745
N119: 250 | O119: 164613.2253 | Q119: 250 | R119: 280380.9762
N120: 260 | O120: 169208.4816 | Q120: 260 | R120: 288212.4657
N121: 270 | O121: 173751.3552 | Q121: 270 | R121: 295954.8008
N122: 280 | O122: 178244.3515 | Q122: 280 | R122: 303612.2446
N123: 290 | O123: 182689.7715 | Q123: 290 | R123: 311188.712
N124: 300 | O124: 187089.7346 | Q124: 300 | R124: 318687.8092
N125: 310 | O125: 191446.1985 | Q125: 310 | R125: 326112.8674
N126: 320 | O126: 195760.9766 | Q126: 320 | R126: 333466.9721
N127: 330 | O127: 200035.7523 | Q127: 330 | R127: 340752.9879
N128: 340 | O128: 204272.0926 | Q128: 340 | R128: 347973.5811
N129: 350 | O129: 208471.4587 | Q129: 350 | R129: 355131.2383
N130: 360 | O130: 212635.2165 | Q130: 360 | R130: 362228.2835
N131: 370 | O131: 216764.6448 | Q131: 370 | R131: 369266.893
N132: 380 | O132: 220860.9434 | Q132: 380 | R132: 376249.1085
N133: 390 | O133: =IF(N133>=5000,$W$7*N133,$W$5*(N133^$X$5)) -> 224925.2398 | Q133: 390 | R133: =IF(Q133>=5000,$W$7*Q133,$W$6*(Q133^$X$6)) -> 383176.8486
N134: 400 | O134: 228958.5953 | Q134: 400 | R134: 390051.9193 | AF134: Capacity (L/s) | AG134: Capacity (L/min) | AH134: Power (kW) | AI134: Head (m) | AJ134: Specific Gravity of Water (kg/m3) | AK134: Efficiency (n)
N135: 410 | O135: 232962.0104 | Q135: 410 | R135: 396876.0232 | AF135: =AF84 -> 1 | AG135: =AF135/60 -> 0.01666666667 | AH135: =(AG135*$AI$135*1000)/(4600*$AK$135) -> 0.02587991718 | AI135: =PumpingHead -> 5 | AJ135: 1000 | AK135: =PumpEfficiency -> 0.7
N136: 420 | O136: 236936.4297 | Q136: 420 | R136: 403650.7678 | AF136: =AF85 -> 2 | AG136: =AF136/60 -> 0.03333333333 | AH136: =(AG136*$AI$135*1000)/(4600*$AK$135) -> 0.05175983437
N137: =N136+10 -> 430 | O137: 240882.7463 | Q137: =Q136+10 -> 430 | R137: 410377.673 | AF137: 3 | AG137: 0.05 | AH137: 0.07763975155
N138: 440 | O138: 244801.8057 | Q138: 440 | R138: 417058.1777 | AF138: 5 | AG138: 0.08333333333 | AH138: 0.1293995859 | AI138: Sustainability Vic Eqn for power
N139: 450 | O139: 248694.4095 | Q139: 450 | R139: 423693.6459 | AF139: 10 | AG139: 0.1666666667 | AH139: 0.2587991718
N140: 460 | O140: 252561.3184 | Q140: 460 | R140: 430285.3723 | AF140: 20 | AG140: 0.3333333333 | AH140: 0.5175983437
N141: 470 | O141: 256403.2551 | Q141: 470 | R141: 436834.5868 | AF141: 30 | AG141: 0.5 | AH141: 0.7763975155
N142: 480 | O142: 260220.9073 | Q142: 480 | R142: 443342.4597 | AF142: 40 | AG142: 0.6666666667 | AH142: 1.035196687
N143: 490 | O143: 264014.9297 | Q143: 490 | R143: 449810.1053 | AF143: 50 | AG143: 0.8333333333 | AH143: 1.293995859
N144: 500 | O144: 267785.9464 | Q144: 500 | R144: 456238.5858 | AF144: 60 | AG144: 1 | AH144: 1.552795031
N145: 510 | O145: 271534.553 | Q145: 510 | R145: 462628.9147 | AF145: 70 | AG145: 1.166666667 | AH145: 1.811594203
N146: 520 | O146: 275261.3182 | Q146: 520 | R146: 468982.06 | AF146: 80 | AG146: 1.333333333 | AH146: 2.070393375
N147: 530 | O147: 278966.7858 | Q147: 530 | R147: 475298.947 | AF147: 90 | AG147: 1.5 | AH147: 2.329192547
N148: 540 | O148: 282651.4759 | Q148: 540 | R148: 481580.4611 | AF148: 100 | AG148: 1.666666667 | AH148: 2.587991718
N149: 550 | O149: 286315.8866 | Q149: 550 | R149: 487827.4501 | AF149: 150 | AG149: 2.5 | AH149: 3.881987578
N150: 560 | O150: 289960.4954 | Q150: 560 | R150: 494040.7263 | AF150: 200 | AG150: 3.333333333 | AH150: 5.175983437
N151: 570 | O151: 293585.76 | Q151: 570 | R151: 500221.069 | AF151: 250 | AG151: 4.166666667 | AH151: 6.469979296
N152: 580 | O152: 297192.1197 | Q152: 580 | R152: 506369.2259 | AF152: 300 | AG152: 5 | AH152: 7.763975155
N153: 590 | O153: 300779.9967 | Q153: 590 | R153: 512485.9155 | AF153: 350 | AG153: 5.833333333 | AH153: 9.057971014
N154: 600 | O154: 304349.7966 | Q154: 600 | R154: 518571.8281 | AF154: 400 | AG154: 6.666666667 | AH154: 10.35196687
N155: 610 | O155: 307901.9095 | Q155: 610 | R155: 524627.6277 | AF155: 450 | AG155: =AF155/60 -> 7.5 | AH155: 11.64596273
N156: 620 | O156: 311436.7109 | Q156: 620 | R156: 530653.9533 | AF156: 500 | AG156: 8.333333333 | AH156: 12.93995859
N157: 630 | O157: 314954.5624 | Q157: 630 | R157: 536651.4205 | AF157: 550 | AG157: 9.166666667 | AH157: 14.23395445
N158: 640 | O158: 318455.8123 | Q158: 640 | R158: 542620.6222 | AF158: 600 | AG158: 10 | AH158: 15.52795031
N159: 650 | O159: 321940.7967 | Q159: 650 | R159: 548562.1303 | AF159: 650 | AG159: 10.83333333 | AH159: 16.82194617
N160: 660 | O160: 325409.8396 | Q160: 660 | R160: 554476.4964
N161: 670 | O161: 328863.2539 | Q161: 670 | R161: 560364.2529
N162: 680 | O162: 332301.3417 | Q162: 680 | R162: 566225.9142 | AF162: Capacity (L/s) | AH162: Power (kW) | AI162: Head (m) | AJ162: Efficiency (n)
N163: 690 | O163: 335724.3949 | Q163: 690 | R163: 572061.977 | AF163: =AF135 -> 1 | AH163: =((9.81*AF163)/1000)*($AI$163/$AJ$163) -> 0.07007142857 | AI163: =PumpingHead -> 5 | AJ163: =PumpEfficiency -> 0.7
N164: 700 | O164: 339132.6958 | Q164: 700 | R164: 577872.9219 | AF164: =AF136 -> 2 | AH164: 0.1401428571
N165: 710 | O165: 342526.5174 | Q165: 710 | R165: 583659.2134 | AF165: 3 | AH165: 0.2102142857
N166: 720 | O166: 345906.1237 | Q166: 720 | R166: 589421.3012 | AF166: 5 | AH166: 0.3503571429 | AI166: Dale's CWW CBA costs spreadsheet Eqn for power
N167: 730 | O167: 349271.7707 | Q167: 730 | R167: 595159.6206 | AF167: 10 | AH167: 0.7007142857
N168: 740 | O168: 352623.7059 | Q168: 740 | R168: 600874.5934 | AF168: 20 | AH168: 1.401428571
N169: =N168+10 -> 750 | O169: 355962.1695 | Q169: =Q168+10 -> 750 | R169: 606566.6281 | AF169: 30 | AH169: 2.102142857
N170: 760 | O170: 359287.3941 | Q170: 760 | R170: 612236.1207 | AF170: 40 | AH170: 2.802857143
N171: 770 | O171: 362599.6054 | Q171: 770 | R171: 617883.4555 | AF171: 50 | AH171: 3.503571429
N172: 780 | O172: 365899.0224 | Q172: 780 | R172: 623509.0052 | AF172: 60 | AH172: 4.204285714
N173: 790 | O173: 369185.8576 | Q173: 790 | R173: 629113.1314 | AF173: 70 | AH173: 4.905
N174: 800 | O174: 372460.3174 | Q174: 800 | R174: 634696.1855 | AF174: 80 | AH174: 5.605714286
N175: 810 | O175: 375722.602 | Q175: 810 | R175: 640258.5085 | AF175: 90 | AH175: 6.306428571
N176: 820 | O176: 378972.9065 | Q176: 820 | R176: 645800.4321 | AF176: 100 | AH176: 7.007142857
N177: 830 | O177: 382211.4199 | Q177: 830 | R177: 651322.2784 | AF177: 150 | AH177: 10.51071429
N178: 840 | O178: 385438.3264 | Q178: 840 | R178: 656824.3608 | AF178: 200 | AH178: 14.01428571
N179: 850 | O179: 388653.8051 | Q179: 850 | R179: 662306.9841 | AF179: 250 | AH179: 17.51785714
N180: 860 | O180: 391858.0301 | Q180: 860 | R180: 667770.4448 | AF180: 300 | AH180: 21.02142857
N181: 870 | O181: 395051.171 | Q181: 870 | R181: 673215.0316 | AF181: 350 | AH181: 24.525
N182: 880 | O182: 398233.3929 | Q182: 880 | R182: 678641.0255 | AF182: 400 | AH182: 28.02857143
N183: 890 | O183: 401404.8567 | Q183: 890 | R183: 684048.7002 | AF183: 450 | AH183: 31.53214286
N184: 900 | O184: 404565.7188 | Q184: 900 | R184: 689438.3224 | AF184: 500 | AH184: 35.03571429
N185: 910 | O185: 407716.1321 | Q185: 910 | R185: 694810.1519 | AF185: 550 | AH185: 38.53928571
N186: 920 | O186: 410856.2453 | Q186: 920 | R186: 700164.442 | AF186: 600 | AH186: 42.04285714
N187: 930 | O187: 413986.2034 | Q187: 930 | R187: 705501.4398 | AF187: 650 | AH187: 45.54642857
N188: 940 | O188: 417106.1481 | Q188: 940 | R188: 710821.3861
N189: 950 | O189: 420216.2173 | Q189: 950 | R189: 716124.5159
N190: 960 | O190: 423316.5458 | Q190: 960 | R190: 721411.0587
N191: 970 | O191: 426407.2651 | Q191: 970 | R191: 726681.2381
N192: 980 | O192: 429488.5036 | Q192: 980 | R192: 731935.273
N193: 990 | O193: 432560.3866 | Q193: 990 | R193: 737173.3765
N194: 1000 | O194: 435623.0367 | Q194: 1000 | R194: 742395.7574
N195: =N194+50 -> 1050 | O195: 450801.8878 | Q195: =Q194+50 -> 1050 | R195: 768278.7923
N196: 1100 | O196: 465766.7726 | Q196: 1100 | R196: 793797.4572
N197: 1150 | O197: =IF(N197>=5000,$W$7*N197,$W$5*(N197^$X$5)) -> 480530.2387 | Q197: 1150 | R197: =IF(Q197>=5000,$W$7*Q197,$W$6*(Q197^$X$6)) -> 818973.1137
N198: 1200 | O198: 495103.5871 | Q198: 1200 | R198: 843825.0009
N199: 1250 | O199: 509497.0423 | Q199: 1250 | R199: 868370.5263
N200: 1300 | O200: 523719.8941 | Q200: 1300 | R200: 892625.5054
... 174 more rows

Sheet WSUD Maintenance Constants (hidden)
A2: General assumptions
E3: Discount rates | F3: Lengths of analysis | I3: Value of avoided potable water ($/ML) | J3: Cost of recycled water ($/ML)
A4: Discount rate | B4: 0.055 | E4: 0.055 | F4: 30 | H4: CWW | I4: 2662.1 | J4: 2305.1
A5: Length of analysis (years) | B5: 50 | E5: 0.035 | F5: 35 | H5: SEW | I5: 3144.4 | J5: 2239.4
A6: Start year for analysis | B6: 2017 | E6: 0.075 | F6: 40 | H6: YVW | I6: 2802.4 | J6: 2752.4
F7: 45
A8: Water retailer | B8: YVW | F8: 50
A9: Value of avoided potable water ($/ML) | B9: =VLOOKUP(B$8,WaterPriceTable,2) -> 2802.4
A10: Cost of recycled water ($/ML) | B10: =VLOOKUP(B$8,WaterPriceTable,3) -> 2752.4 | C10: Not used
A12: Broader economic (environmental, social) assumptions
A15: Capital value of nitrogen abatement ($/kg/yr) | B15: 11390 | C15: *Inc opex + renewal | F15: $6,645 capital value for a treatment system with capacity to remove 1 kg of TN/year indefinitely
A16: Annualised capital value of nitrogen abatement ($/kg) | B16: =-PMT(B4,LengthOfAnalysis,B15) -> 672.7099169 | F16: http://www2.melbournewater.com.au/Planning-and-building/Forms-guidelines-and-standard-drawings/Documents/Stormwater%20Offset%20Rate%20FAQs.pdf
A18: Constants
A19: Assumed performance of unmaintained assets | B19: 0.5
A20: Inflation adjustment from 2013 | B20: =2%*(StartYear-2013) -> 0.08 | F20: Assumes 2% per year from 2013 to 2016. Used to adjust costs from Melbourne Water data (derived 2013)
A23: Treatment type | B23: Renewal cost as % of construction | C23: Average years to refurbishment | D23: Reduction in functional life without maintenance | E23: Reduced asset lifespan | G23: Yes No List
A24: Bioretention | B24: 0.8 | C24: 20 | D24: -10 | E24: =C24+D24 -> 10 | G24: Y
A25: Buffer strip | B25: 0.8 | C25: 20 | D25: -8 | E25: =C25+D25 -> 12 | G25: N
A26: Grass swale | B26: 0.8 | C26: 20 | D26: -8 | E26: 12
A27: Gross pollutant trap | B27: 1 | C27: 25 | D27: -5 | E27: 20
A28: Pond | B28: 1.2 | C28: 25 | D28: -12 | E28: 13
A29: Raingarden | B29: 0.8 | C29: 20 | D29: -10 | E29: 10
A30: Sediment basin | B30: 0.6 | C30: 25 | D30: -12 | E30: 13
A31: Tree pit | B31: 0.8 | C31: 20 | D31: -10 | E31: 10
A32: Vegetated swale | B32: 0.8 | C32: 20 | D32: -8 | E32: 12
A33: Wetland | B33: 1.2 | C33: 25 | D33: -12 | E33: =C33+D33 -> 13
A36: Added by Simon
A37: DailyPeakingFactor | B37: 1.6
A38: IrrigationHoursPerDay | B38: 8
A39: IrrigationDaysPerWeek | B39: 3
A40: PumpingHoursPerDay | B40: 24
A41: PumpingHead | B41: 5
A42: PumpEfficiency | B42: 0.7 | D42: 6645 | E42: Capex only
A43: NitrogenAbatementValue_perkg | B43: =D43 -> 11390 | C43: $/kg incl capex and opex over 50yrs | D43: =11390 -> 11390 | E43: $/kg incl capex and opex over 50yrs
A44: PotableWaterValue_perkL | B44: 2.8024 | C44: $/kL for YVW
A46: Risk of Project Failure
A47: Negligible | B47: 0
A48: Very Low | B48: 0.1
A49: Low | B49: 0.2
A50: Moderate | B50: 0.4
A51: High | B51: 0.6
A52: Very High | B52: 0.8
